Workbook

Sheet Main Menu
J4: Insert LPHA Logo
H8: Public Health Risk Assessment Tool
D11: Overview
D19: Step 1. Baseline Data | L19: 4 Impact Areas: Human Impact, Healthcare Service Impact, Inpatient Healthcare Facility Infrastructure Impact, Public Health Service Impact
D20: 5 Domains
L21: 7 At-Risk Populations: Hearing, vision, ambulatory, Limited English Proficiency (LEP), Poverty, Children Under 18, 65 & Older
L23: Assessment of PHEP Capabilities
L25: Assessment of HPP Capabilities
L27: Unique Characteristics: Housing Units, Well Water, Largest Population Centers, Largest Hospitals, Proximity to Nuclear Plant, College Campuses, Terrorism Targets
D31: Step 2. Hazard Data | L31: 2007 Virginia Tech Shooting
L33: Aerosolized Anthrax release (largest public building/space in county based on 2006 National Planning Scenario *NPS*)
L35: Sarin attack in ventilation system (NPS)
L37: Ferguson Unrest/Protests August 2014
L39: N/A in Missouri
L41: 1995 Oklahoma City Bombing
L43: 2005 Botnet attack at Seattle Northwest Hospital (Researching MO Incident, St. Francis Hospital)
L45: 1963 PA drought
L47: New Madrid Seismic Zone Earthquake in SE MO
L49: Dec. 2015 flooding in South Central MO (Pulaski Co.)
L51: 2005 Chlorine spill (train incident) in Graniteville, SC
L53: 2022 measles outbreak in central Ohio
L55: 2011 Fukushima Daiichi Nuclear Disaster
L57: Pandemic Influenza (NPS, 121 deaths per 100,000)
L59: "Dirty Bomb" NPS, truck bomb in moderate to large city
L61: 1995 Chicago Heat Wave
L63: May 22, 2011 EF5 tornado Joplin, MO
L65: 2003 Northeast Blackout (Northeast and Midwestern US and Ontario, Canada)
L67: May be of minimal impact depending on the jurisdiction in Missouri
L69: 2010 North American Blizzards
L71: Add your own hazards
D93: Step 3. Analysis | L93: all data summary compiled
L95: graph with 1 to 4 severity level, all 5 impact areas (human, healthcare services, inpatient healthcare facility infrastructure, community, public health service)
L97: Generates score to allow planners to identify hazards that may require additional preparedness efforts, especially for degree of risk, ranking order highest to lowest
L99: Summary of all scores by event, 1 - 4 scoring
L101: Both domains: includes severity, risk, adjusted risk, preparedness, planning priority
L105: Adjusted risk score reflects contribution of additional planning requirements for at-risk or vulnerable populations.

Sheet Acknowledgements
H9: Public Health Risk Assessment Tool
C12: The original Public Health Risk Assessment Tool (PHRAT) was developed by the Center for Public Health Readiness and Communication (CPHRC) at the Drexel University School of Public Health. The project was funded by the Pennsylvania Department of Health. This publication was supported by Cooperative Agreement Number 2U90TP316967–11 from the Centers for Disease Control and Prevention (CDC). Its contents are solely the responsibility of the authors and do not represent the official views of CDC. Authors: Rachel Peters, MPH Hilary Kricun, MPH Tom Hipper, MSPH, MA Esther Chernak, MD, MPH The CPHRC worked with preparedness planners, public health agency representatives, and other stakeholders to complete a comprehensive public health risk assessment of the Philadelphia Metropolitan Statistical Area (MSA). CPHRC staff built upon existing approaches to this task, using the UCLA Hazard Risk Assessment Instrument and the Kaiser Permanente Hazard and Vulnerability Analysis to develop a tool to analyze hazards with respect to their public health impact.
C14: The Missouri Department of Health and Senior Services (DHSS) and the Missouri State Emergency Management Agency (SEMA) have collaborated with Dr. Chernak and her team at Drexel University School of Public Health to update and modify this tool for use in the state of Missouri. The Missouri Team includes: Kay Beesley, Preparedness Planner, SEMA Mark Pethan, Public Health Emergency Preparedness (PHEP) and Hospital Preparedness Program (HPP) Grant Coordinator, SEMA Jessica Sexton, Planning Program Manager, SEMA Jody Starr, Public Health Emergency Preparedness (PHEP) Grant Coordinator, DHSS Holly Withrow, GIS Specialist, DHSS

Sheet ReadMe
H9: Public Health Risk Assessment Tool
C12: Overview: Why Conduct a Hazard Assessment? A first step in effective emergency preparedness and management is defining and analyzing jurisdictional hazards. The Missouri Public Health Risk Assessment Tool (MOPHRAT) aids Local Public Health Departments (LPHAs) in completing PHEP Grant required hazard assessments of public health impacts affecting their jurisdictions. Hazard assessments can be used to establish planning priorities, so that hazards with the highest potential consequences are addressed first. Assessment outcomes can be used to target mitigation resources and efforts, as well as serves as a basis for broader community engagement. PHEP Grant recipients are required to complete a hazard assessment once every five years. What does the MOPHRAT do/provide? The MOPHRAT generates an overall estimate of hazard-specific risks, based on the probability and impact severity identified for each hazard. Additionally, the MOPHRAT generates an Adjusted Risk, which incorporates an assessment of the additional planning required to reduce a hazard’s impact on at-risk populations. The adjusted risk is calculated by assessing the size of at-risk populations in a jurisdiction and the special planning required to address the needs of these populations in specific disasters. A Preparedness Score is generated using the jurisdiction’s current capacity in each of the 15 Public Health Preparedness capabilities and the four Healthcare System Preparedness capabilities, as well as the relevance of each capability to specific hazards. The MOPHRAT's final output is a Planning Priority Score, reflecting both adjusted risk and preparedness. The derivation of the various scores is illustrated in the worksheet, "Overview of the Tool." To navigate to this sheet, return to the Main Menu and click the yellow "Overview of the Tool" button in the "Overview" box.
C18: Individual healthcare coalitions or LPHAs may find a specialized assessment more helpful. For this reason, the MOPHRAT conducts the following two sub-analyses in addition to the overall public health risk assessment. 1. Public Health System Risk Assessment: This sub-analysis examines severity in four domains: human impact, healthcare service impact, community impact, and public health service impact. Preparedness is assessed using only the 15 Public Health Preparedness capabilities. 2. Healthcare System Risk Assessment: This sub-analysis examines severity in three domains: human impact, healthcare service impact, and inpatient healthcare facility infrastructure impact. Preparedness is assessed using only the four Healthcare System Preparedness capabilities. The differences between the two sub-analyses is visualized in the worksheet "Overview of the Tool." To navigate to this sheet, return to the Main Menu and click the yellow "Overview of the Tool" button in the "Overview" box.
C26: How do we get started? This workbook guides users through the MOPHRAT and produces a customized assessment of the biggest threats to public health in your jurisdiction. The following instructions will allow users to navigate through the workbook. In order for this workbook to operate correctly, macros must be enabled. Please enable content and macros when prompted at the top of your Excel screen, and save edits as an Excel macro-enabled workbook.
C28: Step 1: Entering Baseline Data The tool calculates severity by comparing hazard-specific values to baseline values in a number of metrics. In order to do this, baseline information must be entered in the “Baseline Health, Services, and Infrastructure” worksheet. Navigate to this sheet using the purple button in the “Step 1. Baseline Data” box in the Main Menu. County-level baseline data for many of the hazards have been provided for you on a separate spreadsheet as a part of the MOPHRAT information from SEMA/DHSS. If you have questions or concerns, please contact the MOPHRAT team for assistance.
C29: = | D29: It is possible to use the tool without entering baseline data, if you choose to use a qualitative method to estimate the impacts of various hazards. More information about this option can be found in the "Step 2: Hazard Data" section below. However, where data is available, it is recommended that you enter baseline data anyway, as the information will help you estimate impacts qualitatively.
C30: = | D30: The tool assesses the need for plans addressing at-risk populations by examining both the special needs of at-risk populations (addressed later), and the size of these populations in your jurisdiction. Enter this population size data in the “Baseline At-Risk Populations” worksheet. Navigate to this sheet using the blue button in the “Step 1. Baseline Data” box in the Main Menu.
C31: = | D31: In order to assess the level of preparedness in the jurisdiction, the current status of the 15 Public Health Preparedness capabilities and the four Healthcare System Preparedness capabilities must be entered. The Capabilities Planning Guide (CPG) released by the U.S. Department of Health and Human Services will help you determine the current status. Select the appropriate status from the drop-down menu next to each function in the “Baseline Public Health Preparedness Capability Status” and "Baseline Healthcare System Preparedness Capability Status" worksheets. Navigate to these sheets using the orange buttons in the “Step 1. Baseline Data” box in the Main Menu.
C32: = | D32: The MOPHRAT uses certain community characteristics to estimate the impact of specific hazard scenarios. If you would like to change the hazard-specific estimates pre-entered into the hazard worksheets in the MOPHRAT, this worksheet does NOT need to be completed. You may leave it blank. However, if you would like to accept the impact estimates developed by DHSS/SEMA in the many individual hazard worksheets, data must be entered into the “Community Characteristics” worksheet. Navigate to this sheet using the pink button in the “Step 1. Baseline Data” box in the Main Menu.
C33: Step 2: Entering Hazard Data Individual worksheets for entering the specific impacts of each hazard are located in the "Step 2. Hazard Data" box in the Main Menu. These sheets are pre-filled with data provided by DHSS/SEMA. The MOPRHAT team made a number of assumptions about the likely impacts of hazards, based on local data from historic incidents, published literature from similar incidents in other regions, and information about local infrastructure and vulnerabilities. These assumptions apply to jurisdictions within the state of Missouri, and should not be applied to other geographically distinct regions. For example, the impact of a coastal storm would likely be much more severe along the Gulf Coast.
C34: = | D34: If you would like to accept the data and assumptions made by DHSS/SEMA, the "Community Characteristics" worksheet must be completed. Navigate to this sheet using the pink button in the “Step 1. Baseline Data” box in the Main Menu.
C35: = | D35: If you would like to reject the data and assumptions made by DHSS/SEMA and enter hazard-specific data you believe is more relevant to your unique jurisdiction, you can enter data directly into the hazard worksheets. If you would like, space is provided to enter an explanation/justification for your estimate, or the source of your data. Entering the data's citation is important for additional iterations of your hazard analysis, so that the data can be reproduced by staff into the future.
C36: = | D36: If you cannot find any data for a specific hazard, then you can rely on expert opinions and experience to estimate the impacts of disasters. It is recommended that you record that the number is an estimation and the agencies involved in arriving at that estimate in the "Data Source / Explanation" space provided, for your own future reference.
C37: = | D37: For many of the metrics, the tool provides an option for you to enter a data range instead of an actual estimate. This option works better if you use are using a qualitative method to estimate the impacts of the hazard. If there is a qualitative option selected from the drop-down menu, the tool will automatically use it (instead of whatever may be entered in the space for entering quantitative data) to calculate the score for that metric. To use the quantitative value instead, either select "Use Qualitative Value" or simply delete the entry in the qualitative cell.
C38: = | D38: Complete the At-Risk Populations section of each worksheet by selecting whether or not special plans and procedures must be in place for each of the listed at-risk populations as part of a complete public health response to the given hazard.
C39: = | D39: Complete the Preparedness Section of each worksheet by selecting how relevant each of the PHEP capabilities is to the public health response to the given hazard. For reference, all of the functions that make up each capability is elaborated in the “Baseline Public Health Preparedness Capability Status” and "Baseline Healthcare System Preparedness Capability Status" worksheets. You can navigate to these sheets by returning to the Main Menu and selecting the orange buttons in the "Step 1. Baseline Data" box in the Main Menu.
C42: Adding Your Own Hazards Some jurisdictions may be affected by additional hazards that were not considered as part of the Missouri-specific hazards and/or National Planning Scenarios analysis in the provided data. The MOPHRAT includes 10 blank hazard worksheets which can be used to add additional hazards to your analysis if you choose.
C43: = | D43: To access these blank hazard worksheets, select any of the yellow buttons labeled "Additional Hazard 1" through "Additional Hazard 10" in the "Step 2. Hazard Data" box in the Main Menu.
C44: = | D44: Enter the name of the hazard to be analyzed in the cell labeled "Hazard Name" (cell G3). The additional hazard will be included in all analysis graphs, charts, and summaries ONLY if something is entered into this cell. If the cell is left blank, the hazard will not appear in the final analysis.
C45: = | D45: Complete the rest of the data input as you would any of the other hazard worksheets. There is no data pre-filled into these worksheets, so you must utilize historical data, predictive models, or educated guesses to complete the assessment.
C46: Step 3: Analysis of the Results The analysis section of the MOPHRAT generates a number of charts and graphs. These sections can be viewed by navigating to the “Step 3. Analysis” box in the Main Menu and selecting the various buttons. The charts and graphs provide a clearer picture of strategic gaps and operational needs for an LPHA. Mitigation strategies can then be developed to achieve short and long term outcomes related to assessed risks.
C47: = | D47: The “Summary of Impacts” is designed to be printed on legal-sized paper. This sheet summarizes all of the data that has been entered for all of the hazards. The demands and critical service interruptions summarized in this sheet can be used to develop benchmarks and directly guide preparedness planning.
C48: = | D48: The "Severity" worksheet compares the severity of all hazards in each domain. By examining these graphs, you can determine which hazards have the greatest impact on each of the five domains.
C49: = | D49: The “Planning Priority Scores” sheet is a simple rank-order list of the hazards in order from highest to lowest Planning Priority. All of the individual hazard worksheets must have been completed for this sheet to display correctly, and macros MUST be enabled.
C50: = | D50: The “Summary of Scores” worksheet displays the “Probability Score,” “Severity Score,” “Risk Score,” “At-Risk Populations Score,” ”Adjusted Risk Score,” “Preparedness Score,” and “Planning Priority Score” for each of the hazards analyzed. The cells in this worksheet are color-coded, so the most severe values are shown in red and the least severe are displayed in green. All of the individual hazard worksheets must have been completed for this sheet to display correctly.
C51: = | D51: The “Public Health vs. Healthcare” worksheet compares the two sub-analyses: Public Health System and Healthcare System. In this worksheet, graphs compare the three analyses for each different score, allowing you to identify hazards that have a greater effect of the healthcare system than the public health system and vice versa.
C52: = | D52: The “Probability vs. Severity” sheet displays graphs of the probability and severity for all hazards. All of the individual hazard worksheets must have been completed for this sheet to display correctly. The graphs are automatically generated, and label positions may have to be changed in order for the figures to be easily readable. To do this, right-click on the label and select “Format Data Labels.”
C53: = | D53: The “Adjusted Risk vs. Preparedness” sheet displays graphs of the adjusted risk and preparedness for all hazards. All of the individual hazard worksheets must have been completed for this sheet to display correctly. The graphs are automatically generated, and label positions may have to be changed in order for the figures to be easily readable. To do this, right-click on the label and select “Format Data Labels.” You may have to adjust the range of the y-axis to properly display the results. To do this, right-click on the y-axis and select "Format axis." Set the Axis Options to reflect a narrow range that includes all values.
C54: = | D54: The “At-Risk Populations” sheet displays a graph of the At-Risk Populations Scores of all hazards. All of the individual hazard worksheets must have been completed for this sheet to display correctly.
C55: = | D55: The “Individual Hazard Analyses” sheet is a menu that links to an in-depth analysis of each hazard, based on the information provided in the Hazard worksheets. These analyses include a graph of the five severity domains, an assessment of the needs and the sizes of at-risk populations, and a graph of the status of each the Public Health Preparedness capabilities and Healthcare System Preparedness capabilities and its relevance to the specific hazard. The graphs on these sheets are automatically generated, and label positions may have to be changed in order for the figures to be easily readable. To do this, right-click on the label and select “Format Data Labels.” These worksheets can also be accessed by clicking on the button at the bottom of each hazard worksheet.

Sheet Overview
E2: Public Health Risk Assessment Tool
B4: To see how each Score is calculated, hover your mouse over that Score. A more detailed explanation of each calculation is found in the seperate, detailed How-To Guide document that accompanies this workbook. The MOPHRAT includes an overall analysis that captures the impact of disasters on both healthcare and public health systems, as well as two more specialized sub-analyses that capture the specific impacts of disasters on the public health system and/or the healthcare system. Scroll down to see these sub-analyses, or click here:
C5: = | D5: Public Health System Risk Assessment
C6: = | D6: Healthcare System Risk Assessment
E8: Overall Assessment
B10: Probability Score
B14: Human Impact Score | G14: Risk Score
B17: Healthcare Service Impact Score
B20: Inpatient Healthcare Facility Infrastructure Impact Score | E20: Severity Score
I22: Adjusted Risk Score
B23: Community Impact Score
B26: Public Health Service Impact Score
K29: Planning Priority Score
B30: At-Risk Populations Score
B34: Public Health Preparedness Score
E35: Preparedness Score
B37: Healthcare Preparedness Score
E44: Public Health System Risk Assessment
B46: Probability
B50: Human Impact Score | G50: Public Health System Risk Score
B53: Healthcare Service Impact Score
B56: Inpatient Healthcare Facility Infrastructure Impact Score | E56: Public Health System Severity Score
I58: Public Health System Adjusted Risk Score
B59: Community Impact Score
B62: Public Health Service Impact Score
K65: Public Health System Planning Priority Score
B66: At-Risk Populations Score
B70: Public Health Preparedness Score
B73: Healthcare Preparedness Score
E80: Healthcare System Risk Assessment
B82: Probability
B86: Human Impact Score | G86: Healthcare System Risk Score
B89: Healthcare Service Impact Score
B92: Inpatient Healthcare Facility Infrastructure Impact Score | E92: Healthcare System Severity Score
I94: Healthcare System Adjusted Risk Score
B95: Community Impact Score
B98: Public Health Service Impact Score
K101: Healthcare System Planning Priority Score
B102: At-Risk Populations Score
B106: Public Health Preparedness Score
B109: Healthcare Preparedness Score

Sheet Baseline Health
F2: Public Health Risk Assessment Tool
F3: Baseline Health, Services, and Infrastructure
C6: Total Population in Jurisdiction: | G6: 0
F8: Human Impact
C10: Mortality
C11: Total Deaths Per Day: | G11: 0
C12: Deaths per 100,000 Per Day: | G12: =IF($G$6<>0,G11*100000/$G$6,"Not Calculated") -> Not Calculated
C13: Data source:
C14: Bureau of Health Care Analysis and Data Dissemination (BHCADD)
C16: EMS Transports
C17: Total Transports Per Day: | G17: 0
C18: Transports per 100,000 Per Day: | G18: =IF($G$6<>0,G17*100000/$G$6,"Not Calculated") -> Not Calculated
C19: Data source:
C20: DHSS, Bureau of Emergency Medical Services, https://health.mo.gov/safety/ems/committees.php
C22: ED Visits
C23: Total ED Visits Per Day:
C24: ED Visits per 100,000 Per Day: | G24: =IF($G$6<>0,G23*100000/$G$6,"Not Calculated") -> Not Calculated
C25: Data source:
C26: Bureau of Health Care Analysis and Data Dissemination (BHCADD)
C28: Primary Care Office Visits
C29: Total Office Visits Per Day: | G29: 0
C30: Office Visits per 100,000 Per Day: | G30: =IF($G$6<>0,G29*100000/$G$6,"Not Calculated") -> Not Calculated
C31: Data source:
C32: Office of Primary Care and Rural Health, DHSS, Primary Care Association, CMS medicare enrollment (office visits per day)
C34: Trauma Center Injuries
C35: Total Trauma Center Injuries Per Day: | G35: 0
C36: Trauma Ctr Injuries per 100,000 Per Day: | G36: =IF($G$6<>0,G35*100000/$G$6,"Not Calculated") -> Not Calculated
C37: Data source:
C38: DHSS, Bureau of Hospital Standards, Time Critical Diagnosis (TCD) Program
F42: Healthcare Service Impact
C44: Outpatient Services
C45: Total PCPs: | G45: 1
C46: PCPs per 100,000: | G46: =IF($G$6<>0,G45*100000/$G$6,"Not Calculated") -> Not Calculated
C47: Data source:
C48: BHCADD. Note: must be greater than 0. 0 will break the formula.
C50: Emergency Department Services
C51: Total ED Beds: | G51: 0
C52: ED Beds per 100,000: | G52: =IF($G$6<>0,G51*100000/$G$6,"Not Calculated") -> Not Calculated
C53: Data source:
C54: Bureau of Health Care Analysis and Data Dissemination (BHCADD)
C56: Hospital Beds
C57: General Acute Care Hospital Beds: | G57: 0
C58: Specialty Hospital Beds: | G58: 0
C59: Total Hospital Beds: | G59: =G57+G58 -> 0
C60: Hospital Beds per 100,000: | G60: =IF($G$6<>0,G59*100000/$G$6,"Not Calculated") -> Not Calculated
C61: Data source:
C62: Bureau of Health Care Analysis and Data Dissemination (BHCADD)
C64: Ancillary Services
C65: Total Pharmacists: | G65: 0
C66: Pharmacists per 100,000: | G66: =IF($G$6<>0,G65*100000/$G$6,"Not Calculated") -> Not Calculated
C67: Data source:
C68: Bureau of Health Care Analysis and Data Dissemination (BHCADD)
C70: Trauma Units
C71: Total Trauma Center Functioning ORs: | G71: 0
C72: Trauma ORs per 100,000: | G72: =IF($G$6<>0,G71*100000/$G$6,"Not Calculated") -> Not Calculated
C73: Data source:
C74: DHSS, Bureau of Hospital Standards, Time Critical Diagnosis Program. Note: must be greater than 0. 0 will break the formula.
C76: Mental Health Services
C77: Total Mental Health Providers: | G77: 0
C78: Mental Health Providers per 100,000: | G78: =IF($G$6<>0,G77*100000/$G$6,"Not Calculated") -> Not Calculated
C79: Data source:
F84: Inpatient Healthcare Facility Infrastructure Impact
C86: Hospital Personnel
C87: Total Hospital-Employed FTE RNs: | G87: 0
C88: RNs per Shift: | G88: =G87*1768/8760 -> 0
C89: Data source:
C90: Bureau of Health Care Analysis and Data Dissemination (BHCADD)
C92: Total Patient Days of Care Per Year: | G92: 0
C93: Patients Per Day: | G93: =G92/365 -> 0
C94: Data source:
C95: Bureau of Health Care Analysis and Data Dissemination (BHCADD)
C97: Patient-to-Nurse Ratio: | G97: =IF(G88=0,"N/A",G93/G88) -> N/A
C99: Regional Inpatient Facility Beds
C100: Total Hospital Beds: | G100: =G59 -> 0
C101: Total Nursing Home Beds: | G101: 0
C102: Total Inpatient Beds: | G102: =G100+G101 -> 0
C103: Data source:
C104: Bureau of Health Care Analysis and Data Dissemination (BHCADD)
C106: Facility Generator Fuel Supply
C107: Smallest Number of Hours of Back-Up Generator Fuel On Hand in Facility:
G108: 40
C109: Data source:
C110: Determined Locally. If unknown, use 40.
C112: Facility Critical Supplies
C113: Smallest Number of Days of Linens On Hand in Facility:
G114: 7
C115: Data source:
C116: Determined Locally. If unknown, use 7.
F120: Public Health Service Impact
C122: Public Health Personnel
C123: Total Public Health Staff: | G123: 0
C124: Public Health Staff per 100,000: | G124: =IF($G$6<>0,G123*100000/$G$6,"Not Calculated") -> Not Calculated
C125: Data source:
C126: LPHA, DHSS
C128: Surveillance
C129: Number of Case Reports per Day to Health Department (requiring investigation, monitoring, tracking, or other public health action):
G132: 0
C133: Data source:
C134: WebSurv/EpiTrax (LPHA or DHSS can calculate) https://health.mo.gov/living/healthcondiseases/communicable/communicabledisease/pdf/BCDCP_district_map.pdf
C136: Laboratory Services
C137: No. of Specimens Processed per Day: | G137: 1
C138: Data source:
C139: WebSurve, EPiTrax or LPHA level Note: must be greater than 0. 0 will break the formula.
C141: Health Communications and Public Information
C142: Number of Personnel Hours per Week Needed to Generate Health Communications to External Partners or the General Public):
G145: 0
C146: Data source:
C147: LPHA
C149: Fatality Management
C150: Total Morgue Capacity: | G150: 0
C151: Morgue Capacity per 100,000: | G151: =IF($G$6<>0,G150*100000/$G$6,"Not Calculated") -> Not Calculated
C152: Data source:
C153: MHA Capacity Survey (Hospital Morgue Capacity) and MO Funeral Directors and Embalmers Association (2020 survey).

Sheet Baseline At-Risk Pops
F2: Public Health Risk Assessment Tool
F3: Baseline At-Risk Populations
C6: Hearing Disability
C7: Percent of Population with a Hearing Disability: | H7: 0
C8: Population Size Score: | H8: =IF(H7=0,0,IF(H7<5,1,IF(H7<10,2,IF(H7<15,3,4)))) -> 0
C9: Data Source:
C10: US Census ACS: Total civilian noninstitutionalized population with a hearing difficulty (Might not have single county, but will have a group of counties.)
C12: Vision Disability
C13: Percent of Population with a Vision Disability: | H13: 0
C14: Population Size Score: | H14: =IF(H13=0,0,IF(H13<5,1,IF(H13<10,2,IF(H13<15,3,4)))) -> 0
C15: Data Source:
C16: US Census ACS: Total civilian noninstitutionalized population with a vision difficulty
C18: Ambulatory Disability
C19: Percent of Population with an Ambulatory Disability:
H20: 0
C21: Population Size Score: | H21: =IF(H20=0,0,IF(H20<5,1,IF(H20<10,2,IF(H20<15,3,4)))) -> 0
C22: Data Source:
C23: US Census ACS: Total civilian noninstitutionalized population 5 years and over with an ambulatory difficulty
C25: Cognitive Disability
C26: Percent of Population with a Cognitive Disability: | H26: 0
C27: Population Size Score: | H27: =IF(H26=0,0,IF(H26<5,1,IF(H26<10,2,IF(H26<15,3,4)))) -> 0
C28: Data Source:
C29: US Census ACS: Total civilian noninstitutionalized population 5 years and over with a cognitive difficulty
C31: Limited English Proficiency
C32: Percent of Population with Limited English Proficiency:
H33: 0
C34: Population Size Score: | H34: =IF(H33=0,0,IF(H33<5,1,IF(H33<10,2,IF(H33<15,3,4)))) -> 0
C35: Data Source:
C36: http://www.countyhealthrankings.org/#app/
C38: Poverty
C39: Percent of Population Below Poverty Level: | H39: 0
C40: Population Size Score: | H40: =IF(H39=0,0,IF(H39<5,1,IF(H39<10,2,IF(H39<15,3,4)))) -> 0
C41: Data Source:
C42: US Census ACS: Below poverty level
C44: Chronic Diseases (Diabetes)
C45: Percent of Population with Diabetes: | H45: 0
C46: Population Size Score: | H46: =IF(H45=0,0,IF(H45<5,1,IF(H45<10,2,IF(H45<15,3,4)))) -> 0
C47: Data Source:
C48: http://www.countyhealthrankings.org/#app/
C50: Children Under 18
C51: Percent of Population Under Age 18: | H51: 0
C52: Population Size Score: | H52: =IF(H51=0,0,IF(H51<5,1,IF(H51<10,2,IF(H51<15,3,4)))) -> 0
C53: Data Source:
C54: US Census ACS: Under 18 years
C56: Elderly 65 and Older
C57: Percent of Population Age 65 and Older: | H57: 0
C58: Population Size Score: | H58: =IF(H57=0,0,IF(H57<5,1,IF(H57<10,2,IF(H57<15,3,4)))) -> 0
C59: Data Source:
C60: US Census ACS: 65 years and over

Sheet Baseline PHP
G2: Public Health Risk Assessment Tool
G3: Baseline Public Health Preparedness Capability Status
C6: Community Preparedness | I6: Current Status: | J6: Status Score:
C8: Function 1: Determine risks to the health of the jurisdiction. Identify the potential hazards, vulnerabilities, and risks in the community that relate to the jurisdiction’s public health, medical, and mental/behavioral health systems, the relationship of those risks to human impact, interruption of public health, medical, and mental/behavioral health services, and the impact of those risks on the jurisdiction’s public health, medical, and mental/behavioral health infrastructure. | I8: No ability/capacity | J8: =IF(I8=$B$226,0,IF(I8=$B$227,1,IF(I8=$B$228,2,IF(I8=$B$229,3,IF(I8=$B$230,4,"Not Calculated"))))) -> 0
C10: Function 2: Build community partnerships to support health preparedness. Identify and engage with public and private community partners who can do the following: • Assist with the mitigation of identified health risks • Be integrated into the jurisdiction’s all-hazards emergency plans with defined community roles and responsibilities related to the provision of public health, medical, and mental/behavioral health as directed under the Emergency Support Function #8 definition at the state or local level. | I10: No ability/capacity | J10: =IF(I10=$B$226,0,IF(I10=$B$227,1,IF(I10=$B$228,2,IF(I10=$B$229,3,IF(I10=$B$230,4,"Not Calculated"))))) -> 0
C12: Function 3: Engage with community organizations to foster public health, medical, and mental/behavioral health social networks. Engage with community organizations to foster social connections that assure public health, medical and mental/behavioral health services in a community before, during, and after an incident. | I12: No ability/capacity | J12: =IF(I12=$B$226,0,IF(I12=$B$227,1,IF(I12=$B$228,2,IF(I12=$B$229,3,IF(I12=$B$230,4,"Not Calculated"))))) -> 0
C14: Function 4: Coordinate training or guidance to ensure community engagement in preparedness efforts. Coordinate with emergency management, community organizations, businesses, and other partners to provide public health preparedness and response training or guidance to community partners for the specific risks identified in the jurisdictional risk assessment. | I14: No ability/capacity | J14: =IF(I14=$B$226,0,IF(I14=$B$227,1,IF(I14=$B$228,2,IF(I14=$B$229,3,IF(I14=$B$230,4,"Not Calculated"))))) -> 0
C16: Community Preparedness Score | J16: =IF(OR(J10="Not Calculated",J12="Not Calculated",J14="Not Calculated")=TRUE,"Not Calculated",AVERAGE(J8,J10,J12,J14)) -> 0
C20: Community Recovery
C22: Function 1: Identify and monitor public health, medical, and mental/behavioral health system recovery needs. Assess the impact of an incident on the public health system in collaboration with the jurisdictional government and community and faith-based partners, in order to determine and prioritize the public health, medical, or mental/behavioral health system recovery needs. This function addresses the intent of National Health Security Strategy Outcome 8 that there should be a collaborative effort within a jurisdiction that results in the identification of public health, medical, and mental/behavioral assets, facilities, and other resources which either need to be rebuilt after an incident or which can be used to guide post-incident reconstitution activities. | I22: No ability/capacity | J22: =IF(I22=$B$226,0,IF(I22=$B$227,1,IF(I22=$B$228,2,IF(I22=$B$229,3,IF(I22=$B$230,4,"Not Calculated"))))) -> 0
C24: Function 2: Coordinate community public health, medical, and mental/behavioral health system recovery operations. Facilitate interaction among community and faith-based organizations (e.g., businesses and non-governmental organizations) to build a network of support services which will minimize any negative public health effects of the incident. This function addresses the National Health Security Strategy Objective 8 outcome recommendation that jurisdictions should have an integrated plan as to how post-incident public health, medical, and mental/behavioral services can be coordinated with organizations responsible for community restoration. | I24: No ability/capacity | J24: =IF(I24=$B$226,0,IF(I24=$B$227,1,IF(I24=$B$228,2,IF(I24=$B$229,3,IF(I24=$B$230,4,"Not Calculated"))))) -> 0
C26: Function 3: Implement corrective actions to mitigate damages from future incidents. Incorporate observations from the current incident to describe actions needed to return to a level of public health, medical, and mental/behavioral health system function at least comparable to pre-incident levels or improved levels where appropriate. Document these items in a written after action report and improvement plan, and implement those corrective actions that are within the purview of public health. This function addresses the intent of the National Health Security Strategy Outcome 8 recommendation that jurisdictions should have a monitoring and evaluation plan for recovery efforts. | I26: No ability/capacity | J26: =IF(I26=$B$226,0,IF(I26=$B$227,1,IF(I26=$B$228,2,IF(I26=$B$229,3,IF(I26=$B$230,4,"Not Calculated"))))) -> 0
C28: Community Recovery Score | J28: =IF(OR(J22="Not Calculated",J24="Not Calculated",J26="Not Calculated")=TRUE,"Not Calculated",AVERAGE(J22,J24,J26)) -> 0
C32: Emergency Operations Coordination
C34: Function 1: Conduct preliminary assessment to determine need for public activation. Define the public health impact of an event or incident and gather subject matter experts to make recommendations on the need for, and scale of, incident command operations. | I34: No ability/capacity | J34: =IF(I34=$B$226,0,IF(I34=$B$227,1,IF(I34=$B$228,2,IF(I34=$B$229,3,IF(I34=$B$230,4,"Not Calculated"))))) -> 0
C36: Function 2: Activate public health emergency operations In preparation for an event, or in response to an incident of public health significance, engage resources (e.g., human, technical, physical space, and physical assets) to address the incident or event in accordance with the National Incident Management System and consistent with jurisdictional standards and practices. | I36: No ability/capacity | J36: =IF(I36=$B$226,0,IF(I36=$B$227,1,IF(I36=$B$228,2,IF(I36=$B$229,3,IF(I36=$B$230,4,"Not Calculated"))))) -> 0
C38: Function 3: Develop incident response strategy. Produce or provide input to an Incident Commander or Unified Command approved, written Incident Action Plan, as dictated by the incident, containing objectives reflecting the response strategy for managing Type 1, Type 2, and Type 3 events or incidents, as described in the National Incident Management System, during one or more operational periods. | I38: No ability/capacity | J38: =IF(I38=$B$226,0,IF(I38=$B$227,1,IF(I38=$B$228,2,IF(I38=$B$229,3,IF(I38=$B$230,4,"Not Calculated"))))) -> 0
C40: Function 4: Manage and sustain the public health response. Direct ongoing public health emergency operations to sustain the public health and medical response for the duration of the response, including multiple operational periods and multiple concurrent responses. | I40: No ability/capacity | J40: =IF(I40=$B$226,0,IF(I40=$B$227,1,IF(I40=$B$228,2,IF(I40=$B$229,3,IF(I40=$B$230,4,"Not Calculated"))))) -> 0
C42: Function 5: Demobilize and evaluate public health emergency operations. Release and return resources that are no longer required by the event or incident to their pre-ready state and conduct an assessment of the efforts, resources, actions, leadership, coordination, and communication utilized during the incident for the purpose of identifying and implementing continuous improvement activities. | I42: No ability/capacity | J42: =IF(I42=$B$226,0,IF(I42=$B$227,1,IF(I42=$B$228,2,IF(I42=$B$229,3,IF(I42=$B$230,4,"Not Calculated"))))) -> 0
C44: Emergency Operations Coordination Score | J44: =IF(OR(J34="Not Calculated",J36="Not Calculated",J38="Not Calculated",J40="Not Calculated",J42="Not Calculated")=TRUE,"Not Calculated",AVERAGE(J34,J36,J38,J40,J42)) -> 0
C48: Emergency Public Info and Warning
C50: Function 1: Activate the emergency public information system. Notify and assemble key public information personnel and potential spokespersons, which were identified prior to an incident, to provide information to the public during an incident. | I50: No ability/capacity | J50: =IF(I50=$B$226,0,IF(I50=$B$227,1,IF(I50=$B$228,2,IF(I50=$B$229,3,IF(I50=$B$230,4,"Not Calculated"))))) -> 0
C52: Function 2: Determine the need for a joint public information system. Determine the need for, and scale of, a joint public information system, including if appropriate, activation of a Joint Information Center within the public health agency. Participate with other jurisdictional Joint Information Centers in order to combine information sharing abilities and coordinate messages. | I52: No ability/capacity | J52: =IF(I52=$B$226,0,IF(I52=$B$227,1,IF(I52=$B$228,2,IF(I52=$B$229,3,IF(I52=$B$230,4,"Not Calculated"))))) -> 0
C54: Function 3: Establish and participate in information system operations. Monitor jurisdictional media, conduct press briefings, and provide rumor control for media outlets, utilizing a National Incident Management System compliant framework for coordinating incident-related communications. | I54: No ability/capacity | J54: =IF(I54=$B$226,0,IF(I54=$B$227,1,IF(I54=$B$228,2,IF(I54=$B$229,3,IF(I54=$B$230,4,"Not Calculated"))))) -> 0
C56: Function 4: Establish avenues for public interaction and information exchange. Provide methods for the public to contact the health department with questions and concerns through call centers, help desks, hotlines, social media, web chat or other communication platforms. | I56: No ability/capacity | J56: =IF(I56=$B$226,0,IF(I56=$B$227,1,IF(I56=$B$228,2,IF(I56=$B$229,3,IF(I56=$B$230,4,"Not Calculated"))))) -> 0
C58: Function 5: Issue public information, alerts, warnings, and notifications. Utilizing crisis and emergency risk communication principles, disseminate critical health and safety information to alert the media, public, and other stakeholders to potential health risks and reduce the risk of exposure to ongoing and potential hazards. | I58: No ability/capacity | J58: =IF(I58=$B$226,0,IF(I58=$B$227,1,IF(I58=$B$228,2,IF(I58=$B$229,3,IF(I58=$B$230,4,"Not Calculated"))))) -> 0
C60: Emergency Public Info and Warning Score | J60: =IF(OR(J50="Not Calculated",J52="Not Calculated",J54="Not Calculated",J56="Not Calculated",J58="Not Calculated")=TRUE,"Not Calculated",AVERAGE(J50,J52,J54,J56,J58)) -> 0
C64: Fatality Management
C66: Function 1: Determine role for public health in fatality management. Coordinate with the lead jurisdictional authority (e.g., coroner, medical examiner, sheriff, or other agent) to identify the roles and responsibilities of jurisdictional public health entities in fatality management activities. | I66: No ability/capacity | J66: =IF(I66=$B$226,0,IF(I66=$B$227,1,IF(I66=$B$228,2,IF(I66=$B$229,3,IF(I66=$B$230,4,"Not Calculated"))))) -> 0
C68: Function 2: Activate public health fatality management operations. Facilitate access to resources (e.g., human, record keeping, and physical space) to address the fatalities from an incident in accordance with public health jurisdictional standards and practices and as requested by lead jurisdictional authority. | I68: No ability/capacity | J68: =IF(I68=$B$226,0,IF(I68=$B$227,1,IF(I68=$B$228,2,IF(I68=$B$229,3,IF(I68=$B$230,4,"Not Calculated"))))) -> 0
C70: Function 3: Assist in the collection and dissemination of ante mortem data. Assist, if requested, the lead jurisdictional authority and jurisdictional and regional partners to gather and disseminate ante mortem data through a Family Assistance Center Model or other mechanism. | I70: No ability/capacity | J70: =IF(I70=$B$226,0,IF(I70=$B$227,1,IF(I70=$B$228,2,IF(I70=$B$229,3,IF(I70=$B$230,4,"Not Calculated"))))) -> 0
C72: Function 4: Participate in survivor mental/behavioral health services. Coordinate with the lead jurisdictional authority and jurisdictional and regional partners to support the provision of non-intrusive, culturally sensitive mental/behavioral health support services to family members of the deceased, incident survivors, and responders, if requested. | I72: No ability/capacity | J72: =IF(I72=$B$226,0,IF(I72=$B$227,1,IF(I72=$B$228,2,IF(I72=$B$229,3,IF(I72=$B$230,4,"Not Calculated"))))) -> 0
C74: Function 5: Participate in fatality processing and storage operations. Assist the lead jurisdictional authority and partners in ensuring that human remains and associated personal effects are safely recovered, processed, transported, tracked, stored, and disposed of or released to authorized person(s), if requested. | I74: No ability/capacity | J74: =IF(I74=$B$226,0,IF(I74=$B$227,1,IF(I74=$B$228,2,IF(I74=$B$229,3,IF(I74=$B$230,4,"Not Calculated"))))) -> 0
C76: Fatality Management Score | J76: =IF(OR(J66="Not Calculated",J68="Not Calculated",J70="Not Calculated",J72="Not Calculated",J74="Not Calculated")=TRUE,"Not Calculated",AVERAGE(J66,J68,J70,J72,J74)) -> 0
C80: Information Sharing
C82: Function 1: Identify stakeholders to be incorporated into information flow. Identify stakeholders within the jurisdiction across public health, medical, law enforcement, and other disciplines that should be included in information exchange, and identify inter-jurisdictional public health stakeholders that should be included in information exchange. Determine the levels of security clearance needed for information access across and between these stakeholders. | I82: No ability/capacity | J82: =IF(I82=$B$226,0,IF(I82=$B$227,1,IF(I82=$B$228,2,IF(I82=$B$229,3,IF(I82=$B$230,4,"Not Calculated"))))) -> 0
C84: Function 2: Identify and develop rules and data elements for sharing. Define minimum requirements for information sharing for the purpose of developing and maintaining situational awareness. Minimum requirements include the following elements: • When data should be shared • Who is authorized to receive data • Who is authorized to share data • What types of data can be shared • Data use and re-release parameters • What data protections are sufficient • Legal, statutory, privacy, and intellectual property considerations | I84: No ability/capacity | J84: =IF(I84=$B$226,0,IF(I84=$B$227,1,IF(I84=$B$228,2,IF(I84=$B$229,3,IF(I84=$B$230,4,"Not Calculated"))))) -> 0
C86: Function 3: Exchange information to determine a common operating picture. Share information (both send and receive) within the public health agency, with other identified intra-jurisdictional stakeholders, and with identified inter-jurisdictional stakeholders, following available national standards for data vocabulary, storage, transport, security, and accessibility. | I86: No ability/capacity | J86: =IF(I86=$B$226,0,IF(I86=$B$227,1,IF(I86=$B$228,2,IF(I86=$B$229,3,IF(I86=$B$230,4,"Not Calculated"))))) -> 0
C88: Information Sharing Score | J88: =IF(OR(J82="Not Calculated",J84="Not Calculated",J86="Not Calculated")=TRUE,"Not Calculated",AVERAGE(J82,J84,J86)) -> 0
C92: Mass Care
C94: Function 1: Determine public health role in mass care operations. In conjunction with Emergency Support Function #6, #8, and #11 partners, emergency management, and other partner agencies, determine the jurisdictional public health roles and responsibilities in providing medical care, health services, and shelter services during a mass care incident. | I94: No ability/capacity | J94: =IF(I94=$B$226,0,IF(I94=$B$227,1,IF(I94=$B$228,2,IF(I94=$B$229,3,IF(I94=$B$230,4,"Not Calculated"))))) -> 0
C96: Function 2: Determine mass care needs of the impacted population. In conjunction with Emergency Support Function #6, #8, and #11 partners, emergency management and other partner agencies, determine the public health, medical, mental/behavioral health needs of those impacted by the incident. | I96: No ability/capacity | J96: =IF(I96=$B$226,0,IF(I96=$B$227,1,IF(I96=$B$228,2,IF(I96=$B$229,3,IF(I96=$B$230,4,"Not Calculated"))))) -> 0
C98: Function 3: Coordinate public health, medical, and mental/behavioral health services. Coordinate with partner agencies to provide access to health services, medication and consumable medical supplies (e.g., hearing aid batteries and incontinence supplies), and durable medical equipment for the impacted population. | I98: No ability/capacity | J98: =IF(I98=$B$226,0,IF(I98=$B$227,1,IF(I98=$B$228,2,IF(I98=$B$229,3,IF(I98=$B$230,4,"Not Calculated"))))) -> 0
C100: Function 4: Monitor mass care population health. Monitor ongoing health-related mass care support, and ensure health needs continue to be met as the incident response evolves. | I100: No ability/capacity | J100: =IF(I100=$B$226,0,IF(I100=$B$227,1,IF(I100=$B$228,2,IF(I100=$B$229,3,IF(I100=$B$230,4,"Not Calculated"))))) -> 0
C102: Mass Care Score | J102: =IF(OR(J96="Not Calculated",J98="Not Calculated",J100="Not Calculated")=TRUE,"Not Calculated",AVERAGE(J96,J98,J100)) -> 0
C106: Medical Countermeasure Dispensing
C108: Function 1: Identify and initiate medical countermeasure dispensing strategies. Notify and coordinate with partners to identify roles and responsibilities consistent with the identified agent or exposure and within a time frame appropriate to the incident. | I108: No ability/capacity | J108: =IF(I108=$B$226,0,IF(I108=$B$227,1,IF(I108=$B$228,2,IF(I108=$B$229,3,IF(I108=$B$230,4,"Not Calculated"))))) -> 0
C110: Function 2: Receive medical countermeasures. Identify dispensing sites and/or intermediary distribution sites and prepare these modalities to receive medical countermeasures in a time frame applicable to the agent or exposure. | I110: No ability/capacity | J110: =IF(I110=$B$226,0,IF(I110=$B$227,1,IF(I110=$B$228,2,IF(I110=$B$229,3,IF(I110=$B$230,4,"Not Calculated"))))) -> 0
C112: Function 3: Activate dispensing modalities. Ensure resources (e.g., human, technical, and space) are activated to initiate dispensing modalities that support a response requiring the use of medical countermeasures for prophylaxis and/or treatment. | I112: No ability/capacity | J112: =IF(I112=$B$226,0,IF(I112=$B$227,1,IF(I112=$B$228,2,IF(I112=$B$229,3,IF(I112=$B$230,4,"Not Calculated"))))) -> 0
C114: Function 4: Dispense medical countermeasures to identified population. Provide medical countermeasures to individuals in the target population, in accordance with public health guidelines and/or recommendations for the suspected or identified agent or exposure. | I114: No ability/capacity | J114: =IF(I114=$B$226,0,IF(I114=$B$227,1,IF(I114=$B$228,2,IF(I114=$B$229,3,IF(I114=$B$230,4,"Not Calculated"))))) -> 0
C116: Function 5: Report adverse events. Report adverse event notifications (e.g., negative medical countermeasure side effects) received from an individual, healthcare provider, or other source. | I116: No ability/capacity | J116: =IF(I116=$B$226,0,IF(I116=$B$227,1,IF(I116=$B$228,2,IF(I116=$B$229,3,IF(I116=$B$230,4,"Not Calculated"))))) -> 0
C118: Medical Countermeasure Dispensing Score | J118: =IF(OR(J108="Not Calculated",J110="Not Calculated",J112="Not Calculated",J114="Not Calculated",J116="Not Calculated")=TRUE,"Not Calculated",AVERAGE(J108,J110,J112,J114,J116)) -> 0
C122: Medical Materiel Management and Distribution
C124: Function 1: Direct and activate medical materiel management and distribution. Coordinate logistical operations and medical materiel requests when an incident exceeds the capacity of the jurisdiction’s normal supply chain, including the support and activation of staging operations to receive and/or transport additional medical materiel. This should be accomplished at the request of the incident commander and in coordination with jurisdictional emergency management. | I124: No ability/capacity | J124: =IF(I124=$B$226,0,IF(I124=$B$227,1,IF(I124=$B$228,2,IF(I124=$B$229,3,IF(I124=$B$230,4,"Not Calculated"))))) -> 0
C126: Function 2: Acquire medical materiel. Obtain medical materiel from jurisdictional caches and request materiel from jurisdictional, private, regional, or federal partners, as necessary. | I126: No ability/capacity | J126: =IF(I126=$B$226,0,IF(I126=$B$227,1,IF(I126=$B$228,2,IF(I126=$B$229,3,IF(I126=$B$230,4,"Not Calculated"))))) -> 0
C128: Function 3: Maintain updated inventory management and reporting system. Maintain inventory system for the jurisdiction’s medical materiel for the life of the materiel, including acquisition, receipt, storage, transport, recovery, disposal, and return or loss. | I128: No ability/capacity | J128: =IF(I128=$B$226,0,IF(I128=$B$227,1,IF(I128=$B$228,2,IF(I128=$B$229,3,IF(I128=$B$230,4,"Not Calculated"))))) -> 0
C130: Function 4: Establish and maintain security. In coordination with emergency management and jurisdictional law enforcement, secure personnel and medical materiel during all phases of transport and ensure security for receiving site and distribution personnel. | I130: No ability/capacity | J130: =IF(I130=$B$226,0,IF(I130=$B$227,1,IF(I130=$B$228,2,IF(I130=$B$229,3,IF(I130=$B$230,4,"Not Calculated"))))) -> 0
C132: Function 5: Distribute medical materiel. Distribute medical materiel to modalities (e.g., dispensing sites, treatment locations, intermediary distribution sites, and/or closed sites). | I132: No ability/capacity | J132: =IF(I132=$B$226,0,IF(I132=$B$227,1,IF(I132=$B$228,2,IF(I132=$B$229,3,IF(I132=$B$230,4,"Not Calculated"))))) -> 0
C134: Function 6: Recover medical materiel and demobilize distribution operations. Recover remaining medical materiel in accordance with jurisdictional policies and federal regulations and demobilize distribution operations as required by incident needs. | I134: No ability/capacity | J134: =IF(I134=$B$226,0,IF(I134=$B$227,1,IF(I134=$B$228,2,IF(I134=$B$229,3,IF(I134=$B$230,4,"Not Calculated"))))) -> 0
C136: Medical Materiel Management & Distribution Score | J136: =IF(OR(J124="Not Calculated",J126="Not Calculated",J128="Not Calculated",J130="Not Calculated",J132="Not Calculated",J134="Not Calculated")=TRUE,"Not Calculated",AVERAGE(J124,J126,J128,J130,J132,J134)) -> 0
C140: Medical Surge
C142: Function 1: Assess the nature and scope of the incident. In conjunction with jurisdictional partners, coordinate with the jurisdiction’s healthcare response through the collection and analysis of health data (e.g., from emergency medical services, fire service, law enforcement, public health, medical, public works, utilization of incident command system, mutual aid agreements, and activation of Emergency Management Assistance Compact agreements) to define the needs of the incident and the available healthcare staffing and resources. | I142: No ability/capacity | J142: =IF(I142=$B$226,0,IF(I142=$B$227,1,IF(I142=$B$228,2,IF(I142=$B$229,3,IF(I142=$B$230,4,"Not Calculated"))))) -> 0
C144: Function 2: Support activation of medical surge. Support healthcare coalitions and response partners in the expansion of the jurisdiction’s healthcare system (includes additional staff, beds and equipment) to provide access to additional healthcare services (e.g., call centers, alternate care systems, emergency medical services, emergency department services, and inpatient services) in response to the incident. | I144: No ability/capacity | J144: =IF(I144=$B$226,0,IF(I144=$B$227,1,IF(I144=$B$228,2,IF(I144=$B$229,3,IF(I144=$B$230,4,"Not Calculated"))))) -> 0
C146: Function 3: Support jurisdictional medical surge operations. In conjunction with healthcare coalitions and response partners, coordinate healthcare resources in conjunction with response partners, including access to care and medical service, and the tracking of patients, medical staff, equipment and supplies (from intra or interstate and federal partners, if necessary) in quantities necessary to support medical response operations. | I146: No ability/capacity | J146: =IF(I146=$B$226,0,IF(I146=$B$227,1,IF(I146=$B$228,2,IF(I146=$B$229,3,IF(I146=$B$230,4,"Not Calculated"))))) -> 0
C148: Function 4: Support demobilization of medical surge operations. In conjunction with other jurisdictional partners, return healthcare system to pre-incident operations by incrementally decreasing surge staffing, equipment needs, alternate care facilities, and other systems, and transition patients from acute care services into their pre-incident medical environment or other applicable medical setting. | I148: No ability/capacity | J148: =IF(I148=$B$226,0,IF(I148=$B$227,1,IF(I148=$B$228,2,IF(I148=$B$229,3,IF(I148=$B$230,4,"Not Calculated"))))) -> 0
C150: Medical Surge Score | J150: =IF(OR(J144="Not Calculated",J146="Not Calculated",J148="Not Calculated")=TRUE,"Not Calculated",AVERAGE(J144,J146,J148)) -> 0
C154: Non-Pharmaceutical Interventions
C156: Function 1: Engage partners and identify factors that impact non-pharmaceutical interventions. Identify and engage with health partners, government agencies, and community sectors (e.g., education, social services, faith-based, and business/industry) to identify the community factors that affect the ability to recommend and implement non-pharmaceutical interventions. | I156: No ability/capacity | J156: =IF(I156=$B$226,0,IF(I156=$B$227,1,IF(I156=$B$228,2,IF(I156=$B$229,3,IF(I156=$B$230,4,"Not Calculated"))))) -> 0
C158: Function 2: Determine non-pharmaceutical interventions. Work with subject matter experts (e.g., epidemiology, laboratory, surveillance, medical, chemical, biological, radiological, social service, emergency management, and legal) to recommend the non-pharmaceutical intervention(s) to be implemented. | I158: No ability/capacity | J158: =IF(I158=$B$226,0,IF(I158=$B$227,1,IF(I158=$B$228,2,IF(I158=$B$229,3,IF(I158=$B$230,4,"Not Calculated"))))) -> 0
C160: Function 3: Implement non-pharmaceutical interventions. Coordinate with health partners, government agencies, community sectors (e.g., education, social services, faith-based, and business), and jurisdictional authorities (e.g., law enforcement, jurisdictional officials, and transportation) to make operational, and if necessary, enforce, the recommended non-pharmaceutical intervention(s). | I160: No ability/capacity | J160: =IF(I160=$B$226,0,IF(I160=$B$227,1,IF(I160=$B$228,2,IF(I160=$B$229,3,IF(I160=$B$230,4,"Not Calculated"))))) -> 0
C162: Function 4: Monitor non-pharmaceutical interventions. Monitor the implementation and effectiveness of interventions, adjust intervention methods and scope as the incident evolves, and determine the level or point at which interventions are no longer needed. | I162: No ability/capacity | J162: =IF(I162=$B$226,0,IF(I162=$B$227,1,IF(I162=$B$228,2,IF(I162=$B$229,3,IF(I162=$B$230,4,"Not Calculated"))))) -> 0
C164: Non-Pharmaceutical Interventions Score | J164: =IF(OR(J158="Not Calculated",J160="Not Calculated",J162="Not Calculated")=TRUE,"Not Calculated",AVERAGE(J158,J160,J162)) -> 0
C168: Public Health Laboratory Testing
C170: Function 1: Manage laboratory activities. Manage and coordinate communications and resource sharing with the jurisdiction’s network of human, food, veterinary, and environmental testing laboratory efforts in order to respond to chemical, biological, radiological, nuclear, explosive, and other public health threats. | I170: No ability/capacity | J170: =IF(I170=$B$226,0,IF(I170=$B$227,1,IF(I170=$B$228,2,IF(I170=$B$229,3,IF(I170=$B$230,4,"Not Calculated"))))) -> 0
C172: Function 2: Perform sample management. Implement LRN-established protocols and procedures where available and applicable [and other mandatory protocols such as those for the International Air Transport Association (IATA) and the U.S. Department of Transportation (DOT)] for sample collection, handling, packaging, processing, transport, receipt, storage, retrieval, and disposal. | I172: No ability/capacity | J172: =IF(I172=$B$226,0,IF(I172=$B$227,1,IF(I172=$B$228,2,IF(I172=$B$229,3,IF(I172=$B$230,4,"Not Calculated"))))) -> 0
C174: Function 3: Conduct testing and analysis for routine and surge capacity. Perform, or coordinate with the applicable lead agency, testing of chemical, biological, radiological, nuclear, and explosive samples, utilizing CDC-established protocols and procedures (e.g., LRN), where available and applicable, to provide detection, characterization and confirmatory testing to identify public health incidents. This testing may include clinical, food, and environmental samples. | I174: No ability/capacity | J174: =IF(I174=$B$226,0,IF(I174=$B$227,1,IF(I174=$B$228,2,IF(I174=$B$229,3,IF(I174=$B$230,4,"Not Calculated"))))) -> 0
C176: Function 4: Support public health investigations. Provide analytical and investigative support to epidemiologists, healthcare providers, law enforcement, environmental health, food safety, and poison control efforts to help determine cause and origin of, and definitively characterize, a public health incident. | I176: No ability/capacity | J176: =IF(I176=$B$226,0,IF(I176=$B$227,1,IF(I176=$B$228,2,IF(I176=$B$229,3,IF(I176=$B$230,4,"Not Calculated"))))) -> 0
C178: Function 5: Report results. Provide notification of laboratory results and send laboratory data to public health officials, healthcare providers, and other institutions, agencies, or persons as permitted by all applicable laws, rules, and regulations. | I178: No ability/capacity | J178: =IF(I178=$B$226,0,IF(I178=$B$227,1,IF(I178=$B$228,2,IF(I178=$B$229,3,IF(I178=$B$230,4,"Not Calculated"))))) -> 0
C180: Public Health Laboratory Testing Score | J180: =IF(OR(J170="Not Calculated",J172="Not Calculated",J174="Not Calculated",J176="Not Calculated",J178="Not Calculated")=TRUE,"Not Calculated",AVERAGE(J170,J172,J174,J176,J178)) -> 0
C184: Public Health Surveillance and Epidemiologic Investigation
C186: Function 1: Conduct public health surveillance and detection. Conduct ongoing systematic collection, analysis, interpretation, and management of public health-related data to verify a threat or incident of public health concern, and to characterize and manage it effectively through all phases of the incident. | I186: No ability/capacity | J186: =IF(I186=$B$226,0,IF(I186=$B$227,1,IF(I186=$B$228,2,IF(I186=$B$229,3,IF(I186=$B$230,4,"Not Calculated"))))) -> 0
C188: Function 2: Conduct public health and epidemiological investigations. Identify the source of a case or outbreak of disease, injury, or exposure and its determinants in a population (e.g., time, place, person, disability status, living status, or other indices) to coordinate and report the summary results of the analysis to jurisdictional and federal partners, as appropriate. | I188: No ability/capacity | J188: =IF(I188=$B$226,0,IF(I188=$B$227,1,IF(I188=$B$228,2,IF(I188=$B$229,3,IF(I188=$B$230,4,"Not Calculated"))))) -> 0
C190: Function 3: Recommend, monitor, and analyze mitigation actions. Recommend, implement, or support public health interventions that contribute to the mitigation of a threat or incident as well as monitor the effectiveness of the interventions. | I190: No ability/capacity | J190: =IF(I190=$B$226,0,IF(I190=$B$227,1,IF(I190=$B$228,2,IF(I190=$B$229,3,IF(I190=$B$230,4,"Not Calculated"))))) -> 0
C192: Function 4: Improve public health surveillance and epidemiological investigation systems. Assess internal agency surveillance and epidemiologic investigation both during and after an incident and implement quality improvement measures that are within jurisdictional public health agency control. | I192: No ability/capacity | J192: =IF(I192=$B$226,0,IF(I192=$B$227,1,IF(I192=$B$228,2,IF(I192=$B$229,3,IF(I192=$B$230,4,"Not Calculated"))))) -> 0
C194: Public Health Surveillance and Epidemiologic Investigation Score | J194: =IF(OR(J188="Not Calculated",J190="Not Calculated",J192="Not Calculated")=TRUE,"Not Calculated",AVERAGE(J188,J190,J192)) -> 0
C198: Responder Safety and Health
C200: Function 1: Identify responder safety and health risks. Assist in the identification of the medical and mental/behavioral health risks (routine and incident-specific) to responders and communicate this information prior to, during, and after an incident. | I200: No ability/capacity | J200: =IF(I200=$B$226,0,IF(I200=$B$227,1,IF(I200=$B$228,2,IF(I200=$B$229,3,IF(I200=$B$230,4,"Not Calculated"))))) -> 0
C202: Function 2: Identify safety and personal protective needs. Coordinate with occupational health and safety and other subject matter experts, based on incident-specific conditions, to determine the necessary personal protective equipment, medical countermeasures, mental/behavioral health support services and other items and services, and distribute these, as applicable, to protect the health of public health responders. | I202: No ability/capacity | J202: =IF(I202=$B$226,0,IF(I202=$B$227,1,IF(I202=$B$228,2,IF(I202=$B$229,3,IF(I202=$B$230,4,"Not Calculated"))))) -> 0
C204: Function 3: Coordinate with partners to facilitate risk-specific safety and health training. In conjunction with partner agencies, facilitate the inclusion of risk-specific physical safety, mental/behavioral health, and personal protective equipment topics (based on jurisdictional risk assessment) into public health responder training to prepare responders for the incident. | I204: No ability/capacity | J204: =IF(I204=$B$226,0,IF(I204=$B$227,1,IF(I204=$B$228,2,IF(I204=$B$229,3,IF(I204=$B$230,4,"Not Calculated"))))) -> 0
C206: Function 4: Monitor responder safety and health actions. Conduct or participate in monitoring and surveillance activities to identify any potential adverse health effects of public health responders. | I206: No ability/capacity | J206: =IF(I206=$B$226,0,IF(I206=$B$227,1,IF(I206=$B$228,2,IF(I206=$B$229,3,IF(I206=$B$230,4,"Not Calculated"))))) -> 0
C208: Responder Safety and Health Score | J208: =IF(OR(J200="Not Calculated",J202="Not Calculated",J204="Not Calculated",J206="Not Calculated")=TRUE,"Not Calculated",AVERAGE(J200,J202,J204,J206)) -> 0
C212: Volunteer Management
C214: Function 1: Coordinate volunteers. Recruit, identify, and train volunteers who can support the public health agency’s response to an incident. Volunteers identified prior to an incident must be registered with the Emergency System for Advance Registration of Volunteer Health Professionals (ESAR-VHP), Medical Reserve Corps, or other pre-identified partner groups (e.g., Red Cross or Community Emergency Response Teams). | I214: No ability/capacity | J214: =IF(I214=$B$226,0,IF(I214=$B$227,1,IF(I214=$B$228,2,IF(I214=$B$229,3,IF(I214=$B$230,4,"Not Calculated"))))) -> 0
C216: Function 2: Notify volunteers. At the time of an incident, utilize redundant communication systems where available (e.g., reverse 911 or text messaging) to request that prospective volunteers participate in the public health agency’s response. | I216: No ability/capacity | J216: =IF(I216=$B$226,0,IF(I216=$B$227,1,IF(I216=$B$228,2,IF(I216=$B$229,3,IF(I216=$B$230,4,"Not Calculated"))))) -> 0
C218: Function 3: Organize, assemble, and dispatch volunteers. Coordinate the assignment of public health agency volunteers to public health, medical, mental/behavioral health, and non-specialized tasks as directed by the incident, including the integration of inter-jurisdictional (e.g., cross-border or federal) volunteer response teams into the jurisdictional public health agency’s response efforts. | I218: No ability/capacity | J218: =IF(I218=$B$226,0,IF(I218=$B$227,1,IF(I218=$B$228,2,IF(I218=$B$229,3,IF(I218=$B$230,4,"Not Calculated"))))) -> 0
C220: Function 4: Demobilize volunteers. Release volunteers based on evolving incident requirements or incident-action plan and coordinate with partner agencies to assure provision of any medical and mental/behavioral health support needed for volunteers to return to pre-incident status. | I220: No ability/capacity | J220: =IF(I220=$B$226,0,IF(I220=$B$227,1,IF(I220=$B$228,2,IF(I220=$B$229,3,IF(I220=$B$230,4,"Not Calculated"))))) -> 0
C222: Volunteer Management Score | J222: =IF(OR(J216="Not Calculated",J218="Not Calculated",J220="Not Calculated")=TRUE,"Not Calculated",AVERAGE(J216,J218,J220)) -> 0
A225: Community Preparedness, Current Status
A226: 0 | B226: No ability/capacity
A227: 1 | B227: Limited ability/capacity
A228: 2 | B228: Some ability/capacity
A229: 3 | B229: Significant ability/capacity
A230: 4 | B230: Full ability/capacity

Sheet Baseline HP
G2: Public Health Risk Assessment Tool
G3: Baseline Healthcare Preparedness Capability Status
C6: Healthcare System Preparedness | I6: Current Status: | J6: Status Score:
C8: Function 1: Develop, refine, or sustain Healthcare Coalitions consisting of a collaborative network of healthcare organizations and their respective public and private sector response partners within a defined region. Healthcare Coalitions serve as a multi-agency coordinating group that assists Emergency Management and Emergency Support Function (ESF) #8 with preparedness, response, recovery, and mitigation activities related to healthcare organization disaster operations. The primary function of the Healthcare Coalition includes sub-state regional, healthcare system emergency preparedness activities involving the member organizations. Healthcare Coalitions also may provide multiagency coordination to interface with the appropriate level of emergency operations in order to assist with the provision of situational awareness and the coordination of resources for healthcare organizations during a response. | I8: No ability/capacity | J8: =IF(I8=$B$112,0,IF(I8=$B$113,1,IF(I8=$B$114,2,IF(I8=$B$115,3,IF(I8=$B$116,4,"Not Calculated"))))) -> 0
C10: Function 2: Coordinate with emergency management to develop local and state emergency operations plans that address the concerns and unique needs of healthcare organizations. Plans should encompass the ability to deliver essential healthcare services during a response. This includes the assessment phases of planning to determine needs and priorities of healthcare organizations and the development of operational courses of action used during responses. | I10: No ability/capacity | J10: =IF(I10=$B$112,0,IF(I10=$B$113,1,IF(I10=$B$114,2,IF(I10=$B$115,3,IF(I10=$B$116,4,"Not Calculated"))))) -> 0
C12: Function 3: Identify and prioritize healthcare assets and essential services within a healthcare delivery area or region (Healthcare Coalition area). Coordinate planning to protect and enhance priority healthcare assets and essential services in order to ensure continued healthcare delivery to the community during a disaster. | I12: No ability/capacity | J12: =IF(I12=$B$112,0,IF(I12=$B$113,1,IF(I12=$B$114,2,IF(I12=$B$115,3,IF(I12=$B$116,4,"Not Calculated"))))) -> 0
C14: Function 4: Perform resource assessments and develop plans to assist healthcare organizations address gaps associated with planning, training, staffing, and equipping that improve resource availability during response and recovery. This is an ongoing process in the preparedness cycle guided by healthcare organization resource needs. These needs are based on the outcome of gap analysis, the evaluation of training, exercises, and actual incidents or events, and subsequent corrective actions. | I14: No ability/capacity | J14: =IF(I14=$B$112,0,IF(I14=$B$113,1,IF(I14=$B$114,2,IF(I14=$B$115,3,IF(I14=$B$116,4,"Not Calculated"))))) -> 0
C16: Function 5: Coordinate training for healthcare responders and supporting agencies in order to provide the required knowledge, skills, and abilities needed to prepare and respond to a disaster. Training curriculums are based on assessments, strategies, improvement plans, and ongoing evaluation efforts. Training is coordinated with ongoing training initiatives from healthcare and response partners. Training should include appropriate National Incident Management System (NIMS) or equivalent training. | I16: No ability/capacity | J16: =IF(I16=$B$112,0,IF(I16=$B$113,1,IF(I16=$B$114,2,IF(I16=$B$115,3,IF(I16=$B$116,4,"Not Calculated"))))) -> 0
C18: Function 6: Coordinate an exercise, evaluation, and corrective action program to continuously improve healthcare preparedness, response, and recovery. Exercises should assess and validate the effectiveness and efficiency of capabilities and the adequacy of policies, plans, procedures, and protocols. Exercises should be coordinated vertically and horizontally with healthcare and emergency response partners. Evaluation and improvement planning should track corrective actions associated with identified healthcare capability deficiencies observed during exercises and incidents. Corrective actions provide the means to improve medical operational preparedness to perform critical healthcare response tasks. Corrective actions also contribute to the continuous preparedness cycle by ensuring updated strategies and plans are incorporated into new preparedness-building activities. | I18: No ability/capacity | J18: =IF(I18=$B$112,0,IF(I18=$B$113,1,IF(I18=$B$114,2,IF(I18=$B$115,3,IF(I18=$B$116,4,"Not Calculated"))))) -> 0
C20: Function 7: Participate with planning to address at-risk individuals and those with special medical needs whose care can only occur at healthcare facilities. This includes coordination with public health and ESF#6 mass care planning to determine the transfer and transport options for individuals with special medical needs to and from shelters/healthcare facilities. It also includes continued involvement with public health planning initiatives for at-risk individuals with functional needs so that assistance or guidance can be provided to healthcare organizations regarding activity that may affect healthcare. | I20: No ability/capacity | J20: =IF(I20=$B$112,0,IF(I20=$B$113,1,IF(I20=$B$114,2,IF(I20=$B$115,3,IF(I20=$B$116,4,"Not Calculated"))))) -> 0
C22: Healthcare System Preparedness Score | J22: =IF(OR(J8="Not Calculated",J10="Not Calculated",J12="Not Calculated",J14="Not Calculated",J16="Not Calculated",J18="Not Calculated",J20="Not Calculated")=TRUE,"Not Calculated",AVERAGE(J8,J10,J12,J14,J16,J18,J20)) -> 0
C26: Healthcare System Recovery
C28: Function 1: Identify healthcare organization recovery needs and develop priority recovery processes to support a return to normalcy of operations or a new standard of normalcy for the provision of healthcare delivery to the community. | I28: No ability/capacity | J28: =IF(I28=$B$112,0,IF(I28=$B$113,1,IF(I28=$B$114,2,IF(I28=$B$115,3,IF(I28=$B$116,4,"Not Calculated"))))) -> 0
C30: Function 2: Maintain continuity of the healthcare delivery by coordinating recovery across functional healthcare organizations and encouraging business continuity planning. COOP guides how key resources from governmental, non-governmental, and private sector agencies can be used to support the sustainment and reestablishment of essential services for healthcare organizations. This coordination assists healthcare organizations to maintain their functional capabilities during, and after an all hazards incident and enables a rapid and more effective recovery. | I30: No ability/capacity | J30: =IF(I30=$B$112,0,IF(I30=$B$113,1,IF(I30=$B$114,2,IF(I30=$B$115,3,IF(I30=$B$116,4,"Not Calculated"))))) -> 0
C32: Healthcare System Recovery Score | J32: =IF(OR(J28="Not Calculated",J30="Not Calculated")=TRUE,"Not Calculated",AVERAGE(J28,J30)) -> 0
C36: Emergency Operations Coordination
C38: Function 1: Coordinate the protocols and criteria for the multi-agency representation of healthcare organizations into local and state emergency operations during an incident response. | I38: No ability/capacity | J38: =IF(I38=$B$112,0,IF(I38=$B$113,1,IF(I38=$B$114,2,IF(I38=$B$115,3,IF(I38=$B$116,4,"Not Calculated"))))) -> 0
C40: Function 2: Assess the incident’s impact on healthcare delivery in order to determine immediate healthcare organization resource needs and the status of healthcare delivery during an incident response. This includes assisting with the creation of the incident common operating picture and developing the processes for notification and information exchange between relevant response partners, stakeholders, and healthcare organizations. | I40: No ability/capacity | J40: =IF(I40=$B$112,0,IF(I40=$B$113,1,IF(I40=$B$114,2,IF(I40=$B$115,3,IF(I40=$B$116,4,"Not Calculated"))))) -> 0
C42: Function 3: Coordinate resource allocation for healthcare organizations by assisting incident management with decisions regarding resource availability and needs. This process should continue throughout incident response and recovery; including ongoing coordination to track resources for decision-making and optimal resource allocation. | I42: No ability/capacity | J42: =IF(I42=$B$112,0,IF(I42=$B$113,1,IF(I42=$B$114,2,IF(I42=$B$115,3,IF(I42=$B$116,4,"Not Calculated"))))) -> 0
C44: Function 4: The processes that assists healthcare organizations with the return of resources that are no longer required to support the incident. This includes the return of shared resources through incident management processes or directly to the providing healthcare organization. Following the return of assets, incorporate best practices and lessons learned into the continuous improvement process (after action reports/improvement plans/corrective actions). | I44: No ability/capacity | J44: =IF(I44=$B$112,0,IF(I44=$B$113,1,IF(I44=$B$114,2,IF(I44=$B$115,3,IF(I44=$B$116,4,"Not Calculated"))))) -> 0
C46: Emergency Operations Coordination Score | J46: =IF(OR(J38="Not Calculated",J40="Not Calculated",J42="Not Calculated",J44="Not Calculated")=TRUE,"Not Calculated",AVERAGE(J38,J40,J42,J44)) -> 0
C50: Fatality Management
C52: Function 1: Coordinate with agencies responsible for fatality management (e.g., medical examiner, coroner’s office, emergency management) to assist with the temporary storage of human remains during periods of death surges at healthcare organizations when morgue space is exceeded or unavailable. | I52: No ability/capacity | J52: =IF(I52=$B$112,0,IF(I52=$B$113,1,IF(I52=$B$114,2,IF(I52=$B$115,3,IF(I52=$B$116,4,"Not Calculated"))))) -> 0
C54: Function 2: Coordination with the agency responsible to provide assistance to the community regarding ante-mortem data to provide assistance to healthcare organizations for the processes to direct family and community members seeking information about missing family members to the right locations that are available in the community. | I54: No ability/capacity | J54: =IF(I54=$B$112,0,IF(I54=$B$113,1,IF(I54=$B$114,2,IF(I54=$B$115,3,IF(I54=$B$116,4,"Not Calculated"))))) -> 0
C56: Function 3: Coordinate with the lead jurisdictional authority and jurisdictional and regional mental/behavioral health partners to assist healthcare organizations with the processes to solicit support for the provision of non-intrusive, culturally sensitive mental/behavioral health support services to family members of the deceased, incident survivors, and responders, if requested. | I56: No ability/capacity | J56: =IF(I56=$B$112,0,IF(I56=$B$113,1,IF(I56=$B$114,2,IF(I56=$B$115,3,IF(I56=$B$116,4,"Not Calculated"))))) -> 0
C58: Fatality Management Score | J58: =IF(OR(J52="Not Calculated",J54="Not Calculated",J56="Not Calculated")=TRUE,"Not Calculated",AVERAGE(J52,J54,J56)) -> 0
C62: Information Sharing
C64: Function 1: Provide situational awareness regarding the status of healthcare delivery into the ongoing flow of information to assist with the creation of an incident common operating picture. This includes providing information to the full spectrum of healthcare partners. This encompasses the real time sharing of actionable information between healthcare organizations and incident management to assist decision makers with resource allocation and provide healthcare organizations with incident specific information. | I64: No ability/capacity | J64: =IF(I64=$B$112,0,IF(I64=$B$113,1,IF(I64=$B$114,2,IF(I64=$B$115,3,IF(I64=$B$116,4,"Not Calculated"))))) -> 0
C66: Function 2: Communications interoperability enables healthcare organization emergency communication systems to communicate with existing incident management emergency communications systems. With these systems in place, healthcare organizations can communicate with multiple agencies, relevant response partners, stakeholders, and other healthcare systems through radio and/or associated communications systems permitting an exchange of information in real time, when needed, and when authorized. | I66: No ability/capacity | J66: =IF(I66=$B$112,0,IF(I66=$B$113,1,IF(I66=$B$114,2,IF(I66=$B$115,3,IF(I66=$B$116,4,"Not Calculated"))))) -> 0
C68: Information Sharing Score | J68: =IF(OR(J64="Not Calculated",J66="Not Calculated")=TRUE,"Not Calculated",AVERAGE(J64,J66)) -> 0
C72: Medical Surge
C74: Function 1: Develop, refine, and sustain processes to ensure incident management decisions during medical surge incidents are coordinated through multi-agency collaboration representative of the community healthcare organizations’ priorities and needs. Coordination is achieved by ensuring that there are plans and protocols in place to guide the decisions made by incident management. It may also be achieved through real time multi-agency coordination by healthcare organizations during a response. | I74: No ability/capacity | J74: =IF(I74=$B$112,0,IF(I74=$B$113,1,IF(I74=$B$114,2,IF(I74=$B$115,3,IF(I74=$B$116,4,"Not Calculated"))))) -> 0
C76: Function 2: Coordination between the State, healthcare organizations, and Healthcare Coalitions with EMS operations and medical oversight to develop, refine, and sustain protocols for information sharing and communications. These protocols should assist with the coordination of transport decisions and options during a medical surge incident. These protocols also assist healthcare organizations understand the EMS disaster triage, transport, documentation, and CBRNE treatment methodologies during mass casualty incidents resulting in medical surge. | I76: No ability/capacity | J76: =IF(I76=$B$112,0,IF(I76=$B$113,1,IF(I76=$B$114,2,IF(I76=$B$115,3,IF(I76=$B$116,4,"Not Calculated"))))) -> 0
C78: Function 3: The rapid expansion of the capacity and capability of the healthcare system to provide the appropriate and timely clinical level of care in response to an incident that causes increased numbers (capacity) or special types of patients (capability) that overwhelm the day-to-day acute-care medical resources. This encompasses the appropriate decisions regarding patient care that require multi-agency coordination between healthcare organizations and incident management during medical surge operations. | I78: No ability/capacity | J78: =IF(I78=$B$112,0,IF(I78=$B$113,1,IF(I78=$B$114,2,IF(I78=$B$115,3,IF(I78=$B$116,4,"Not Calculated"))))) -> 0
C80: Function 4: Provide State guidance and protocols on crisis standards of care in order to enable a substantial change in routine healthcare operations including delivery of the optimal level of patient care for a pervasive (e.g., pandemic influenza) or catastrophic (e.g., earthquake, hurricane) disaster. The need for crisis standards is justified by specific circumstances and may or may not be triggered by the formal declaration of emergency, disaster, or public health emergency (with input from local, Healthcare Coalition, and regional authorities), in recognition that crisis operations will be in effect for a sustained period. If an emergency declaration is made, it changes the legal environment and enables specific legal and regulatory powers and protections for public health and healthcare providers concerning their actions and omissions associated with allocating and utilizing scarce medical resources and implementing crisis standards of care. This guidance provides a delineated continuum of care from normal operations to eventual crisis standards of care. The continuum involves the scarcity of all other resource options until it is no longer feasible to provide normal care, including strategies to reduce demand, optimize existing resources, and augment existing resources. | I80: No ability/capacity | J80: =IF(I80=$B$112,0,IF(I80=$B$113,1,IF(I80=$B$114,2,IF(I80=$B$115,3,IF(I80=$B$116,4,"Not Calculated"))))) -> 0
C82: Function 5: Support healthcare organizations during evacuation and shelter in place operations in which no warning or ample warning is received prior to the occurrence. This assists healthcare organizations with the safe and effective care of patients, use of equipment, and utilization of staff during relocation to another facility within a region or outside of the region in response to an incident. This includes the provision of assistance to healthcare organizations that have decided to shelter-in-place during the incident. | I82: No ability/capacity | J82: =IF(I82=$B$112,0,IF(I82=$B$113,1,IF(I82=$B$114,2,IF(I82=$B$115,3,IF(I82=$B$116,4,"Not Calculated"))))) -> 0
C84: Medical Surge Score | J84: =IF(OR(J74="Not Calculated",J76="Not Calculated",J78="Not Calculated",J80="Not Calculated",J82="Not Calculated")=TRUE,"Not Calculated",AVERAGE(J74,J76,J78,J80,J82)) -> 0
C88: Responder Safety and Health
C90: Function 1: Develop, refine, and sustain processes to assist healthcare organizations to provide the timely distribution of critical medication such as prophylaxis or immediate treatment for healthcare workers and their families during an exposure incident (e.g., CBRNE). | I90: No ability/capacity | J90: =IF(I90=$B$112,0,IF(I90=$B$113,1,IF(I90=$B$114,2,IF(I90=$B$115,3,IF(I90=$B$116,4,"Not Calculated"))))) -> 0
C92: Function 2: Assist healthcare organizations with the ability to access the appropriate types of caches of Personal Protective Equipment (PPE) needed for the safety of healthcare responders based on incident/event-specific conditions. | I92: No ability/capacity | J92: =IF(I92=$B$112,0,IF(I92=$B$113,1,IF(I92=$B$114,2,IF(I92=$B$115,3,IF(I92=$B$116,4,"Not Calculated"))))) -> 0
C94: Responder Safety and Health Score | J94: =IF(OR(J90="Not Calculated",J92="Not Calculated")=TRUE,"Not Calculated",AVERAGE(J90,J92)) -> 0
C98: Volunteer Management
C100: Function 1: Participate with volunteer planning to assess the situations in which volunteers may be needed by healthcare organizations to determine the type and quantity of volunteers that may be used by healthcare organizations during a response. The coordinated planning involves medical considerations for the recruitment, identification, and training of volunteers that can support a healthcare organization response. | I100: No ability/capacity | J100: =IF(I100=$B$112,0,IF(I100=$B$113,1,IF(I100=$B$114,2,IF(I100=$B$115,3,IF(I100=$B$116,4,"Not Calculated"))))) -> 0
C102: Function 2: Initiate the volunteer request process so that prospective volunteers are mobilized in the appropriate health professional role for the healthcare organization’s response. | I102: No ability/capacity | J102: =IF(I102=$B$112,0,IF(I102=$B$113,1,IF(I102=$B$114,2,IF(I102=$B$115,3,IF(I102=$B$116,4,"Not Calculated"))))) -> 0
C104: Function 3: Identify the process for allocating volunteers that are needed simultaneously across several healthcare organizations. This process should include the placement of volunteers through the appropriate deployment channels and match the assignment of volunteers to the needs of the requesting healthcare organizations (i.e., based on volunteer availability). | I104: No ability/capacity | J104: =IF(I104=$B$112,0,IF(I104=$B$113,1,IF(I104=$B$114,2,IF(I104=$B$115,3,IF(I104=$B$116,4,"Not Calculated"))))) -> 0
C106: Function 4: Coordinate the release of volunteers based on evolving incident requirements or incident status. This includes coordination with the appropriate partner agencies to ensure provision of medical and mental/behavioral health support needed for the volunteers’ physical and mental well-being. | I106: No ability/capacity | J106: =IF(I106=$B$112,0,IF(I106=$B$113,1,IF(I106=$B$114,2,IF(I106=$B$115,3,IF(I106=$B$116,4,"Not Calculated"))))) -> 0
C108: Volunteer Management Score | J108: =IF(OR(J100="Not Calculated",J102="Not Calculated",J104="Not Calculated",J106="Not Calculated")=TRUE,"Not Calculated",AVERAGE(J100,J102,J104,J106)) -> 0
A111: Community Preparedness, Current Status
A112: 0 | B112: No ability/capacity
A113: 1 | B113: Limited ability/capacity
A114: 2 | B114: Some ability/capacity
A115: 3 | B115: Significant ability/capacity
A116: 4 | B116: Full ability/capacity

Sheet Community Characteristics
F2: Public Health Risk Assessment Tool
F3: Community Characteristics
F5: The following information will be used to develop hazard scenarios and
F6: estimate the impacts of various hazards on the jurisdiction.
C10: Total Population: | H10: ='Baseline Health'!G6 -> 0 | J10: https://www.census.gov/
C12: Total Housing Units : | H12: 0
J13: DHSS
C14: Percent Using Well Water : | H14: 0 | J14: https://storymaps.arcgis.com/stories/4a71c2f84c3349fcb7e4a528ac261b35
C16: Percent Under Age 40 : | H16: 0
C18: Largest City or Population Center: | J18: www.city-data.com
D20: Population of Largest City or Population Center (census, american factfinder) :
H21: 0
D23: Population Density of Largest City (per sq mile), (usa.com) :
H24: 0
C26: Largest Hospital:
D28: ED Beds at Largest Hospital: | H28: 0
D30: Total Beds at Largest Hospital: | H30: 0
D32: If Largest Hospital is a Trauma Center, Number of ORs (otherwise, 0):
H33: 0
C35: Another Hospital (Hospital 2):
D37: ED Beds at Hospital 2: | H37: 0
D39: Total Beds at Hospital 2: | H39: 0
D41: If Hospital 2 is a Trauma Center, Number of ORs (otherwise, 0):
H42: 0
C44: Does any part of the region fall within a 50-mile radius of a nuclear reactor?
H45: No
D47: Are there major transportation routes in the region within 10 miles of a nuclear reactor?
H49: No
D51: Percent of region's businesses located within 10 miles of a nuclear reactor (mapping tools) ?
H53: 0
D55: Population within 10 Miles of a Nuclear Reactor (mapping tools) :
H56: 0
D58: Hospital(s) Within 10 Miles of a Nuclear Reactor:
H59: 0
D61: Total ED Beds at Hospital(s) Within 10 Miles of a Nuclear Reactor:
H62: 0
D63: ED Beds per 100,000 Within 10 Miles of a Nuclear Reactor:
H64: =IF($H$10<>0,H62*100000/$H$10,"Not Calculated") -> Not Calculated
D66: Total Beds at Hospital(s) Within 10 Miles of a Nuclear Reactor:
H67: 0
D68: Beds per 100,000 Within 10 Miles of a Nuclear Reactor:
H69: =IF($H$10<>0,H67*100000/$H$10,"Not Calculated") -> Not Calculated
D71: FTE Nurses Employed at Hospital(s) Within 10 Miles of a Nuclear Reactor:
H72: 0
D74: If Hospital(s) Within 10 Miles of a Nuclear Reactor is a Trauma Center, Number of ORs (otherwise, 0):
H76: 0
D78: Nursing Home(s) Within 10 Miles of a Nuclear Reactor:
H79: 0
D81: Total Beds at Nursing Home(s) Within 10 Miles of a Nuclear Reactor:
H82: 0
D84: PCPs Within 10 Miles of a Nuclear Reactor (Prof. Registration) :
H85: 0
D86: PCPs per 100,000 Within 10 Miles of a Nuclear Reactor:
H87: =IF($H$10<>0,H85*100000/$H$10,"Not Calculated") -> Not Calculated
D89: Pharmacists Within 10 Miles of a Nuclear Reactor (Prof. Registration) :
H90: 0
D91: Pharmacists per 100,000 Within 10 Miles of a Nuclear Reactor:
H92: =IF($H$10<>0,H90*100000/$H$10,"Not Calculated") -> Not Calculated
D94: Mental Health Professionals Within 10 Miles of a Nuclear Reactor:
H95: 0
D96: Mental Health Professionals per 100,000 Within 10 Miles of a Nuclear Reactor:
H97: =IF($H$10<>0,H95*100000/$H$10,"Not Calculated") -> Not Calculated
D99: Morgue Units located Within 10 Miles of a Nuclear Reactor (Coroner/ME) :
H100: 0
C102: Large College Campus: | J102: FEMA Resilience Analysis and Planning Tool (RAPT)
J103: https://www.fema.gov/emergency-managers/practitioners/resilience-analysis-and-planning-tool
D104: Population Living on Large College Campus:
H105: 0 | J105: RAPT
C107: What is a large public building or space that could be the target for a terrorist attack?
J108: RAPT
D110: How many people occupy this building/space at its busiest time?
H111: 0 | J111: determine locally for arena, convention center, largest building
D113: Residental Population density of surrounding area (per square mile):
H114: 0 | J114: www.worldpopulationreview.com
D116: Daytime Population density of surrounding area (per square mile):
H117: 0 | J117: www.city-data.com
A120: Yes
A121: No

Sheet Active Shooter
G2: Public Health Risk Assessment Tool
G3: Active Shooter
B5: An active shooter is an individual actively engaged in killing or attempting to kill people in a confined and other populated area. In most cases, active shooters use firearms and there is no pattern or method to their selection of victims. Active shooter situations are unpredictable and evolve quickly (FEMA, 2011). The shooter in an active shooter scenario may be a sniper. A sniper is a concealed, usually skilled shooter who fires at exposed persons, typically using powerful high-energy, military-style assault rifles. Assault rifles are becoming more available to the public (Ciottone, 2006).
B7: The following hazard impacts have been estimated using historical data, predictive models, estimations where necessary, and the information entered in the "Baseline Data" worksheets. The information below can be altered as needed to more accurately reflect hazard impacts in your jurisdiction. The impacts should reflect the worst-case reasonable scenario.
B9: Briefly describe the worst-case reasonable scenario of this hazard (the scenario to which the following impacts apply) here:
B10: The scenario used to predict the impacts of an active shooter incident is the Virginia Tech Massacre of 2007. On April 16, 2007, student Seung Hui Cho murdered 32 and injured 17 students and faculty in two related incidents on the campus of Virginia Polytechnic Institute.
G13: Probability
C15: Probability: | E15: The hazard is likely to occur at least once in the system lifecycle (100 years).
C17: Probability Score: | E17: =IF(E15=$C$966,$A$966,IF(E15=$C$967,$A$967,IF(E15=$C$968,$A$968,IF(E15=$C$969,$A$969,IF(E15=$C$970,$A$970,"Not Calculated"))))) -> 2
E18: =IF(E15=$C$966,$B$966,IF(E15=$C$967,$B$967,IF(E15=$C$968,$B$968,IF(E15=$C$969,$B$969,IF(E15=$C$970,$B$970,"Not Calculated"))))) -> Occasional
G22: Human Impact
C24: Mortality
C25: Baseline Mortality per Day: | J25: ='Baseline Health'!G11 -> 0
C26: Hazard-Related Increase in Mortality per Day: | J26: 33
C27: Magnitude Score: | J27: =IF(OR(J25=0,J25="Not Calculated")=TRUE,"Not Calculated",(IF(((J26+J25)/J25)<=1,0,IF(((J26+J25)/J25)<=1.05,1,IF(((J26+J25)/J25)<=1.5, 2,IF(((J26+J25)/J25)<=2,3,4)))))) -> Not Calculated
C28: ="0:" -> 0: | D28: No change from baseline
C29: ="1:" -> 1: | D29: ≤ 5% increase
C30: ="2:" -> 2: | D30: ≤ 50% increase
C31: ="3:" -> 3: | D31: ≤ 100% increase
C32: ="4:" -> 4: | D32: >100% increase | N32: Use Quantititive Value
C33: OR, Estimate the Magnitude Qualitatively: | J33: Use Quantititive Value | N33: No change from baseline (Score = 0)
C34: Qualitative Magnitude Score: | J34: =IF(J33=N32,"N/A",IF(J33=N33,0,IF(J33=N34,1,IF(J33=N35,2,IF(J33=N36,3,IF(J33=N37,4,"N/A")))))) -> N/A | N34: ≤ 5% increase (Score = 1)
C35: Duration of Impact: | J35: ≤ 1 day (Score = 1) | N35: ≤ 50% increase (Score = 2)
C36: Duration Score: | J36: =IF(J35=$B$973,$A$973,IF(J35=$B$974,$A$974,IF(J35=$B$975,$A$975,IF(J35=$B$976,$A$976,IF(J35=$B$977,$A$977,"Not Calculated"))))) -> 1 | N36: ≤ 100% increase (Score = 3)
C37: Data Source / Explanation (Optional): | N37: >100% increase (Score = 4)
C38: In the VA Tech Massacre of 2007, 33 died at the scene, including the shooter (Armstrong & Frykberg, 2007).
C40: Mortality Score: | J40: =IF(J34="N/A",IF(OR(J27="Not Calculated",J36="Not Calculated")=TRUE,"Not Calculated",AVERAGE(J27,J36)),AVERAGE(J34,J36)) -> Not Calculated
C43: EMS Transports
C44: Baseline Transports per Day: | J44: ='Baseline Health'!G17 -> 0
C45: Hazard-Related Increase in Transports per Day: | J45: 17
C46: Magnitude Score: | J46: =IF(OR(J44=0,J44="Not Calculated")=TRUE,"Not Calculated",(IF(((J45+J44)/J44)<=1,0,IF(((J45+J44)/J44)<=1.05,1,IF(((J45+J44)/J44)<=1.5, 2,IF(((J45+J44)/J44)<=2,3,4)))))) -> Not Calculated
C47: ="0:" -> 0: | D47: No change from baseline
C48: ="1:" -> 1: | D48: ≤ 5% increase
C49: ="2:" -> 2: | D49: ≤ 50% increase
C50: ="3:" -> 3: | D50: ≤ 100% increase
C51: ="4:" -> 4: | D51: >100% increase | N51: Use Quantititive Value
C52: OR, Estimate the Magnitude Qualitatively: | J52: Use Quantititive Value | N52: No change from baseline (Score = 0)
C53: Qualitative Magnitude Score: | J53: =IF(J52=N51,"N/A",IF(J52=N52,0,IF(J52=N53,1,IF(J52=N54,2,IF(J52=N55,3,IF(J52=N56,4,"N/A")))))) -> N/A | N53: ≤ 5% increase (Score = 1)
C54: Duration of Impact: | J54: ≤ 1 day (Score = 1) | N54: ≤ 50% increase (Score = 2)
C55: Duration Score: | J55: =IF(J54=$B$973,$A$973,IF(J54=$B$974,$A$974,IF(J54=$B$975,$A$975,IF(J54=$B$976,$A$976,IF(J54=$B$977,$A$977,"Not Calculated"))))) -> 1 | N55: ≤ 100% increase (Score = 3)
C56: Data Source / Explanation (Optional): | N56: >100% increase (Score = 4)
C57: In the VA Tech Massacre of 2007, 17 were transported by EMS (Armstrong & Frykberg, 2007).
C59: EMS Transports Score: | J59: =IF(J53="N/A",IF(OR(J46="Not Calculated",J55="Not Calculated")=TRUE,"Not Calculated",AVERAGE(J46,J55)),AVERAGE(J53,J55)) -> Not Calculated
C62: ED Visits
C63: Baseline ED Visits per Day: | J63: ='Baseline Health'!G23 -> 0
C64: Hazard-Related Increase in ED Visits per Day: | J64: 27
C65: Magnitude Score: | J65: =IF(OR(J63=0,J63="Not Calculated")=TRUE,"Not Calculated",(IF(((J64+J63)/J63)<=1,0,IF(((J64+J63)/J63)<=1.05,1,IF(((J64+J63)/J63)<=1.5, 2,IF(((J64+J63)/J63)<=2,3,4)))))) -> Not Calculated
C66: ="0:" -> 0: | D66: No change from baseline
C67: ="1:" -> 1: | D67: ≤ 5% increase
C68: ="2:" -> 2: | D68: ≤ 50% increase
C69: ="3:" -> 3: | D69: ≤ 100% increase
C70: ="4:" -> 4: | D70: >100% increase | N70: Use Quantititive Value
C71: OR, Estimate the Magnitude Qualitatively: | J71: Use Quantititive Value | N71: No change from baseline (Score = 0)
C72: Qualitative Magnitude Score: | J72: =IF(J71=N70,"N/A",IF(J71=N71,0,IF(J71=N72,1,IF(J71=N73,2,IF(J71=N74,3,IF(J71=N75,4,"N/A")))))) -> N/A | N72: ≤ 5% increase (Score = 1)
C73: Duration of Impact: | J73: ≤ 1 day (Score = 1) | N73: ≤ 50% increase (Score = 2)
C74: Duration Score: | J74: =IF(J73=$B$973,$A$973,IF(J73=$B$974,$A$974,IF(J73=$B$975,$A$975,IF(J73=$B$976,$A$976,IF(J73=$B$977,$A$977,"Not Calculated"))))) -> 1 | N74: ≤ 100% increase (Score = 3)
C75: Data Source / Explanation (Optional): | N75: >100% increase (Score = 4)
C76: In the VA Tech Massacre of 2007, 27 are known to have been treated at local emergency departments (Virginia Tech Review Panel, 2007).
C78: ED Visits Score: | J78: =IF(J72="N/A",IF(OR(J65="Not Calculated",J74="Not Calculated")=TRUE,"Not Calculated",AVERAGE(J65,J74)),AVERAGE(J72,J74)) -> Not Calculated
C81: Primary Care Office Visits
C82: Baseline Office Visits per Day: | J82: ='Baseline Health'!G29 -> 0
C83: Hazard-Related Increase in Office Visits per Day: | J83: 0
C84: Magnitude Score: | J84: =IF(OR(J82=0,J82="Not Calculated")=TRUE,"Not Calculated",(IF(((J83+J82)/J82)<=1,0,IF(((J83+J82)/J82)<=1.05,1,IF(((J83+J82)/J82)<=1.5, 2,IF(((J83+J82)/J82)<=2,3,4)))))) -> Not Calculated
C85: ="0:" -> 0: | D85: No change from baseline
C86: ="1:" -> 1: | D86: ≤ 5% increase
C87: ="2:" -> 2: | D87: ≤ 50% increase
C88: ="3:" -> 3: | D88: ≤ 100% increase
C89: ="4:" -> 4: | D89: >100% increase | N89: Use Quantititive Value
C90: OR, Estimate the Magnitude Qualitatively: | J90: Use Quantititive Value | N90: No change from baseline (Score = 0)
C91: Qualitative Magnitude Score: | J91: =IF(J90=N89,"N/A",IF(J90=N90,0,IF(J90=N91,1,IF(J90=N92,2,IF(J90=N93,3,IF(J90=N94,4,"N/A")))))) -> N/A | N91: ≤ 5% increase (Score = 1)
C92: Duration of Impact: | J92: No impact (Score = 0) | N92: ≤ 50% increase (Score = 2)
C93: Duration Score: | J93: =IF(J92=$B$973,$A$973,IF(J92=$B$974,$A$974,IF(J92=$B$975,$A$975,IF(J92=$B$976,$A$976,IF(J92=$B$977,$A$977,"Not Calculated"))))) -> 0 | N93: ≤ 100% increase (Score = 3)
C94: Data Source / Explanation (Optional): | N94: >100% increase (Score = 4)
C97: Primary Care Office Visits Score: | J97: =IF(J91="N/A",IF(OR(J84="Not Calculated",J93="Not Calculated")=TRUE,"Not Calculated",AVERAGE(J84,J93)),AVERAGE(J91,J93)) -> Not Calculated
C100: Trauma Center Injuries
C101: Baseline Trauma Injuries per Day: | J101: ='Baseline Health'!G35 -> 0
C102: Hazard-Related Increase in Trauma Injuries per Day: | J102: 12
C103: Magnitude Score: | J103: =IF(OR(J101=0,J101="Not Calculated")=TRUE,"Not Calculated",(IF(((J102+J101)/J101)<=1,0,IF(((J102+J101)/J101)<=1.05,1,IF(((J102+J101)/J101)<=1.5, 2,IF(((J102+J101)/J101)<=2,3,4)))))) -> Not Calculated
C104: ="0:" -> 0: | D104: No change from baseline
C105: ="1:" -> 1: | D105: ≤ 5% increase
C106: ="2:" -> 2: | D106: ≤ 50% increase
C107: ="3:" -> 3: | D107: ≤ 100% increase
C108: ="4:" -> 4: | D108: >100% increase | N108: Use Quantititive Value
C109: OR, Estimate the Magnitude Qualitatively: | J109: Use Quantititive Value | N109: No change from baseline (Score = 0)
C110: Qualitative Magnitude Score: | J110: =IF(J109=N108,"N/A",IF(J109=N109,0,IF(J109=N110,1,IF(J109=N111,2,IF(J109=N112,3,IF(J109=N113,4,"N/A")))))) -> N/A | N110: ≤ 5% increase (Score = 1)
C111: Duration of Impact: | J111: ≤ 1 day (Score = 1) | N111: ≤ 50% increase (Score = 2)
C112: Duration Score: | J112: =IF(J111=$B$973,$A$973,IF(J111=$B$974,$A$974,IF(J111=$B$975,$A$975,IF(J111=$B$976,$A$976,IF(J111=$B$977,$A$977,"Not Calculated"))))) -> 1 | N112: ≤ 100% increase (Score = 3)
C113: Data Source / Explanation (Optional): | N113: >100% increase (Score = 4)
C114: In the VA Tech Massacre of 2007, 10 were taken to surgery at Level III trauma centers, and 2 at a Level I trauma center (Armstrong & Frykberg, 2007).
C116: Trauma Center Injuries Score: | J116: =IF(J110="N/A",IF(OR(J103="Not Calculated",J112="Not Calculated")=TRUE,"Not Calculated",AVERAGE(J103,J112)),AVERAGE(J110,J112)) -> Not Calculated
C119: Mental Health Impact
C120: Mental Health Impact (Percent of population developing psychopathology and behavioral changes after the incident, including PTST, depression, anxiety, alcohol and substance abuse, domestic violence, and loss of social functions):
C123: Population displays distress with 25% - 49% psychopathology.
C125: Magnitude Score: | J125: =IF(C123=B987,A987,IF(C123=B988,A988,IF(C123=B989,A989,IF(C123=B990,A990,IF(C123=B991,A991,"Not Calculated"))))) -> 3
C126: Duration of Impact: | J126: > 2 weeks (Score = 4)
C127: Duration Score: | J127: =IF(J126=$B$973,$A$973,IF(J126=$B$974,$A$974,IF(J126=$B$975,$A$975,IF(J126=$B$976,$A$976,IF(J126=$B$977,$A$977,"Not Calculated"))))) -> 4
C128: Data Source / Explanation (Optional):
C129: After the VA Tech Massacre of 2007, 15.4% of VA Tech students screened showed high levels of posttraumatic stress symptoms (Hughes et al., 2011). In addition to PTSD, behavioral changes, anxiety, depression, and other behavioral health consequences are likely to occur.
C131: Mental Health Score: | J131: =IF(OR(J125="Not Calculated",J127="Not Calculated")=TRUE,"Not Calculated",AVERAGE(J125,J127)) -> 3.5
C133: Human Impact Score: | J133: =IF(OR(J40="Not Calculated",J59="Not Calculated",J78="Not Calculated",J97="Not Calculated",J116="Not Calculated",J131="Not Calculated",)=TRUE,"Not Calculated",AVERAGE(J40,J59,J78,J97,J116,J131)) -> Not Calculated
G137: Healthcare Service Impact
C139: Outpatient Services
C140: Baseline PCPs: | J140: ='Baseline Health'!G45 -> 1
C141: Hazard-Related Loss of PCPs: | J141: 0
C142: Hazard-Related Increase in Demand for PCPs per Day: | J142: =J83/20 -> 0
D143: (PCP Demand = Increase in Office Visits / 20)
C144: Magnitude Score: | J144: =IF(OR(J140=0,J140="Not Calculated")=TRUE,"Not Calculated",IF((J140-J141)<=0,4,IF(((J140+J142)/(J140-J141))<=1,0,IF(((J140+J142)/(J140-J141))<=1.05,1,IF(((J140+J142)/(J140-J141))<=1.5, 2,IF(((J140+J142)/(J140-J141))<=2,3,4)))))) -> 0
C145: ="0:" -> 0: | D145: No change from baseline
C146: ="1:" -> 1: | D146: (Baseline + ↑ demand) / (Baseline - ↓ supply) ≤ 1.05
C147: ="2:" -> 2: | D147: (Baseline + ↑ demand) / (Baseline - ↓ supply) ≤ 1.5
C148: ="3:" -> 3: | D148: (Baseline + ↑ demand) / (Baseline - ↓ supply) ≤ 2
C149: ="4:" -> 4: | D149: (Baseline + ↑ demand) / (Baseline - ↓ supply) > 2 | N149: Use Quantititive Value
C150: OR, Estimate the Magnitude Qualitatively: | J150: Use Quantititive Value | N150: No change from baseline (Score = 0)
C151: Qualitative Magnitude Score: | J151: =IF(J150=N149,"N/A",IF(J150=N150,0,IF(J150=N151,1,IF(J150=N152,2,IF(J150=N153,3,IF(J150=N154,4,"N/A")))))) -> N/A | N151: ≤ 5% ↑ demand or ↓ supply (Score = 1)
C152: Duration of Impact: | J152: ≤ 1 week (Score = 2) | N152: ≤ 50% ↑ demand or ↓ supply (Score = 2)
C153: Duration Score: | J153: =IF(J152=$B$973,$A$973,IF(J152=$B$974,$A$974,IF(J152=$B$975,$A$975,IF(J152=$B$976,$A$976,IF(J152=$B$977,$A$977,"Not Calculated"))))) -> 2 | N153: ≤ 100% ↑ demand or ↓ supply (Score = 3)
C154: Data Source / Explanation (Optional): | N154: >100% ↑ demand or ↓ supply (Score = 4)
C157: Outpatient Services Score: | J157: =IF(J151="N/A",IF(OR(J144="Not Calculated",J153="Not Calculated")=TRUE,"Not Calculated",AVERAGE(J144,J153)),AVERAGE(J151,J153)) -> 1
C160: ED Services
C161: Baseline ED Beds: | J161: ='Baseline Health'!G51 -> 0
C162: Hazard-Related Loss of ED Beds: | J162: 0
C163: Hazard-Related Increase in Demand for ED Beds per Day: | J163: =(J64)/4.5 -> 6
D164: (ED Bed Demand per Day = Increase in ED Visits / 4.5)
C165: Magnitude Score: | J165: =IF(OR(J161=0,J161="Not Calculated")=TRUE,"Not Calculated",IF((J161-J162)<=0,4,IF(((J161+J163)/(J161-J162))<=1,0,IF(((J161+J163)/(J161-J162))<=1.05,1,IF(((J161+J163)/(J161-J162))<=1.5, 2,IF(((J161+J163)/(J161-J162))<=2,3,4)))))) -> Not Calculated
C166: ="0:" -> 0: | D166: No change from baseline
C167: ="1:" -> 1: | D167: (Baseline + ↑ demand) / (Baseline - ↓ supply) ≤ 1.05
C168: ="2:" -> 2: | D168: (Baseline + ↑ demand) / (Baseline - ↓ supply) ≤ 1.5
C169: ="3:" -> 3: | D169: (Baseline + ↑ demand) / (Baseline - ↓ supply) ≤ 2
C170: ="4:" -> 4: | D170: (Baseline + ↑ demand) / (Baseline - ↓ supply) > 2 | N170: Use Quantititive Value
C171: OR, Estimate the Magnitude Qualitatively: | J171: Use Quantititive Value | N171: No change from baseline (Score = 0)
C172: Qualitative Magnitude Score: | J172: =IF(J171=N170,"N/A",IF(J171=N171,0,IF(J171=N172,1,IF(J171=N173,2,IF(J171=N174,3,IF(J171=N175,4,"N/A")))))) -> N/A | N172: ≤ 5% ↑ demand or ↓ supply (Score = 1)
C173: Duration of Impact: | J173: ≤ 1 day (Score = 1) | N173: ≤ 50% ↑ demand or ↓ supply (Score = 2)
C174: Duration Score: | J174: =IF(J173=$B$973,$A$973,IF(J173=$B$974,$A$974,IF(J173=$B$975,$A$975,IF(J173=$B$976,$A$976,IF(J173=$B$977,$A$977,"Not Calculated"))))) -> 1 | N174: ≤ 100% ↑ demand or ↓ supply (Score = 3)
C175: Data Source / Explanation (Optional): | N175: >100% ↑ demand or ↓ supply (Score = 4)
C178: ED Services Score: | J178: =IF(J172="N/A",IF(OR(J165="Not Calculated",J174="Not Calculated")=TRUE,"Not Calculated",AVERAGE(J165,J174)),AVERAGE(J172,J174)) -> Not Calculated
C181: Hospital Beds
C182: Baseline Hospital Beds: | J182: ='Baseline Health'!G59 -> 0
C183: Hazard-Related Loss of Hospital Beds: | J183: 0
C184: Hazard-Related Increase in Demand for Hospital Beds: | J184: 27
C185: Magnitude Score: | J185: =IF(OR(J182=0,J182="Not Calculated")=TRUE,"Not Calculated",IF(J182-J183=0,4,IF(((J182+J184)/(J182-J183))<=1,0,IF(((J182+J184)/(J182-J183))<=1.05,1,IF(((J182+J184)/(J182-J183))<=1.5, 2,IF(((J182+J184)/(J182-J183))<=2,3,4)))))) -> Not Calculated
C186: ="0:" -> 0: | D186: No change from baseline
C187: ="1:" -> 1: | D187: (Baseline + ↑ demand) / (Baseline - ↓ supply) ≤ 1.05
C188: ="2:" -> 2: | D188: (Baseline + ↑ demand) / (Baseline - ↓ supply) ≤ 1.5
C189: ="3:" -> 3: | D189: (Baseline + ↑ demand) / (Baseline - ↓ supply) ≤ 2
C190: ="4:" -> 4: | D190: (Baseline + ↑ demand) / (Baseline - ↓ supply) > 2 | N190: Use Quantititive Value
C191: OR, Estimate the Magnitude Qualitatively: | J191: Use Quantititive Value | N191: No change from baseline (Score = 0)
C192: Qualitative Magnitude Score: | J192: =IF(J191=N190,"N/A",IF(J191=N191,0,IF(J191=N192,1,IF(J191=N193,2,IF(J191=N194,3,IF(J191=N195,4,"N/A")))))) -> N/A | N192: ≤ 5% ↑ demand or ↓ supply (Score = 1)
C193: Duration of Impact: | J193: ≤ 2 weeks (Score = 3) | N193: ≤ 50% ↑ demand or ↓ supply (Score = 2)
C194: Duration Score: | J194: =IF(J193=$B$973,$A$973,IF(J193=$B$974,$A$974,IF(J193=$B$975,$A$975,IF(J193=$B$976,$A$976,IF(J193=$B$977,$A$977,"Not Calculated"))))) -> 3 | N194: ≤ 100% ↑ demand or ↓ supply (Score = 3)
C195: Data Source / Explanation (Optional): | N195: >100% ↑ demand or ↓ supply (Score = 4)
C196: In the VA Tech Massacre of 2007, 27 are known to have been treated at local emergency departments (Virginia Tech Review Panel, 2007).
C198: Hospital Beds Score: | J198: =IF(J192="N/A",IF(OR(J185="Not Calculated",J194="Not Calculated")=TRUE,"Not Calculated",AVERAGE(J185,J194)),AVERAGE(J192,J194)) -> Not Calculated
C201: Ancillary Services
C202: Baseline Pharmacists: | J202: ='Baseline Health'!G65 -> 0
C203: Hazard-Related Loss of Pharmacists: | J203: 0
C204: Hazard-Related Increase in Demand for Pharmacists: | J204: 0
C205: Magnitude Score: | J205: =IF(OR(J202=0,J202="Not Calculated")=TRUE,"Not Calculated",IF(J202-J203=0,4,IF(((J202+J204)/(J202-J203))<=1,0,IF(((J202+J204)/(J202-J203))<=1.05,1,IF(((J202+J204)/(J202-J203))<=1.5, 2,IF(((J202+J204)/(J202-J203))<=2,3,4)))))) -> Not Calculated
C206: ="0:" -> 0: | D206: No change from baseline
C207: ="1:" -> 1: | D207: (Baseline + ↑ demand) / (Baseline - ↓ supply) ≤ 1.05
C208: ="2:" -> 2: | D208: (Baseline + ↑ demand) / (Baseline - ↓ supply) ≤ 1.5
C209: ="3:" -> 3: | D209: (Baseline + ↑ demand) / (Baseline - ↓ supply) ≤ 2
C210: ="4:" -> 4: | D210: (Baseline + ↑ demand) / (Baseline - ↓ supply) > 2 | N210: Use Quantititive Value
C211: OR, Estimate the Magnitude Qualitatively: | J211: Use Quantititive Value | N211: No change from baseline (Score = 0)
C212: Qualitative Magnitude Score: | J212: =IF(J211=N210,"N/A",IF(J211=N211,0,IF(J211=N212,1,IF(J211=N213,2,IF(J211=N214,3,IF(J211=N215,4,"N/A")))))) -> N/A | N212: ≤ 5% ↑ demand or ↓ supply (Score = 1)
C213: Duration of Impact: | J213: No impact (Score = 0) | N213: ≤ 50% ↑ demand or ↓ supply (Score = 2)
C214: Duration Score: | J214: =IF(J213=$B$973,$A$973,IF(J213=$B$974,$A$974,IF(J213=$B$975,$A$975,IF(J213=$B$976,$A$976,IF(J213=$B$977,$A$977,"Not Calculated"))))) -> 0 | N214: ≤ 100% ↑ demand or ↓ supply (Score = 3)
C215: Data Source / Explanation (Optional): | N215: >100% ↑ demand or ↓ supply (Score = 4)
C218: Ancillary Services Score: | J218: =IF(J212="N/A",IF(OR(J205="Not Calculated",J214="Not Calculated")=TRUE,"Not Calculated",AVERAGE(J205,J214)),AVERAGE(J212,J214)) -> Not Calculated
C221: Trauma Units
C222: Baseline Trauma Center Functioning ORs: | J222: ='Baseline Health'!G71 -> 0
C223: Hazard-Related Loss of Trauma Center Functioning ORs: | J223: 0
C224: Hazard-Related Increase in Demand for Trauma ORs: | J224: =J102 -> 12
D225: (Demand = Increase in Trauma Injuries per Day)
C226: Magnitude Score: | J226: =IF(OR(J222=0,J222="Not Calculated")=TRUE,"Not Calculated",IF(J222-J223=0,4,IF(((J222+J224)/(J222-J223))<=1,0,IF(((J222+J224)/(J222-J223))<=1.05,1,IF(((J222+J224)/(J222-J223))<=1.5, 2,IF(((J222+J224)/(J222-J223))<=2,3,4)))))) -> Not Calculated
C227: ="0:" -> 0: | D227: No change from baseline
C228: ="1:" -> 1: | D228: (Baseline + ↑ demand) / (Baseline - ↓ supply) ≤ 1.05
C229: ="2:" -> 2: | D229: (Baseline + ↑ demand) / (Baseline - ↓ supply) ≤ 1.5
C230: ="3:" -> 3: | D230: (Baseline + ↑ demand) / (Baseline - ↓ supply) ≤ 2
C231: ="4:" -> 4: | D231: (Baseline + ↑ demand) / (Baseline - ↓ supply) > 2 | N231: Use Quantititive Value
C232: OR, Estimate the Magnitude Qualitatively: | J232: Use Quantititive Value | N232: No change from baseline (Score = 0)
C233: Qualitative Magnitude Score: | J233: =IF(J232=N231,"N/A",IF(J232=N232,0,IF(J232=N233,1,IF(J232=N234,2,IF(J232=N235,3,IF(J232=N236,4,"N/A")))))) -> N/A | N233: ≤ 5% ↑ demand or ↓ supply (Score = 1)
C234: Duration of Impact: | J234: ≤ 1 day (Score = 1) | N234: ≤ 50% ↑ demand or ↓ supply (Score = 2)
C235: Duration Score: | J235: =IF(J234=$B$973,$A$973,IF(J234=$B$974,$A$974,IF(J234=$B$975,$A$975,IF(J234=$B$976,$A$976,IF(J234=$B$977,$A$977,"Not Calculated"))))) -> 1 | N235: ≤ 100% ↑ demand or ↓ supply (Score = 3)
C236: Data Source / Explanation (Optional): | N236: >100% ↑ demand or ↓ supply (Score = 4)
C239: Trauma Units Score: | J239: =IF(J233="N/A",IF(OR(J226="Not Calculated",J235="Not Calculated")=TRUE,"Not Calculated",AVERAGE(J226,J235)),AVERAGE(J233,J235)) -> Not Calculated
C242: Mental Health Services Services
C243: Baseline Mental Health Providers: | J243: ='Baseline Health'!G77 -> 0
C244: Hazard-Related Loss of Mental Health Providers: | J244: 0
C245: Hazard-Related Increase in Demand for Mental Health Providers: | J245: ='Community Characteristics'!H105*40/250 -> 0
C246: Magnitude Score: | J246: =IF(OR(J243=0,J243="Not Calculated")=TRUE,"Not Calculated",IF(J243-J244=0,4,(IF(((J243+J245)/(J243-J244))<=1,0,IF(((J243+J245)/(J243-J244))<=1.05,1,IF(((J243+J245)/(J243-J244))<=1.5,2,IF(((J243+J245)/(J243-J244))<=2,3,4))))))) -> Not Calculated
C247: ="0:" -> 0: | D247: No change from baseline
C248: ="1:" -> 1: | D248: (Baseline + ↑ demand) / (Baseline - ↓ supply) ≤ 1.05
C249: ="2:" -> 2: | D249: (Baseline + ↑ demand) / (Baseline - ↓ supply) ≤ 1.5
C250: ="3:" -> 3: | D250: (Baseline + ↑ demand) / (Baseline - ↓ supply) ≤ 2
C251: ="4:" -> 4: | D251: (Baseline + ↑ demand) / (Baseline - ↓ supply) > 2 | N251: Use Quantititive Value
C252: OR, Estimate the Magnitude Qualitatively: | J252: Use Quantititive Value | N252: No change from baseline (Score = 0)
C253: Qualitative Magnitude Score: | J253: =IF(J252=N251,"N/A",IF(J252=N252,0,IF(J252=N253,1,IF(J252=N254,2,IF(J252=N255,3,IF(J252=N256,4,"N/A")))))) -> N/A | N253: ≤ 5% ↑ demand or ↓ supply (Score = 1)
C254: Duration of Impact: | J254: > 2 weeks (Score = 4) | N254: ≤ 50% ↑ demand or ↓ supply (Score = 2)
C255: Duration Score: | J255: =IF(J254=$B$973,$A$973,IF(J254=$B$974,$A$974,IF(J254=$B$975,$A$975,IF(J254=$B$976,$A$976,IF(J254=$B$977,$A$977,"Not Calculated"))))) -> 4 | N255: ≤ 100% ↑ demand or ↓ supply (Score = 3)
C256: Data Source / Explanation (Optional): | N256: >100% ↑ demand or ↓ supply (Score = 4)
... 553 more rows

Sheet Biological Terrorism
G2: Public Health Risk Assessment Tool
G3: Biological Terrorism
B5: Biological terrorism is the intentional release of a biological agent to cause illness. The biological agent involved in bioterrorism may be a living germ or a poison, such as anthrax, ricin, or botulism toxin (Aronson et al., 2008).
B7: The following hazard impacts have been estimated using historical data, predictive models, estimations where necessary, and the information entered in the "Baseline Data" worksheets. The information below can be altered as needed to more accurately reflect hazard impacts in your jurisdiction. The impacts should reflect the worst-case reasonable scenario.
B8: Briefly describe the worst-case reasonable scenario of this hazard (the scenario to which the following impacts apply) here:
B9: The proxy scenario used to predict the impacts of a bioterrorism incident is the St. Charles County (SCC) Planning Scenario: "Family Arena Biological Attack - Aerosol Anthrax." In the scenario, a single aerosol anthrax attack is delivered by a truck using a concealed improvised spraying device to the Family Arena on the day of a sold-out concert. Expected attendance is 11,522, including staff working at the Family Arena. The surrounding residential population density per square mile is 2,841. It is assumed this incident will spread over a five-mile radius, resulting in a residential population density of 14,205. Anthrax spored delivered by aerosol delivery result in inhalation anthrax, which develops when the bacterial organism, Bacillus anthracis, is inhaled into the lungs. A progressive infection follows.
G12: Probability
C14: Probability: | E14: The hazard is not likely to occur in the system lifecycle (100 years), but it is possible.
C17: Probability Score: | E17: =IF(E14=$C$966,$A$967,IF(E14=$C$967,$A$968,IF(E14=$C$968,$A$969,IF(E14=$C$969,$A$970,IF(E14=$C$970,$A$971,"Not Calculated"))))) -> 1
E18: =IF(E14=$C$966,$B$966,IF(E14=$C$967,$B$967,IF(E14=$C$968,$B$968,IF(E14=$C$969,$B$969,IF(E14=$C$970,$B$970,"Not Calculated"))))) -> Remote
G22: Human Impact
C24: Mortality
C25: Baseline Mortality per Day: | J25: ='Baseline Health'!G11 -> 0
C26: Hazard-Related Increase in Mortality per Day: | J26: 34
C27: Magnitude Score: | J27: =IF(OR(J25=0,J25="Not Calculated")=TRUE,"Not Calculated",(IF(((J26+J25)/J25)<=1,0,IF(((J26+J25)/J25)<=1.05,1,IF(((J26+J25)/J25)<=1.5, 2,IF(((J26+J25)/J25)<=2,3,4)))))) -> Not Calculated | L27: 1029 untreated fatalities/30 days
C28: ="0:" -> 0: | D28: No change from baseline
C29: ="1:" -> 1: | D29: ≤ 5% increase
C30: ="2:" -> 2: | D30: ≤ 50% increase
C31: ="3:" -> 3: | D31: ≤ 100% increase
C32: ="4:" -> 4: | D32: >100% increase
C33: OR, Estimate the Magnitude Qualitatively: | J33: Use Quantititive Value | N33: Use Quantititive Value
C34: Qualitative Magnitude Score: | J34: =IF(J33=N33,"N/A",IF(J33=N34,0,IF(J33=N35,1,IF(J33=N36,2,IF(J33=N37,3,IF(J33=N38,4,"N/A")))))) -> N/A | N34: No change from baseline (Score = 0)
C35: Duration of Impact: | J35: > 2 weeks (Score = 4) | N35: ≤ 5% increase (Score = 1)
C36: Duration Score: | J36: =IF(J35=$B$973,$A$974,IF(J35=$B$974,$A$975,IF(J35=$B$975,$A$976,IF(J35=$B$976,$A$977,IF(J35=$B$977,$A$978,"Not Calculated"))))) -> 4 | N36: ≤ 50% increase (Score = 2)
C37: Data Source / Explanation (Optional): | N37: ≤ 100% increase (Score = 3)
C38: In the SCC Planning Scenario, 1,029 untreated fatalities are predicted. The incubation period has a range of about 30 days. | N38: >100% increase (Score = 4)
C40: Mortality Score: | J40: =IF(J34="N/A",IF(OR(J27="Not Calculated",J36="Not Calculated")=TRUE,"Not Calculated",AVERAGE(J27,J36)),AVERAGE(J34,J36)) -> Not Calculated
C43: EMS Transports
C44: Baseline Transports per Day: | J44: ='Baseline Health'!G17 -> 0
C45: Hazard-Related Increase in Transports per Day: | J45: 2.57
C46: Magnitude Score: | J46: =IF(OR(J44=0,J44="Not Calculated")=TRUE,"Not Calculated",(IF(((J45+J44)/J44)<=1,0,IF(((J45+J44)/J44)<=1.05,1,IF(((J45+J44)/J44)<=1.5, 2,IF(((J45+J44)/J44)<=2,3,4)))))) -> Not Calculated | L46: 257 x 0.3 / 30 days
C47: ="0:" -> 0: | D47: No change from baseline
C48: ="1:" -> 1: | D48: ≤ 5% increase
C49: ="2:" -> 2: | D49: ≤ 50% increase
C50: ="3:" -> 3: | D50: ≤ 100% increase
C51: ="4:" -> 4: | D51: >100% increase
C52: OR, Estimate the Magnitude Qualitatively: | J52: Use Quantititive Value | N52: Use Quantititive Value
C53: Qualitative Magnitude Score: | J53: =IF(J52=N52,"N/A",IF(J52=N53,0,IF(J52=N54,1,IF(J52=N55,2,IF(J52=N56,3,IF(J52=N57,4,"N/A")))))) -> N/A | N53: No change from baseline (Score = 0)
C54: Duration of Impact: | J54: > 2 weeks (Score = 4) | N54: ≤ 5% increase (Score = 1)
C55: Duration Score: | J55: =IF(J54=$B$973,$A$974,IF(J54=$B$974,$A$975,IF(J54=$B$975,$A$976,IF(J54=$B$976,$A$977,IF(J54=$B$977,$A$978,"Not Calculated"))))) -> 4 | N55: ≤ 50% increase (Score = 2)
C56: Data Source / Explanation (Optional): | N56: ≤ 100% increase (Score = 3)
C57: In the SCC Planning Scenario, it is predicted that 25,727 people will be exposed, based on the population of the Family Arena at its busiest time (11,511) and a surrounding residential population density of 2,841 per square mile (5 square miles = 14,205). It is assumed that about 1% of those exposed will seek care (257), and that 30% of those will be transported by EMS. The incubation period has a range of about 30 days (Meselson et al., 1994). | N57: >100% increase (Score = 4)
L58: 11,511 FA population at busiest time + (2,841 x 5) = 11,511 + 14,205 = 25,727 people exposed
C59: EMS Transports Score: | J59: =IF(J53="N/A",IF(OR(J46="Not Calculated",J55="Not Calculated")=TRUE,"Not Calculated",AVERAGE(J46,J55)),AVERAGE(J53,J55)) -> Not Calculated
C62: ED Visits
C63: Baseline ED Visits per Day: | J63: ='Baseline Health'!G23 -> 0
C64: Hazard-Related Increase in ED Visits per Day: | J64: 9
C65: Magnitude Score: | J65: =IF(OR(J63=0,J63="Not Calculated")=TRUE,"Not Calculated",(IF(((J64+J63)/J63)<=1,0,IF(((J64+J63)/J63)<=1.05,1,IF(((J64+J63)/J63)<=1.5, 2,IF(((J64+J63)/J63)<=2,3,4)))))) -> Not Calculated | L65: 257/30 days
C66: ="0:" -> 0: | D66: No change from baseline
C67: ="1:" -> 1: | D67: ≤ 5% increase
C68: ="2:" -> 2: | D68: ≤ 50% increase
C69: ="3:" -> 3: | D69: ≤ 100% increase
C70: ="4:" -> 4: | D70: >100% increase
C71: OR, Estimate the Magnitude Qualitatively: | J71: Use Quantititive Value | N71: Use Quantititive Value
C72: Qualitative Magnitude Score: | J72: =IF(J71=N71,"N/A",IF(J71=N72,0,IF(J71=N73,1,IF(J71=N74,2,IF(J71=N75,3,IF(J71=N76,4,"N/A")))))) -> N/A | N72: No change from baseline (Score = 0)
C73: Duration of Impact: | J73: > 2 weeks (Score = 4) | N73: ≤ 5% increase (Score = 1)
C74: Duration Score: | J74: =IF(J73=$B$973,$A$974,IF(J73=$B$974,$A$975,IF(J73=$B$975,$A$976,IF(J73=$B$976,$A$977,IF(J73=$B$977,$A$978,"Not Calculated"))))) -> 4 | N74: ≤ 50% increase (Score = 2)
C75: Data Source / Explanation (Optional): | N75: ≤ 100% increase (Score = 3)
C76: In the SCC Planning Scenario, it is predicted that 25,727 people will be exposed, based on the population of the Family Arena at its busiest time (11,511) and a surrounding residential population density of 2,841 per square mile (5 square miles = 14,205). It is assumed that about 1% of those exposed will seek care (257). The incubation period has a range of about 30 days (Meselson et al., 1994). | N76: >100% increase (Score = 4)
C78: ED Visits Score: | J78: =IF(J72="N/A",IF(OR(J65="Not Calculated",J74="Not Calculated")=TRUE,"Not Calculated",AVERAGE(J65,J74)),AVERAGE(J72,J74)) -> Not Calculated
C81: Primary Care Office Visits
C82: Baseline Office Visits per Day: | J82: ='Baseline Health'!G29 -> 0
C83: Hazard-Related Increase in Office Visits per Day: | J83: 1715
C84: Magnitude Score: | J84: =IF(OR(J82=0,J82="Not Calculated")=TRUE,"Not Calculated",(IF(((J83+J82)/J82)<=1,0,IF(((J83+J82)/J82)<=1.05,1,IF(((J83+J82)/J82)<=1.5, 2,IF(((J83+J82)/J82)<=2,3,4)))))) -> Not Calculated | L84: 25,727 x 2 / 30 days
C85: ="0:" -> 0: | D85: No change from baseline
C86: ="1:" -> 1: | D86: ≤ 5% increase
C87: ="2:" -> 2: | D87: ≤ 50% increase
C88: ="3:" -> 3: | D88: ≤ 100% increase
C89: ="4:" -> 4: | D89: >100% increase
C90: OR, Estimate the Magnitude Qualitatively: | J90: Use Quantititive Value | N90: Use Quantititive Value
C91: Qualitative Magnitude Score: | J91: =IF(J90=N90,"N/A",IF(J90=N91,0,IF(J90=N92,1,IF(J90=N93,2,IF(J90=N94,3,IF(J90=N95,4,"N/A")))))) -> N/A | N91: No change from baseline (Score = 0)
C92: Duration of Impact: | J92: > 2 weeks (Score = 4) | N92: ≤ 5% increase (Score = 1)
C93: Duration Score: | J93: =IF(J92=$B$973,$A$974,IF(J92=$B$974,$A$975,IF(J92=$B$975,$A$976,IF(J92=$B$976,$A$977,IF(J92=$B$977,$A$978,"Not Calculated"))))) -> 4 | N93: ≤ 50% increase (Score = 2)
C94: Data Source / Explanation (Optional): | N94: ≤ 100% increase (Score = 3)
C95: In the SCC Planning Scenario, it is predicted that 25,727 people will be exposed. It is assumed that about 1% of those exposed will seek care (257). It is assumed that about double that number – including many worried well – will want to meet with a PCP for prophylactic antibiotics or follow-up care over 1 month. | N95: >100% increase (Score = 4)
C97: Primary Care Office Visits Score: | J97: =IF(J91="N/A",IF(OR(J84="Not Calculated",J93="Not Calculated")=TRUE,"Not Calculated",AVERAGE(J84,J93)),AVERAGE(J91,J93)) -> Not Calculated
C100: Trauma Center Injuries
C101: Baseline Trauma Injuries per Day: | J101: ='Baseline Health'!G35 -> 0
C102: Hazard-Related Increase in Trauma Injuries per Day: | J102: 0
C103: Magnitude Score: | J103: =IF(OR(J101=0,J101="Not Calculated")=TRUE,"Not Calculated",(IF(((J102+J101)/J101)<=1,0,IF(((J102+J101)/J101)<=1.05,1,IF(((J102+J101)/J101)<=1.5, 2,IF(((J102+J101)/J101)<=2,3,4)))))) -> Not Calculated
C104: ="0:" -> 0: | D104: No change from baseline
C105: ="1:" -> 1: | D105: ≤ 5% increase
C106: ="2:" -> 2: | D106: ≤ 50% increase
C107: ="3:" -> 3: | D107: ≤ 100% increase
C108: ="4:" -> 4: | D108: >100% increase
C109: OR, Estimate the Magnitude Qualitatively: | J109: Use Quantititive Value | N109: Use Quantititive Value
C110: Qualitative Magnitude Score: | J110: =IF(J109=N109,"N/A",IF(J109=N110,0,IF(J109=N111,1,IF(J109=N112,2,IF(J109=N113,3,IF(J109=N114,4,"N/A")))))) -> N/A | N110: No change from baseline (Score = 0)
C111: Duration of Impact: | J111: No impact (Score = 0) | N111: ≤ 5% increase (Score = 1)
C112: Duration Score: | J112: =IF(J111=$B$973,$A$974,IF(J111=$B$974,$A$975,IF(J111=$B$975,$A$976,IF(J111=$B$976,$A$977,IF(J111=$B$977,$A$978,"Not Calculated"))))) -> 0 | N112: ≤ 50% increase (Score = 2)
C113: Data Source / Explanation (Optional): | N113: ≤ 100% increase (Score = 3)
N114: >100% increase (Score = 4)
C116: Trauma Center Injuries Score: | J116: =IF(J110="N/A",IF(OR(J103="Not Calculated",J112="Not Calculated")=TRUE,"Not Calculated",AVERAGE(J103,J112)),AVERAGE(J110,J112)) -> Not Calculated
C119: Mental Health Impact
C120: Mental Health Impact (Percent of population developing psychopathology and behavioral changes after the incident, including PTST, depression, anxiety, alcohol and substance abuse, domestic violence, and loss of social functions):
C123: Population displays distress with ≥50% psychopathology.
C125: Magnitude Score: | J125: =IF(C123=B987,A988,IF(C123=B988,A989,IF(C123=B989,A990,IF(C123=B990,A991,IF(C123=B991,A992,"Not Calculated"))))) -> 4
C126: Duration of Impact: | J126: > 2 weeks (Score = 4)
C127: Duration Score: | J127: =IF(J126=$B$973,$A$974,IF(J126=$B$974,$A$975,IF(J126=$B$975,$A$976,IF(J126=$B$976,$A$977,IF(J126=$B$977,$A$978,"Not Calculated"))))) -> 4
C128: Data Source / Explanation (Optional):
C129: Evidence suggests that 30-40% of people affected by a terrorist action are likely to develop PTSD (Whalley & Brewin, 2007). In addition to PTSD, behavioral changes, anxiety, depression, and other behavioral health consequences are likely to occur.
C131: Mental Health Score: | J131: =IF(OR(J125="Not Calculated",J127="Not Calculated")=TRUE,"Not Calculated",AVERAGE(J125,J127)) -> 4
C133: Human Impact Score: | J133: =IF(OR(J40="Not Calculated",J59="Not Calculated",J78="Not Calculated",J97="Not Calculated",J116="Not Calculated",J131="Not Calculated",)=TRUE,"Not Calculated",AVERAGE(J40,J59,J78,J97,J116,J131)) -> Not Calculated
G137: Healthcare Service Impact
C139: Outpatient Services
C140: Baseline PCPs: | J140: ='Baseline Health'!G45 -> 1
C141: Hazard-Related Loss of PCPs: | J141: =J140*0.02 -> 0.02
C142: Hazard-Related Increase in Demand for PCPs per Day: | J142: =J83/20 -> 85.75 | L142: 150 PCPs x 0.02 = 3
D143: (PCP Demand = Increase in Office Visits / 20)
C144: Magnitude Score: | J144: =IF(OR(J140=0,J140="Not Calculated")=TRUE,"Not Calculated",IF((J140-J141)<=0,4,IF(((J140+J142)/(J140-J141))<=1,0,IF(((J140+J142)/(J140-J141))<=1.05,1,IF(((J140+J142)/(J140-J141))<=1.5, 2,IF(((J140+J142)/(J140-J141))<=2,3,4)))))) -> 4
C145: ="0:" -> 0: | D145: No change from baseline
C146: ="1:" -> 1: | D146: (Baseline + ↑ demand) / (Baseline - ↓ supply) ≤ 1.05
C147: ="2:" -> 2: | D147: (Baseline + ↑ demand) / (Baseline - ↓ supply) ≤ 1.5
C148: ="3:" -> 3: | D148: (Baseline + ↑ demand) / (Baseline - ↓ supply) ≤ 2
C149: ="4:" -> 4: | D149: (Baseline + ↑ demand) / (Baseline - ↓ supply) > 2
C150: OR, Estimate the Magnitude Qualitatively: | J150: Use Quantititive Value | N150: Use Quantititive Value
C151: Qualitative Magnitude Score: | J151: =IF(J150=N150,"N/A",IF(J150=N151,0,IF(J150=N152,1,IF(J150=N153,2,IF(J150=N154,3,IF(J150=N155,4,"N/A")))))) -> N/A | N151: No change from baseline (Score = 0)
C152: Duration of Impact: | J152: > 2 weeks (Score = 4) | N152: ≤ 5% ↑ demand or ↓ supply (Score = 1)
C153: Duration Score: | J153: =IF(J152=$B$973,$A$974,IF(J152=$B$974,$A$975,IF(J152=$B$975,$A$976,IF(J152=$B$976,$A$977,IF(J152=$B$977,$A$978,"Not Calculated"))))) -> 4 | N153: ≤ 50% ↑ demand or ↓ supply (Score = 2)
C154: Data Source / Explanation (Optional): | N154: ≤ 100% ↑ demand or ↓ supply (Score = 3)
C155: It is assumed that 2% of providers are unable to report to work due to illness, based upon the attack rate in Sverdlovsk after an accidental weaponized anthrax release (Meselson et al., 1994). | N155: >100% ↑ demand or ↓ supply (Score = 4)
C157: Outpatient Services Score: | J157: =IF(J151="N/A",IF(OR(J144="Not Calculated",J153="Not Calculated")=TRUE,"Not Calculated",AVERAGE(J144,J153)),AVERAGE(J151,J153)) -> 4
C160: ED Services
C161: Baseline ED Beds: | J161: ='Baseline Health'!G51 -> 0
C162: Hazard-Related Loss of ED Beds: | J162: 2
C163: Hazard-Related Increase in Demand for ED Beds per Day: | J163: =(J64)/4.5 -> 2 | L163: 89 ED Beds x 0.02 = 1.78, rounded to 2
D164: (ED Bed Demand per Day = Increase in ED Visits / 4.5)
C165: Magnitude Score: | J165: =IF(OR(J161=0,J161="Not Calculated")=TRUE,"Not Calculated",IF((J161-J162)<=0,4,IF(((J161+J163)/(J161-J162))<=1,0,IF(((J161+J163)/(J161-J162))<=1.05,1,IF(((J161+J163)/(J161-J162))<=1.5, 2,IF(((J161+J163)/(J161-J162))<=2,3,4)))))) -> Not Calculated
C166: ="0:" -> 0: | D166: No change from baseline
C167: ="1:" -> 1: | D167: (Baseline + ↑ demand) / (Baseline - ↓ supply) ≤ 1.05
C168: ="2:" -> 2: | D168: (Baseline + ↑ demand) / (Baseline - ↓ supply) ≤ 1.5
C169: ="3:" -> 3: | D169: (Baseline + ↑ demand) / (Baseline - ↓ supply) ≤ 2
C170: ="4:" -> 4: | D170: (Baseline + ↑ demand) / (Baseline - ↓ supply) > 2
C171: OR, Estimate the Magnitude Qualitatively: | J171: Use Quantititive Value | N171: Use Quantititive Value
C172: Qualitative Magnitude Score: | J172: =IF(J171=N171,"N/A",IF(J171=N172,0,IF(J171=N173,1,IF(J171=N174,2,IF(J171=N175,3,IF(J171=N176,4,"N/A")))))) -> N/A | N172: No change from baseline (Score = 0)
C173: Duration of Impact: | J173: > 2 weeks (Score = 4) | N173: ≤ 5% ↑ demand or ↓ supply (Score = 1)
C174: Duration Score: | J174: =IF(J173=$B$973,$A$974,IF(J173=$B$974,$A$975,IF(J173=$B$975,$A$976,IF(J173=$B$976,$A$977,IF(J173=$B$977,$A$978,"Not Calculated"))))) -> 4 | N174: ≤ 50% ↑ demand or ↓ supply (Score = 2)
C175: Data Source / Explanation (Optional): | N175: ≤ 100% ↑ demand or ↓ supply (Score = 3)
C176: It is assumed that the number of staffed beds is reduced because 2% of providers are unable to report to work due to illness, based upon the attack rate in Sverdlovsk after the 1979 accidental weaponized anthrax release (Meselson et al., 1994). | N176: >100% ↑ demand or ↓ supply (Score = 4)
C178: ED Services Score: | J178: =IF(J172="N/A",IF(OR(J165="Not Calculated",J174="Not Calculated")=TRUE,"Not Calculated",AVERAGE(J165,J174)),AVERAGE(J172,J174)) -> Not Calculated
C181: Hospital Beds
C182: Baseline Hospital Beds: | J182: ='Baseline Health'!G59 -> 0
C183: Hazard-Related Loss of Hospital Beds: | J183: =J182*0.02 -> 0
C184: Hazard-Related Increase in Demand for Hospital Beds: | J184: =13208+2201 -> 15409 | L184: 920 Hospital Beds x 0.02 = 18
C185: Magnitude Score: | J185: =IF(OR(J182=0,J182="Not Calculated")=TRUE,"Not Calculated",IF(J182-J183=0,4,IF(((J182+J184)/(J182-J183))<=1,0,IF(((J182+J184)/(J182-J183))<=1.05,1,IF(((J182+J184)/(J182-J183))<=1.5, 2,IF(((J182+J184)/(J182-J183))<=2,3,4)))))) -> Not Calculated
C186: ="0:" -> 0: | D186: No change from baseline
C187: ="1:" -> 1: | D187: (Baseline + ↑ demand) / (Baseline - ↓ supply) ≤ 1.05
C188: ="2:" -> 2: | D188: (Baseline + ↑ demand) / (Baseline - ↓ supply) ≤ 1.5
C189: ="3:" -> 3: | D189: (Baseline + ↑ demand) / (Baseline - ↓ supply) ≤ 2
C190: ="4:" -> 4: | D190: (Baseline + ↑ demand) / (Baseline - ↓ supply) > 2
C191: OR, Estimate the Magnitude Qualitatively: | J191: Use Quantititive Value | N191: Use Quantititive Value
C192: Qualitative Magnitude Score: | J192: =IF(J191=N191,"N/A",IF(J191=N192,0,IF(J191=N193,1,IF(J191=N194,2,IF(J191=N195,3,IF(J191=N196,4,"N/A")))))) -> N/A | N192: No change from baseline (Score = 0)
C193: Duration of Impact: | J193: > 2 weeks (Score = 4) | N193: ≤ 5% ↑ demand or ↓ supply (Score = 1)
C194: Duration Score: | J194: =IF(J193=$B$973,$A$974,IF(J193=$B$974,$A$975,IF(J193=$B$975,$A$976,IF(J193=$B$976,$A$977,IF(J193=$B$977,$A$978,"Not Calculated"))))) -> 4 | N194: ≤ 50% ↑ demand or ↓ supply (Score = 2)
C195: Data Source / Explanation (Optional): | N195: ≤ 100% ↑ demand or ↓ supply (Score = 3)
C196: It is assumed that the number of staffed beds is reduced because 2% of providers are unable to report to work due to illness, based upon the attack rate in Sverdlovsk after the 1979 accidental weaponized anthrax release (Meselson et al., 1994). In the SCC Planning Scenario, “many” are predicted to require advanced critical care due to inhalational anthrax. In Sverldlovsk, 66 patients who died and eleven survivors were hospitalized, for an average of two days and three weeks, respectively (Meselson et al., 1994). It is assumed that the same ratio of fatalities to survivors is expected, so 13,208 fatalities are expected to require hospitalization for 2 days (Department of Homeland Security, 2006), and 2,201 survivors are expected to require hospitalization for 3 weeks. The incubation period has a range of about 30 days (Meselson et al., 1994) | N196: >100% ↑ demand or ↓ supply (Score = 4)
C198: Hospital Beds Score: | J198: =IF(J192="N/A",IF(OR(J185="Not Calculated",J194="Not Calculated")=TRUE,"Not Calculated",AVERAGE(J185,J194)),AVERAGE(J192,J194)) -> Not Calculated
C201: Ancillary Services
C202: Baseline Pharmacists: | J202: ='Baseline Health'!G65 -> 0
C203: Hazard-Related Loss of Pharmacists: | J203: =J202*0.02 -> 0
C204: Hazard-Related Increase in Demand for Pharmacists: | J204: 2 | L204: 686 x 0.02 = 13.72 = 14
C205: Magnitude Score: | J205: =IF(OR(J202=0,J202="Not Calculated")=TRUE,"Not Calculated",IF(J202-J203=0,4,IF(((J202+J204)/(J202-J203))<=1,0,IF(((J202+J204)/(J202-J203))<=1.05,1,IF(((J202+J204)/(J202-J203))<=1.5, 2,IF(((J202+J204)/(J202-J203))<=2,3,4)))))) -> Not Calculated | L205: 25727/480/30 = 1.78 = 2
C206: ="0:" -> 0: | D206: No change from baseline
C207: ="1:" -> 1: | D207: (Baseline + ↑ demand) / (Baseline - ↓ supply) ≤ 1.05
C208: ="2:" -> 2: | D208: (Baseline + ↑ demand) / (Baseline - ↓ supply) ≤ 1.5
C209: ="3:" -> 3: | D209: (Baseline + ↑ demand) / (Baseline - ↓ supply) ≤ 2
C210: ="4:" -> 4: | D210: (Baseline + ↑ demand) / (Baseline - ↓ supply) > 2
C211: OR, Estimate the Magnitude Qualitatively: | J211: Use Quantititive Value | N211: Use Quantititive Value
C212: Qualitative Magnitude Score: | J212: =IF(J211=N211,"N/A",IF(J211=N212,0,IF(J211=N213,1,IF(J211=N214,2,IF(J211=N215,3,IF(J211=N216,4,"N/A")))))) -> N/A | N212: No change from baseline (Score = 0)
C213: Duration of Impact: | J213: > 2 weeks (Score = 4) | N213: ≤ 5% ↑ demand or ↓ supply (Score = 1)
C214: Duration Score: | J214: =IF(J213=$B$973,$A$974,IF(J213=$B$974,$A$975,IF(J213=$B$975,$A$976,IF(J213=$B$976,$A$977,IF(J213=$B$977,$A$978,"Not Calculated"))))) -> 4 | N214: ≤ 50% ↑ demand or ↓ supply (Score = 2)
C215: Data Source / Explanation (Optional): | N215: ≤ 100% ↑ demand or ↓ supply (Score = 3)
C216: It is assumed that the number of staffed beds is reduced because 2% of providers are unable to report to work due to illness, based upon the attack rate in Sverdlovsk after the 1979 accidental weaponized anthrax release (Meselson et al., 1994). Pharmacies may be required to dispense countermeasures directly. It is assumed that 1 pharmacist can fill 480 drug orders per day (3 minutes each), and that 25,727 drug orders will be required, based on the number exposed (Department of Homeland Security, 2006). The incubation period has a range of about 30 days (Meselson et al., 1994) | N216: >100% ↑ demand or ↓ supply (Score = 4)
C218: Ancillary Services Score: | J218: =IF(J212="N/A",IF(OR(J205="Not Calculated",J214="Not Calculated")=TRUE,"Not Calculated",AVERAGE(J205,J214)),AVERAGE(J212,J214)) -> Not Calculated
C221: Trauma Units
C222: Baseline Trauma Center Functioning ORs: | J222: ='Baseline Health'!G71 -> 0
C223: Hazard-Related Loss of Trauma Center Functioning ORs: | J223: 0
C224: Hazard-Related Increase in Demand for Trauma ORs: | J224: =J102 -> 0
D225: (Demand = Increase in Trauma Injuries per Day)
C226: Magnitude Score: | J226: =IF(OR(J222=0,J222="Not Calculated")=TRUE,"Not Calculated",IF(J222-J223=0,4,IF(((J222+J224)/(J222-J223))<=1,0,IF(((J222+J224)/(J222-J223))<=1.05,1,IF(((J222+J224)/(J222-J223))<=1.5, 2,IF(((J222+J224)/(J222-J223))<=2,3,4)))))) -> Not Calculated
C227: ="0:" -> 0: | D227: No change from baseline
C228: ="1:" -> 1: | D228: (Baseline + ↑ demand) / (Baseline - ↓ supply) ≤ 1.05
C229: ="2:" -> 2: | D229: (Baseline + ↑ demand) / (Baseline - ↓ supply) ≤ 1.5
C230: ="3:" -> 3: | D230: (Baseline + ↑ demand) / (Baseline - ↓ supply) ≤ 2
C231: ="4:" -> 4: | D231: (Baseline + ↑ demand) / (Baseline - ↓ supply) > 2
C232: OR, Estimate the Magnitude Qualitatively: | J232: Use Quantititive Value | N232: Use Quantititive Value
C233: Qualitative Magnitude Score: | J233: =IF(J232=N232,"N/A",IF(J232=N233,0,IF(J232=N234,1,IF(J232=N235,2,IF(J232=N236,3,IF(J232=N237,4,"N/A")))))) -> N/A | N233: No change from baseline (Score = 0)
C234: Duration of Impact: | J234: No impact (Score = 0) | N234: ≤ 5% ↑ demand or ↓ supply (Score = 1)
C235: Duration Score: | J235: =IF(J234=$B$973,$A$974,IF(J234=$B$974,$A$975,IF(J234=$B$975,$A$976,IF(J234=$B$976,$A$977,IF(J234=$B$977,$A$978,"Not Calculated"))))) -> 0 | N235: ≤ 50% ↑ demand or ↓ supply (Score = 2)
C236: Data Source / Explanation (Optional): | N236: ≤ 100% ↑ demand or ↓ supply (Score = 3)
C237: No trauma cases. | N237: >100% ↑ demand or ↓ supply (Score = 4)
C239: Trauma Units Score: | J239: =IF(J233="N/A",IF(OR(J226="Not Calculated",J235="Not Calculated")=TRUE,"Not Calculated",AVERAGE(J226,J235)),AVERAGE(J233,J235)) -> Not Calculated
C242: Mental Health Services Services
C243: Baseline Mental Health Providers: | J243: ='Baseline Health'!G77 -> 0
C244: Hazard-Related Loss of Mental Health Providers: | J244: =J243*0.02 -> 0
C245: Hazard-Related Increase in Demand for Mental Health Providers: | J245: =25727*40/250 -> 4116.32 | L245: 670 x 0.02 = 13
C246: Magnitude Score: | J246: =IF(OR(J243=0,J243="Not Calculated")=TRUE,"Not Calculated",IF(J243-J244=0,4,(IF(((J243+J245)/(J243-J244))<=1,0,IF(((J243+J245)/(J243-J244))<=1.05,1,IF(((J243+J245)/(J243-J244))<=1.5,2,IF(((J243+J245)/(J243-J244))<=2,3,4))))))) -> Not Calculated | L246: 25727 x 40 / 250 = 4,116
C247: ="0:" -> 0: | D247: No change from baseline
C248: ="1:" -> 1: | D248: (Baseline + ↑ demand) / (Baseline - ↓ supply) ≤ 1.05
C249: ="2:" -> 2: | D249: (Baseline + ↑ demand) / (Baseline - ↓ supply) ≤ 1.5
C250: ="3:" -> 3: | D250: (Baseline + ↑ demand) / (Baseline - ↓ supply) ≤ 2
... 566 more rows

Sheet Chemical Terrorism
G2: Public Health Risk Assessment Tool
G3: Chemical Terrorism
B5: Chemical terrorism is the use of chemical agents to inflict mass casualties. There are four groups of such agents: inhalants, cyanide gases, vesicants, and nerve agents. Vesicants and nerve agents have the most potential to cause mass destruction. Mustard is an example of a vesicant; its sulfur and nitrogen analogues are aerosolized liquids that linger on victims, incapacitating through their effects on the skin, eye, and respiratory tract. Mortality is low, but morbidity is substantial and mass casualties strain health care resources. Nerve agents produce much higher mortality. Tabun, Sarin, Soman, and VX are nerve agents that can be fatal without timely administration of antidotes (Goozner, Lutwick, & Bourke, 2002).
B7: The following hazard impacts have been estimated using historical data, predictive models, estimations where necessary, and the information entered in the "Baseline Data" worksheets. The information below can be altered as needed to more accurately reflect hazard impacts in your jurisdiction. The impacts should reflect the worst-case reasonable scenario.
B9: Briefly describe the worst-case reasonable scenario of this hazard (the scenario to which the following impacts apply) here:
B10: The proxy scenario used to predict the impacts of a chemical terrorism incident is based on the National Planning Scenario: "Chemical Attack - Nerve Agent." In the scenario, a terrorist builds six spray dissemination devices and releases Sarin vapor into the ventilation systems of three large commercial office buildings in a metropolitan area. The agent kills 95% of the people in the buildings, and kills or sickens many of the first responders. In addition, some of the agent exits through rooftop ventilation stacks, creating a downwind hazard (Department of Homeland Security, 2006). In the altered scenario, spray dissemination devices are released in the ventilation of a large local building - the building with the largest daytime population in the region. The morbidity and mortality rates of the NPS are applied to the occupancy of this building. | L10: narrative does not match 1 bldg with population
G13: Probability
C15: Probability: | E15: The hazard is not likely to occur in the system lifecycle (100 years), but it is possible.
C17: Probability Score: | E17: =IF(E15=$C$966,$A$966,IF(E15=$C$967,$A$967,IF(E15=$C$968,$A$968,IF(E15=$C$969,$A$969,IF(E15=$C$970,$A$970,"Not Calculated"))))) -> 1
E18: =IF(E15=$C$966,$B$966,IF(E15=$C$967,$B$967,IF(E15=$C$968,$B$968,IF(E15=$C$969,$B$969,IF(E15=$C$970,$B$970,"Not Calculated"))))) -> Remote
G22: Human Impact
C24: Mortality
C25: Baseline Mortality per Day: | J25: ='Baseline Health'!G11 -> 0
C26: Hazard-Related Increase in Mortality per Day: | J26: ='Community Characteristics'!H111*0.95 -> 0
C27: Magnitude Score: | J27: =IF(OR(J25=0,J25="Not Calculated")=TRUE,"Not Calculated",(IF(((J26+J25)/J25)<=1,0,IF(((J26+J25)/J25)<=1.05,1,IF(((J26+J25)/J25)<=1.5, 2,IF(((J26+J25)/J25)<=2,3,4)))))) -> Not Calculated
C28: ="0:" -> 0: | D28: No change from baseline
C29: ="1:" -> 1: | D29: ≤ 5% increase
C30: ="2:" -> 2: | D30: ≤ 50% increase
C31: ="3:" -> 3: | D31: ≤ 100% increase
C32: ="4:" -> 4: | D32: >100% increase | N32: Use Quantititive Value
C33: OR, Estimate the Magnitude Qualitatively: | J33: Use Quantititive Value | N33: No change from baseline (Score = 0)
C34: Qualitative Magnitude Score: | J34: =IF(J33=N32,"N/A",IF(J33=N33,0,IF(J33=N34,1,IF(J33=N35,2,IF(J33=N36,3,IF(J33=N37,4,"N/A")))))) -> N/A | N34: ≤ 5% increase (Score = 1)
C35: Duration of Impact: | J35: ≤ 1 day (Score = 1) | N35: ≤ 50% increase (Score = 2)
C36: Duration Score: | J36: =IF(J35=$B$973,$A$973,IF(J35=$B$974,$A$974,IF(J35=$B$975,$A$975,IF(J35=$B$976,$A$976,IF(J35=$B$977,$A$977,"Not Calculated"))))) -> 1 | N36: ≤ 100% increase (Score = 3)
C37: Data Source / Explanation (Optional): | N37: >100% increase (Score = 4)
C38: In the Sarin National Planning Scenario, mortality is expected in 95% of the building's occupants (Department of Homeland Security, 2006).
C40: Mortality Score: | J40: =IF(J34="N/A",IF(OR(J27="Not Calculated",J36="Not Calculated")=TRUE,"Not Calculated",AVERAGE(J27,J36)),AVERAGE(J34,J36)) -> Not Calculated
C43: EMS Transports
C44: Baseline Transports per Day: | J44: ='Baseline Health'!G17 -> 0
C45: Hazard-Related Increase in Transports per Day: | J45: ='Community Characteristics'!H111*0.05 -> 0
C46: Magnitude Score: | J46: =IF(OR(J44=0,J44="Not Calculated")=TRUE,"Not Calculated",(IF(((J45+J44)/J44)<=1,0,IF(((J45+J44)/J44)<=1.05,1,IF(((J45+J44)/J44)<=1.5, 2,IF(((J45+J44)/J44)<=2,3,4)))))) -> Not Calculated
C47: ="0:" -> 0: | D47: No change from baseline
C48: ="1:" -> 1: | D48: ≤ 5% increase
C49: ="2:" -> 2: | D49: ≤ 50% increase
C50: ="3:" -> 3: | D50: ≤ 100% increase
C51: ="4:" -> 4: | D51: >100% increase | N51: Use Quantititive Value
C52: OR, Estimate the Magnitude Qualitatively: | J52: Use Quantititive Value | N52: No change from baseline (Score = 0)
C53: Qualitative Magnitude Score: | J53: =IF(J52=N51,"N/A",IF(J52=N52,0,IF(J52=N53,1,IF(J52=N54,2,IF(J52=N55,3,IF(J52=N56,4,"N/A")))))) -> N/A | N53: ≤ 5% increase (Score = 1)
C54: Duration of Impact: | J54: ≤ 1 day (Score = 1) | N54: ≤ 50% increase (Score = 2)
C55: Duration Score: | J55: =IF(J54=$B$973,$A$973,IF(J54=$B$974,$A$974,IF(J54=$B$975,$A$975,IF(J54=$B$976,$A$976,IF(J54=$B$977,$A$977,"Not Calculated"))))) -> 1 | N55: ≤ 100% increase (Score = 3)
C56: Data Source / Explanation (Optional): | N56: >100% increase (Score = 4)
C57: In the National Planning Scenario, 5% of the building's occupants will be found unconscious, suffering from seizures. They will be decontaminated and transported to medical facilities (Department of Homeland Security, 2006).
C59: EMS Transports Score: | J59: =IF(J53="N/A",IF(OR(J46="Not Calculated",J55="Not Calculated")=TRUE,"Not Calculated",AVERAGE(J46,J55)),AVERAGE(J53,J55)) -> Not Calculated
C62: ED Visits
C63: Baseline ED Visits per Day: | J63: ='Baseline Health'!G23 -> 0
C64: Hazard-Related Increase in ED Visits per Day: | J64: =J45 -> 0
C65: Magnitude Score: | J65: =IF(OR(J63=0,J63="Not Calculated")=TRUE,"Not Calculated",(IF(((J64+J63)/J63)<=1,0,IF(((J64+J63)/J63)<=1.05,1,IF(((J64+J63)/J63)<=1.5, 2,IF(((J64+J63)/J63)<=2,3,4)))))) -> Not Calculated
C66: ="0:" -> 0: | D66: No change from baseline
C67: ="1:" -> 1: | D67: ≤ 5% increase
C68: ="2:" -> 2: | D68: ≤ 50% increase
C69: ="3:" -> 3: | D69: ≤ 100% increase
C70: ="4:" -> 4: | D70: >100% increase | N70: Use Quantititive Value
C71: OR, Estimate the Magnitude Qualitatively: | J71: Use Quantititive Value | N71: No change from baseline (Score = 0)
C72: Qualitative Magnitude Score: | J72: =IF(J71=N70,"N/A",IF(J71=N71,0,IF(J71=N72,1,IF(J71=N73,2,IF(J71=N74,3,IF(J71=N75,4,"N/A")))))) -> N/A | N72: ≤ 5% increase (Score = 1)
C73: Duration of Impact: | J73: ≤ 1 day (Score = 1) | N73: ≤ 50% increase (Score = 2)
C74: Duration Score: | J74: =IF(J73=$B$973,$A$973,IF(J73=$B$974,$A$974,IF(J73=$B$975,$A$975,IF(J73=$B$976,$A$976,IF(J73=$B$977,$A$977,"Not Calculated"))))) -> 1 | N74: ≤ 100% increase (Score = 3)
C75: Data Source / Explanation (Optional): | N75: >100% increase (Score = 4)
C76: In the National Planning Scenario, 5% of the building's occupants will be found unconscious, suffering from seizures. They will be decontaminated and transported to medical facilities (Department of Homeland Security, 2006).
C78: ED Visits Score: | J78: =IF(J72="N/A",IF(OR(J65="Not Calculated",J74="Not Calculated")=TRUE,"Not Calculated",AVERAGE(J65,J74)),AVERAGE(J72,J74)) -> Not Calculated
C81: Primary Care Office Visits
C82: Baseline Office Visits per Day: | J82: ='Baseline Health'!G29 -> 0
C83: Hazard-Related Increase in Office Visits per Day: | J83: =J82*0.5 -> 0
C84: Magnitude Score: | J84: =IF(OR(J82=0,J82="Not Calculated")=TRUE,"Not Calculated",(IF(((J83+J82)/J82)<=1,0,IF(((J83+J82)/J82)<=1.05,1,IF(((J83+J82)/J82)<=1.5, 2,IF(((J83+J82)/J82)<=2,3,4)))))) -> Not Calculated
C85: ="0:" -> 0: | D85: No change from baseline
C86: ="1:" -> 1: | D86: ≤ 5% increase
C87: ="2:" -> 2: | D87: ≤ 50% increase
C88: ="3:" -> 3: | D88: ≤ 100% increase
C89: ="4:" -> 4: | D89: >100% increase | N89: Use Quantititive Value
C90: OR, Estimate the Magnitude Qualitatively: | J90: Use Quantititive Value | N90: No change from baseline (Score = 0)
C91: Qualitative Magnitude Score: | J91: =IF(J90=N89,"N/A",IF(J90=N90,0,IF(J90=N91,1,IF(J90=N92,2,IF(J90=N93,3,IF(J90=N94,4,"N/A")))))) -> N/A | N91: ≤ 5% increase (Score = 1)
C92: Duration of Impact: | J92: > 2 weeks (Score = 4) | N92: ≤ 50% increase (Score = 2)
C93: Duration Score: | J93: =IF(J92=$B$973,$A$973,IF(J92=$B$974,$A$974,IF(J92=$B$975,$A$975,IF(J92=$B$976,$A$976,IF(J92=$B$977,$A$977,"Not Calculated"))))) -> 4 | N93: ≤ 100% increase (Score = 3)
C94: Data Source / Explanation (Optional): | N94: >100% increase (Score = 4)
C95: It is estimated that PCP visits will increase significantly due to behavioral health impacts, the worried well, and patients with psychosomatic symptoms.
C97: Primary Care Office Visits Score: | J97: =IF(J91="N/A",IF(OR(J84="Not Calculated",J93="Not Calculated")=TRUE,"Not Calculated",AVERAGE(J84,J93)),AVERAGE(J91,J93)) -> Not Calculated
C100: Trauma Center Injuries
C101: Baseline Trauma Injuries per Day: | J101: ='Baseline Health'!G35 -> 0
C102: Hazard-Related Increase in Trauma Injuries per Day: | J102: 2
C103: Magnitude Score: | J103: =IF(OR(J101=0,J101="Not Calculated")=TRUE,"Not Calculated",(IF(((J102+J101)/J101)<=1,0,IF(((J102+J101)/J101)<=1.05,1,IF(((J102+J101)/J101)<=1.5, 2,IF(((J102+J101)/J101)<=2,3,4)))))) -> Not Calculated
C104: ="0:" -> 0: | D104: No change from baseline
C105: ="1:" -> 1: | D105: ≤ 5% increase
C106: ="2:" -> 2: | D106: ≤ 50% increase
C107: ="3:" -> 3: | D107: ≤ 100% increase
C108: ="4:" -> 4: | D108: >100% increase | N108: Use Quantititive Value
C109: OR, Estimate the Magnitude Qualitatively: | J109: Use Quantititive Value | N109: No change from baseline (Score = 0)
C110: Qualitative Magnitude Score: | J110: =IF(J109=N108,"N/A",IF(J109=N109,0,IF(J109=N110,1,IF(J109=N111,2,IF(J109=N112,3,IF(J109=N113,4,"N/A")))))) -> N/A | N110: ≤ 5% increase (Score = 1)
C111: Duration of Impact: | J111: ≤ 1 day (Score = 1) | N111: ≤ 50% increase (Score = 2)
C112: Duration Score: | J112: =IF(J111=$B$973,$A$973,IF(J111=$B$974,$A$974,IF(J111=$B$975,$A$975,IF(J111=$B$976,$A$976,IF(J111=$B$977,$A$977,"Not Calculated"))))) -> 1 | N112: ≤ 100% increase (Score = 3)
C113: Data Source / Explanation (Optional): | N113: >100% increase (Score = 4)
C114: In the National Planning Scenario, injuries are predicted due to panic on the street, including falling and crushing injuries, as well as motor vehicle accidents on the surrounding roadways (Department of Homeland Security, 2006). Most of these injuries will be minor; it is assumed that 2 will require trauma centers.
C116: Trauma Center Injuries Score: | J116: =IF(J110="N/A",IF(OR(J103="Not Calculated",J112="Not Calculated")=TRUE,"Not Calculated",AVERAGE(J103,J112)),AVERAGE(J110,J112)) -> Not Calculated
C119: Mental Health Impact
C120: Mental Health Impact (Percent of population developing psychopathology and behavioral changes after the incident, including PTST, depression, anxiety, alcohol and substance abuse, domestic violence, and loss of social functions):
C123: Population displays distress with ≥50% psychopathology.
C125: Magnitude Score: | J125: =IF(C123=B987,A987,IF(C123=B988,A988,IF(C123=B989,A989,IF(C123=B990,A990,IF(C123=B991,A991,"Not Calculated"))))) -> 4
C126: Duration of Impact: | J126: > 2 weeks (Score = 4)
C127: Duration Score: | J127: =IF(J126=$B$973,$A$973,IF(J126=$B$974,$A$974,IF(J126=$B$975,$A$975,IF(J126=$B$976,$A$976,IF(J126=$B$977,$A$977,"Not Calculated"))))) -> 4
C128: Data Source / Explanation (Optional):
C129: After the Tokyo Sarin attack, almost 60% of victims suffered from PTSD (Ohbu et al., 1997).
C131: Mental Health Score: | J131: =IF(OR(J125="Not Calculated",J127="Not Calculated")=TRUE,"Not Calculated",AVERAGE(J125,J127)) -> 4
C133: Human Impact Score: | J133: =IF(OR(J40="Not Calculated",J59="Not Calculated",J78="Not Calculated",J97="Not Calculated",J116="Not Calculated",J131="Not Calculated",)=TRUE,"Not Calculated",AVERAGE(J40,J59,J78,J97,J116,J131)) -> Not Calculated
G137: Healthcare Service Impact
C139: Outpatient Services
C140: Baseline PCPs: | J140: ='Baseline Health'!G45 -> 1
C141: Hazard-Related Loss of PCPs: | J141: 0
C142: Hazard-Related Increase in Demand for PCPs per Day: | J142: =J83/20 -> 0
D143: (PCP Demand = Increase in Office Visits / 20)
C144: Magnitude Score: | J144: =IF(OR(J140=0,J140="Not Calculated")=TRUE,"Not Calculated",IF((J140-J141)<=0,4,IF(((J140+J142)/(J140-J141))<=1,0,IF(((J140+J142)/(J140-J141))<=1.05,1,IF(((J140+J142)/(J140-J141))<=1.5, 2,IF(((J140+J142)/(J140-J141))<=2,3,4)))))) -> 0
C145: ="0:" -> 0: | D145: No change from baseline
C146: ="1:" -> 1: | D146: (Baseline + ↑ demand) / (Baseline - ↓ supply) ≤ 1.05
C147: ="2:" -> 2: | D147: (Baseline + ↑ demand) / (Baseline - ↓ supply) ≤ 1.5
C148: ="3:" -> 3: | D148: (Baseline + ↑ demand) / (Baseline - ↓ supply) ≤ 2
C149: ="4:" -> 4: | D149: (Baseline + ↑ demand) / (Baseline - ↓ supply) > 2 | N149: Use Quantititive Value
C150: OR, Estimate the Magnitude Qualitatively: | J150: Use Quantititive Value | N150: No change from baseline (Score = 0)
C151: Qualitative Magnitude Score: | J151: =IF(J150=N149,"N/A",IF(J150=N150,0,IF(J150=N151,1,IF(J150=N152,2,IF(J150=N153,3,IF(J150=N154,4,"N/A")))))) -> N/A | N151: ≤ 5% ↑ demand or ↓ supply (Score = 1)
C152: Duration of Impact: | J152: > 2 weeks (Score = 4) | N152: ≤ 50% ↑ demand or ↓ supply (Score = 2)
C153: Duration Score: | J153: =IF(J152=$B$973,$A$973,IF(J152=$B$974,$A$974,IF(J152=$B$975,$A$975,IF(J152=$B$976,$A$976,IF(J152=$B$977,$A$977,"Not Calculated"))))) -> 4 | N153: ≤ 100% ↑ demand or ↓ supply (Score = 3)
C154: Data Source / Explanation (Optional): | N154: >100% ↑ demand or ↓ supply (Score = 4)
C157: Outpatient Services Score: | J157: =IF(J151="N/A",IF(OR(J144="Not Calculated",J153="Not Calculated")=TRUE,"Not Calculated",AVERAGE(J144,J153)),AVERAGE(J151,J153)) -> 2
C160: ED Services
C161: Baseline ED Beds: | J161: ='Baseline Health'!G51 -> 0
C162: Hazard-Related Loss of ED Beds: | J162: 0
C163: Hazard-Related Increase in Demand for ED Beds per Day: | J163: =(J64)/4.5 -> 0
D164: (ED Bed Demand per Day = Increase in ED Visits / 4.5)
C165: Magnitude Score: | J165: =IF(OR(J161=0,J161="Not Calculated")=TRUE,"Not Calculated",IF((J161-J162)<=0,4,IF(((J161+J163)/(J161-J162))<=1,0,IF(((J161+J163)/(J161-J162))<=1.05,1,IF(((J161+J163)/(J161-J162))<=1.5, 2,IF(((J161+J163)/(J161-J162))<=2,3,4)))))) -> Not Calculated
C166: ="0:" -> 0: | D166: No change from baseline
C167: ="1:" -> 1: | D167: (Baseline + ↑ demand) / (Baseline - ↓ supply) ≤ 1.05
C168: ="2:" -> 2: | D168: (Baseline + ↑ demand) / (Baseline - ↓ supply) ≤ 1.5
C169: ="3:" -> 3: | D169: (Baseline + ↑ demand) / (Baseline - ↓ supply) ≤ 2
C170: ="4:" -> 4: | D170: (Baseline + ↑ demand) / (Baseline - ↓ supply) > 2 | N170: Use Quantititive Value
C171: OR, Estimate the Magnitude Qualitatively: | J171: Use Quantititive Value | N171: No change from baseline (Score = 0)
C172: Qualitative Magnitude Score: | J172: =IF(J171=N170,"N/A",IF(J171=N171,0,IF(J171=N172,1,IF(J171=N173,2,IF(J171=N174,3,IF(J171=N175,4,"N/A")))))) -> N/A | N172: ≤ 5% ↑ demand or ↓ supply (Score = 1)
C173: Duration of Impact: | J173: > 2 weeks (Score = 4) | N173: ≤ 50% ↑ demand or ↓ supply (Score = 2)
C174: Duration Score: | J174: =IF(J173=$B$973,$A$973,IF(J173=$B$974,$A$974,IF(J173=$B$975,$A$975,IF(J173=$B$976,$A$976,IF(J173=$B$977,$A$977,"Not Calculated"))))) -> 4 | N174: ≤ 100% ↑ demand or ↓ supply (Score = 3)
C175: Data Source / Explanation (Optional): | N175: >100% ↑ demand or ↓ supply (Score = 4)
C178: ED Services Score: | J178: =IF(J172="N/A",IF(OR(J165="Not Calculated",J174="Not Calculated")=TRUE,"Not Calculated",AVERAGE(J165,J174)),AVERAGE(J172,J174)) -> Not Calculated
C181: Hospital Beds
C182: Baseline Hospital Beds: | J182: ='Baseline Health'!G59 -> 0
C183: Hazard-Related Loss of Hospital Beds: | J183: 0
C184: Hazard-Related Increase in Demand for Hospital Beds: | J184: =J64 -> 0
C185: Magnitude Score: | J185: =IF(OR(J182=0,J182="Not Calculated")=TRUE,"Not Calculated",IF(J182-J183=0,4,IF(((J182+J184)/(J182-J183))<=1,0,IF(((J182+J184)/(J182-J183))<=1.05,1,IF(((J182+J184)/(J182-J183))<=1.5, 2,IF(((J182+J184)/(J182-J183))<=2,3,4)))))) -> Not Calculated
C186: ="0:" -> 0: | D186: No change from baseline
C187: ="1:" -> 1: | D187: (Baseline + ↑ demand) / (Baseline - ↓ supply) ≤ 1.05
C188: ="2:" -> 2: | D188: (Baseline + ↑ demand) / (Baseline - ↓ supply) ≤ 1.5
C189: ="3:" -> 3: | D189: (Baseline + ↑ demand) / (Baseline - ↓ supply) ≤ 2
C190: ="4:" -> 4: | D190: (Baseline + ↑ demand) / (Baseline - ↓ supply) > 2 | N190: Use Quantititive Value
C191: OR, Estimate the Magnitude Qualitatively: | J191: Use Quantititive Value | N191: No change from baseline (Score = 0)
C192: Qualitative Magnitude Score: | J192: =IF(J191=N190,"N/A",IF(J191=N191,0,IF(J191=N192,1,IF(J191=N193,2,IF(J191=N194,3,IF(J191=N195,4,"N/A")))))) -> N/A | N192: ≤ 5% ↑ demand or ↓ supply (Score = 1)
C193: Duration of Impact: | J193: > 2 weeks (Score = 4) | N193: ≤ 50% ↑ demand or ↓ supply (Score = 2)
C194: Duration Score: | J194: =IF(J193=$B$973,$A$973,IF(J193=$B$974,$A$974,IF(J193=$B$975,$A$975,IF(J193=$B$976,$A$976,IF(J193=$B$977,$A$977,"Not Calculated"))))) -> 4 | N194: ≤ 100% ↑ demand or ↓ supply (Score = 3)
C195: Data Source / Explanation (Optional): | N195: >100% ↑ demand or ↓ supply (Score = 4)
C196: In the National Planning Scenario, 5% of the building's occupants are predicted to be hospitalized with prolonged seizures for 4-6 weeks (Department of Homeland Security, 2006).
C198: Hospital Beds Score: | J198: =IF(J192="N/A",IF(OR(J185="Not Calculated",J194="Not Calculated")=TRUE,"Not Calculated",AVERAGE(J185,J194)),AVERAGE(J192,J194)) -> Not Calculated
C201: Ancillary Services
C202: Baseline Pharmacists: | J202: ='Baseline Health'!G65 -> 0
C203: Hazard-Related Loss of Pharmacists: | J203: 0
C204: Hazard-Related Increase in Demand for Pharmacists: | J204: =J202*0.5 -> 0
C205: Magnitude Score: | J205: =IF(OR(J202=0,J202="Not Calculated")=TRUE,"Not Calculated",IF(J202-J203=0,4,IF(((J202+J204)/(J202-J203))<=1,0,IF(((J202+J204)/(J202-J203))<=1.05,1,IF(((J202+J204)/(J202-J203))<=1.5, 2,IF(((J202+J204)/(J202-J203))<=2,3,4)))))) -> Not Calculated
C206: ="0:" -> 0: | D206: No change from baseline
C207: ="1:" -> 1: | D207: (Baseline + ↑ demand) / (Baseline - ↓ supply) ≤ 1.05
C208: ="2:" -> 2: | D208: (Baseline + ↑ demand) / (Baseline - ↓ supply) ≤ 1.5
C209: ="3:" -> 3: | D209: (Baseline + ↑ demand) / (Baseline - ↓ supply) ≤ 2
C210: ="4:" -> 4: | D210: (Baseline + ↑ demand) / (Baseline - ↓ supply) > 2 | N210: Use Quantititive Value
C211: OR, Estimate the Magnitude Qualitatively: | J211: Use Quantititive Value | N211: No change from baseline (Score = 0)
C212: Qualitative Magnitude Score: | J212: =IF(J211=N210,"N/A",IF(J211=N211,0,IF(J211=N212,1,IF(J211=N213,2,IF(J211=N214,3,IF(J211=N215,4,"N/A")))))) -> N/A | N212: ≤ 5% ↑ demand or ↓ supply (Score = 1)
C213: Duration of Impact: | J213: > 2 weeks (Score = 4) | N213: ≤ 50% ↑ demand or ↓ supply (Score = 2)
C214: Duration Score: | J214: =IF(J213=$B$973,$A$973,IF(J213=$B$974,$A$974,IF(J213=$B$975,$A$975,IF(J213=$B$976,$A$976,IF(J213=$B$977,$A$977,"Not Calculated"))))) -> 4 | N214: ≤ 100% ↑ demand or ↓ supply (Score = 3)
C215: Data Source / Explanation (Optional): | N215: >100% ↑ demand or ↓ supply (Score = 4)
C216: It is estimated that demand for pharmaceuticals will increase due to the high rate of anxiety and post-traumatic stress in the population.
C218: Ancillary Services Score: | J218: =IF(J212="N/A",IF(OR(J205="Not Calculated",J214="Not Calculated")=TRUE,"Not Calculated",AVERAGE(J205,J214)),AVERAGE(J212,J214)) -> Not Calculated
C221: Trauma Units
C222: Baseline Trauma Center Functioning ORs: | J222: ='Baseline Health'!G71 -> 0
C223: Hazard-Related Loss of Trauma Center Functioning ORs: | J223: 0
C224: Hazard-Related Increase in Demand for Trauma ORs: | J224: =J102 -> 2
D225: (Demand = Increase in Trauma Injuries per Day)
C226: Magnitude Score: | J226: =IF(OR(J222=0,J222="Not Calculated")=TRUE,"Not Calculated",IF(J222-J223=0,4,IF(((J222+J224)/(J222-J223))<=1,0,IF(((J222+J224)/(J222-J223))<=1.05,1,IF(((J222+J224)/(J222-J223))<=1.5, 2,IF(((J222+J224)/(J222-J223))<=2,3,4)))))) -> Not Calculated
C227: ="0:" -> 0: | D227: No change from baseline
C228: ="1:" -> 1: | D228: (Baseline + ↑ demand) / (Baseline - ↓ supply) ≤ 1.05
C229: ="2:" -> 2: | D229: (Baseline + ↑ demand) / (Baseline - ↓ supply) ≤ 1.5
C230: ="3:" -> 3: | D230: (Baseline + ↑ demand) / (Baseline - ↓ supply) ≤ 2
C231: ="4:" -> 4: | D231: (Baseline + ↑ demand) / (Baseline - ↓ supply) > 2 | N231: Use Quantititive Value
C232: OR, Estimate the Magnitude Qualitatively: | J232: Use Quantititive Value | N232: No change from baseline (Score = 0)
C233: Qualitative Magnitude Score: | J233: =IF(J232=N231,"N/A",IF(J232=N232,0,IF(J232=N233,1,IF(J232=N234,2,IF(J232=N235,3,IF(J232=N236,4,"N/A")))))) -> N/A | N233: ≤ 5% ↑ demand or ↓ supply (Score = 1)
C234: Duration of Impact: | J234: > 2 weeks (Score = 4) | N234: ≤ 50% ↑ demand or ↓ supply (Score = 2)
C235: Duration Score: | J235: =IF(J234=$B$973,$A$973,IF(J234=$B$974,$A$974,IF(J234=$B$975,$A$975,IF(J234=$B$976,$A$976,IF(J234=$B$977,$A$977,"Not Calculated"))))) -> 4 | N235: ≤ 100% ↑ demand or ↓ supply (Score = 3)
C236: Data Source / Explanation (Optional): | N236: >100% ↑ demand or ↓ supply (Score = 4)
C239: Trauma Units Score: | J239: =IF(J233="N/A",IF(OR(J226="Not Calculated",J235="Not Calculated")=TRUE,"Not Calculated",AVERAGE(J226,J235)),AVERAGE(J233,J235)) -> Not Calculated
C242: Mental Health Services Services
C243: Baseline Mental Health Providers: | J243: ='Baseline Health'!G77 -> 0
C244: Hazard-Related Loss of Mental Health Providers: | J244: 0
C245: Hazard-Related Increase in Demand for Mental Health Providers: | J245: =('Baseline Health'!G6*0.6)*40/250 -> 0
C246: Magnitude Score: | J246: =IF(OR(J243=0,J243="Not Calculated")=TRUE,"Not Calculated",IF(J243-J244=0,4,(IF(((J243+J245)/(J243-J244))<=1,0,IF(((J243+J245)/(J243-J244))<=1.05,1,IF(((J243+J245)/(J243-J244))<=1.5,2,IF(((J243+J245)/(J243-J244))<=2,3,4))))))) -> Not Calculated
C247: ="0:" -> 0: | D247: No change from baseline
C248: ="1:" -> 1: | D248: (Baseline + ↑ demand) / (Baseline - ↓ supply) ≤ 1.05
C249: ="2:" -> 2: | D249: (Baseline + ↑ demand) / (Baseline - ↓ supply) ≤ 1.5
C250: ="3:" -> 3: | D250: (Baseline + ↑ demand) / (Baseline - ↓ supply) ≤ 2
C251: ="4:" -> 4: | D251: (Baseline + ↑ demand) / (Baseline - ↓ supply) > 2 | N251: Use Quantititive Value
C252: OR, Estimate the Magnitude Qualitatively: | J252: Use Quantititive Value | N252: No change from baseline (Score = 0)
C253: Qualitative Magnitude Score: | J253: =IF(J252=N251,"N/A",IF(J252=N252,0,IF(J252=N253,1,IF(J252=N254,2,IF(J252=N255,3,IF(J252=N256,4,"N/A")))))) -> N/A | N253: ≤ 5% ↑ demand or ↓ supply (Score = 1)
C254: Duration of Impact: | J254: > 2 weeks (Score = 4) | N254: ≤ 50% ↑ demand or ↓ supply (Score = 2)
... 561 more rows

Sheet Civil Disturbance
G2: Public Health Risk Assessment Tool
G3: Civil Disturbance
B5: Civil disturbance refers to a spectrum of activities progressively disruptive to public order and tranquility. Examples of civil disturbance include labor strikes, large demonstrations, and riots. Riots are violent disruptions of the public order that threaten public safety (Ciottone, 2006).
B7: The following hazard impacts have been estimated using historical data, predictive models, estimations where necessary, and the information entered in the "Baseline Data" worksheets. The information below can be altered as needed to more accurately reflect hazard impacts in your jurisdiction. The impacts should reflect the worst-case reasonable scenario.
B9: Briefly describe the worst-case reasonable scenario of this hazard (the scenario to which the following impacts apply) here:
B10: The scenario used to predict the impacts of a civil disturbance is the Ferguson Unrest/Protests that occurred on August 10, 2014. Thousands of people rioted for many days and months after the shooting death of Michael Brown. 25 structures and 27 business were damaged in the days following; 18 buildings were eventually demolished.
G13: Probability
C15: Probability: | E15: The hazard is likely to occur at least once in the system lifecycle (100 years).
C17: Probability Score: | E17: =IF(E15=$C$966,$A$966,IF(E15=$C$967,$A$967,IF(E15=$C$968,$A$968,IF(E15=$C$969,$A$969,IF(E15=$C$970,$A$970,"Not Calculated"))))) -> 2
E18: =IF(E15=$C$966,$B$966,IF(E15=$C$967,$B$967,IF(E15=$C$968,$B$968,IF(E15=$C$969,$B$969,IF(E15=$C$970,$B$970,"Not Calculated"))))) -> Occasional
G22: Human Impact
C24: Mortality
C25: Baseline Mortality per Day: | J25: ='Baseline Health'!G11 -> 0
C26: Hazard-Related Increase in Mortality per Day: | J26: =('Baseline Health'!G6*0.0000059)/6 -> 0
C27: Magnitude Score: | J27: =IF(OR(J25=0,J25="Not Calculated")=TRUE,"Not Calculated",(IF(((J26+J25)/J25)<=1,0,IF(((J26+J25)/J25)<=1.05,1,IF(((J26+J25)/J25)<=1.5, 2,IF(((J26+J25)/J25)<=2,3,4)))))) -> Not Calculated
C28: ="0:" -> 0: | D28: No change from baseline
C29: ="1:" -> 1: | D29: ≤ 5% increase
C30: ="2:" -> 2: | D30: ≤ 50% increase
C31: ="3:" -> 3: | D31: ≤ 100% increase
C32: ="4:" -> 4: | D32: >100% increase | N32: Use Quantititive Value
C33: OR, Estimate the Magnitude Qualitatively: | J33: Use Quantititive Value | N33: No change from baseline (Score = 0)
C34: Qualitative Magnitude Score: | J34: =IF(J33=N32,"N/A",IF(J33=N33,0,IF(J33=N34,1,IF(J33=N35,2,IF(J33=N36,3,IF(J33=N37,4,"N/A")))))) -> N/A | N34: ≤ 5% increase (Score = 1)
C35: Duration of Impact: | J35: ≤ 1 week (Score = 2) | N35: ≤ 50% increase (Score = 2)
C36: Duration Score: | J36: =IF(J35=$B$973,$A$973,IF(J35=$B$974,$A$974,IF(J35=$B$975,$A$975,IF(J35=$B$976,$A$976,IF(J35=$B$977,$A$977,"Not Calculated"))))) -> 2 | N36: ≤ 100% increase (Score = 3)
C37: Data Source / Explanation (Optional): | N37: >100% increase (Score = 4)
C38: During the Ferguson unrest, 14 people were injured on Aug. 12, 2014. 7 people were transported to hospitals (2 admitted, 5 releasted. 61 arrests were made in Ferguson that night; 21 arrested in nearby St. Louis.
C40: Mortality Score: | J40: =IF(J34="N/A",IF(OR(J27="Not Calculated",J36="Not Calculated")=TRUE,"Not Calculated",AVERAGE(J27,J36)),AVERAGE(J34,J36)) -> Not Calculated
C43: EMS Transports
C44: Baseline Transports per Day: | J44: ='Baseline Health'!G17 -> 0
C45: Hazard-Related Increase in Transports per Day: | J45: 7
C46: Magnitude Score: | J46: =IF(OR(J44=0,J44="Not Calculated")=TRUE,"Not Calculated",(IF(((J45+J44)/J44)<=1,0,IF(((J45+J44)/J44)<=1.05,1,IF(((J45+J44)/J44)<=1.5, 2,IF(((J45+J44)/J44)<=2,3,4)))))) -> Not Calculated
C47: ="0:" -> 0: | D47: No change from baseline
C48: ="1:" -> 1: | D48: ≤ 5% increase
C49: ="2:" -> 2: | D49: ≤ 50% increase
C50: ="3:" -> 3: | D50: ≤ 100% increase
C51: ="4:" -> 4: | D51: >100% increase | N51: Use Quantititive Value
C52: OR, Estimate the Magnitude Qualitatively: | J52: Use Quantititive Value | N52: No change from baseline (Score = 0)
C53: Qualitative Magnitude Score: | J53: =IF(J52=N51,"N/A",IF(J52=N52,0,IF(J52=N53,1,IF(J52=N54,2,IF(J52=N55,3,IF(J52=N56,4,"N/A")))))) -> N/A | N53: ≤ 5% increase (Score = 1)
C54: Duration of Impact: | J54: ≤ 1 week (Score = 2) | N54: ≤ 50% increase (Score = 2)
C55: Duration Score: | J55: =IF(J54=$B$973,$A$973,IF(J54=$B$974,$A$974,IF(J54=$B$975,$A$975,IF(J54=$B$976,$A$976,IF(J54=$B$977,$A$977,"Not Calculated"))))) -> 2 | N55: ≤ 100% increase (Score = 3)
C56: Data Source / Explanation (Optional): | N56: >100% increase (Score = 4)
C57: During one day following the incident, 7 people were transported to area hospitals (2 admitted, 5 released).
C59: EMS Transports Score: | J59: =IF(J53="N/A",IF(OR(J46="Not Calculated",J55="Not Calculated")=TRUE,"Not Calculated",AVERAGE(J46,J55)),AVERAGE(J53,J55)) -> Not Calculated
C62: ED Visits
C63: Baseline ED Visits per Day: | J63: ='Baseline Health'!G23 -> 0
C64: Hazard-Related Increase in ED Visits per Day: | J64: 7
C65: Magnitude Score: | J65: =IF(OR(J63=0,J63="Not Calculated")=TRUE,"Not Calculated",(IF(((J64+J63)/J63)<=1,0,IF(((J64+J63)/J63)<=1.05,1,IF(((J64+J63)/J63)<=1.5, 2,IF(((J64+J63)/J63)<=2,3,4)))))) -> Not Calculated
C66: ="0:" -> 0: | D66: No change from baseline
C67: ="1:" -> 1: | D67: ≤ 5% increase
C68: ="2:" -> 2: | D68: ≤ 50% increase
C69: ="3:" -> 3: | D69: ≤ 100% increase
C70: ="4:" -> 4: | D70: >100% increase | N70: Use Quantititive Value
C71: OR, Estimate the Magnitude Qualitatively: | J71: Use Quantititive Value | N71: No change from baseline (Score = 0)
C72: Qualitative Magnitude Score: | J72: =IF(J71=N70,"N/A",IF(J71=N71,0,IF(J71=N72,1,IF(J71=N73,2,IF(J71=N74,3,IF(J71=N75,4,"N/A")))))) -> N/A | N72: ≤ 5% increase (Score = 1)
C73: Duration of Impact: | J73: ≤ 1 week (Score = 2) | N73: ≤ 50% increase (Score = 2)
C74: Duration Score: | J74: =IF(J73=$B$973,$A$973,IF(J73=$B$974,$A$974,IF(J73=$B$975,$A$975,IF(J73=$B$976,$A$976,IF(J73=$B$977,$A$977,"Not Calculated"))))) -> 2 | N74: ≤ 100% increase (Score = 3)
C75: Data Source / Explanation (Optional): | N75: >100% increase (Score = 4)
C76: During one day following the incident, 7 people were transported to area hospitals (2 admitted, 5 released).
C78: ED Visits Score: | J78: =IF(J72="N/A",IF(OR(J65="Not Calculated",J74="Not Calculated")=TRUE,"Not Calculated",AVERAGE(J65,J74)),AVERAGE(J72,J74)) -> Not Calculated
C81: Primary Care Office Visits
C82: Baseline Office Visits per Day: | J82: ='Baseline Health'!G29 -> 0
C83: Hazard-Related Increase in Office Visits per Day: | J83: 0
C84: Magnitude Score: | J84: =IF(OR(J82=0,J82="Not Calculated")=TRUE,"Not Calculated",(IF(((J83+J82)/J82)<=1,0,IF(((J83+J82)/J82)<=1.05,1,IF(((J83+J82)/J82)<=1.5, 2,IF(((J83+J82)/J82)<=2,3,4)))))) -> Not Calculated
C85: ="0:" -> 0: | D85: No change from baseline
C86: ="1:" -> 1: | D86: ≤ 5% increase
C87: ="2:" -> 2: | D87: ≤ 50% increase
C88: ="3:" -> 3: | D88: ≤ 100% increase
C89: ="4:" -> 4: | D89: >100% increase | N89: Use Quantititive Value
C90: OR, Estimate the Magnitude Qualitatively: | J90: Use Quantititive Value | N90: No change from baseline (Score = 0)
C91: Qualitative Magnitude Score: | J91: =IF(J90=N89,"N/A",IF(J90=N90,0,IF(J90=N91,1,IF(J90=N92,2,IF(J90=N93,3,IF(J90=N94,4,"N/A")))))) -> N/A | N91: ≤ 5% increase (Score = 1)
C92: Duration of Impact: | J92: No impact (Score = 0) | N92: ≤ 50% increase (Score = 2)
C93: Duration Score: | J93: =IF(J92=$B$973,$A$973,IF(J92=$B$974,$A$974,IF(J92=$B$975,$A$975,IF(J92=$B$976,$A$976,IF(J92=$B$977,$A$977,"Not Calculated"))))) -> 0 | N93: ≤ 100% increase (Score = 3)
C94: Data Source / Explanation (Optional): | N94: >100% increase (Score = 4)
C97: Primary Care Office Visits Score: | J97: =IF(J91="N/A",IF(OR(J84="Not Calculated",J93="Not Calculated")=TRUE,"Not Calculated",AVERAGE(J84,J93)),AVERAGE(J91,J93)) -> Not Calculated
C100: Trauma Center Injuries
C101: Baseline Trauma Injuries per Day: | J101: ='Baseline Health'!G35 -> 0
C102: Hazard-Related Increase in Trauma Injuries per Day: | J102: =('Baseline Health'!G6*0.00001723) -> 0
C103: Magnitude Score: | J103: =IF(OR(J101=0,J101="Not Calculated")=TRUE,"Not Calculated",(IF(((J102+J101)/J101)<=1,0,IF(((J102+J101)/J101)<=1.05,1,IF(((J102+J101)/J101)<=1.5, 2,IF(((J102+J101)/J101)<=2,3,4)))))) -> Not Calculated
C104: ="0:" -> 0: | D104: No change from baseline
C105: ="1:" -> 1: | D105: ≤ 5% increase
C106: ="2:" -> 2: | D106: ≤ 50% increase
C107: ="3:" -> 3: | D107: ≤ 100% increase
C108: ="4:" -> 4: | D108: >100% increase | N108: Use Quantititive Value
C109: OR, Estimate the Magnitude Qualitatively: | J109: Use Quantititive Value | N109: No change from baseline (Score = 0)
C110: Qualitative Magnitude Score: | J110: =IF(J109=N108,"N/A",IF(J109=N109,0,IF(J109=N110,1,IF(J109=N111,2,IF(J109=N112,3,IF(J109=N113,4,"N/A")))))) -> N/A | N110: ≤ 5% increase (Score = 1)
C111: Duration of Impact: | J111: ≤ 1 week (Score = 2) | N111: ≤ 50% increase (Score = 2)
C112: Duration Score: | J112: =IF(J111=$B$973,$A$973,IF(J111=$B$974,$A$974,IF(J111=$B$975,$A$975,IF(J111=$B$976,$A$976,IF(J111=$B$977,$A$977,"Not Calculated"))))) -> 2 | N112: ≤ 100% increase (Score = 3)
C113: Data Source / Explanation (Optional): | N113: >100% increase (Score = 4)
C114: During one day following the incident, 7 people were transported to area hospitals (2 admitted, 5 released). 7/county population = multiplier for hazard related increase in trauma injuries.
C116: Trauma Center Injuries Score: | J116: =IF(J110="N/A",IF(OR(J103="Not Calculated",J112="Not Calculated")=TRUE,"Not Calculated",AVERAGE(J103,J112)),AVERAGE(J110,J112)) -> Not Calculated
C119: Mental Health Impact
C120: Mental Health Impact (Percent of population developing psychopathology and behavioral changes after the incident, including PTST, depression, anxiety, alcohol and substance abuse, domestic violence, and loss of social functions):
C123: Population displays distress with <25% psychopathology.
C125: Magnitude Score: | J125: =IF(C123=B987,A987,IF(C123=B988,A988,IF(C123=B989,A989,IF(C123=B990,A990,IF(C123=B991,A991,"Not Calculated"))))) -> 2
C126: Duration of Impact: | J126: > 2 weeks (Score = 4)
C127: Duration Score: | J127: =IF(J126=$B$973,$A$973,IF(J126=$B$974,$A$974,IF(J126=$B$975,$A$975,IF(J126=$B$976,$A$976,IF(J126=$B$977,$A$977,"Not Calculated"))))) -> 4
C128: Data Source / Explanation (Optional):
C129: After the Ferguson Unrest, high levels of psychological stress were reported.
C131: Mental Health Score: | J131: =IF(OR(J125="Not Calculated",J127="Not Calculated")=TRUE,"Not Calculated",AVERAGE(J125,J127)) -> 3
C133: Human Impact Score: | J133: =IF(OR(J40="Not Calculated",J59="Not Calculated",J78="Not Calculated",J97="Not Calculated",J116="Not Calculated",J131="Not Calculated",)=TRUE,"Not Calculated",AVERAGE(J40,J59,J78,J97,J116,J131)) -> Not Calculated
G137: Healthcare Service Impact
C139: Outpatient Services
C140: Baseline PCPs: | J140: ='Baseline Health'!G45 -> 1
C141: Hazard-Related Loss of PCPs: | J141: ='Baseline Health'!G45*0.044 -> 0.044
C142: Hazard-Related Increase in Demand for PCPs per Day: | J142: =J83/20 -> 0
D143: (PCP Demand = Increase in Office Visits / 20)
C144: Magnitude Score: | J144: =IF(OR(J140=0,J140="Not Calculated")=TRUE,"Not Calculated",IF((J140-J141)<=0,4,IF(((J140+J142)/(J140-J141))<=1,0,IF(((J140+J142)/(J140-J141))<=1.05,1,IF(((J140+J142)/(J140-J141))<=1.5, 2,IF(((J140+J142)/(J140-J141))<=2,3,4)))))) -> 1
C145: ="0:" -> 0: | D145: No change from baseline
C146: ="1:" -> 1: | D146: (Baseline + ↑ demand) / (Baseline - ↓ supply) ≤ 1.05
C147: ="2:" -> 2: | D147: (Baseline + ↑ demand) / (Baseline - ↓ supply) ≤ 1.5
C148: ="3:" -> 3: | D148: (Baseline + ↑ demand) / (Baseline - ↓ supply) ≤ 2
C149: ="4:" -> 4: | D149: (Baseline + ↑ demand) / (Baseline - ↓ supply) > 2 | N149: Use Quantititive Value
C150: OR, Estimate the Magnitude Qualitatively: | J150: Use Quantititive Value | N150: No change from baseline (Score = 0)
C151: Qualitative Magnitude Score: | J151: =IF(J150=N149,"N/A",IF(J150=N150,0,IF(J150=N151,1,IF(J150=N152,2,IF(J150=N153,3,IF(J150=N154,4,"N/A")))))) -> N/A | N151: ≤ 5% ↑ demand or ↓ supply (Score = 1)
C152: Duration of Impact: | J152: > 2 weeks (Score = 4) | N152: ≤ 50% ↑ demand or ↓ supply (Score = 2)
C153: Duration Score: | J153: =IF(J152=$B$973,$A$973,IF(J152=$B$974,$A$974,IF(J152=$B$975,$A$975,IF(J152=$B$976,$A$976,IF(J152=$B$977,$A$977,"Not Calculated"))))) -> 4 | N153: ≤ 100% ↑ demand or ↓ supply (Score = 3)
C154: Data Source / Explanation (Optional): | N154: >100% ↑ demand or ↓ supply (Score = 4)
C155: During the LA Riots, about 4.4% closed. Use an appropriate % if any is available.
C157: Outpatient Services Score: | J157: =IF(J151="N/A",IF(OR(J144="Not Calculated",J153="Not Calculated")=TRUE,"Not Calculated",AVERAGE(J144,J153)),AVERAGE(J151,J153)) -> 2.5
C160: ED Services
C161: Baseline ED Beds: | J161: ='Baseline Health'!G51 -> 0
C162: Hazard-Related Loss of ED Beds: | J162: 0
C163: Hazard-Related Increase in Demand for ED Beds per Day: | J163: =(J64)/4.5 -> 1.555555556
D164: (ED Bed Demand per Day = Increase in ED Visits / 4.5)
C165: Magnitude Score: | J165: =IF(OR(J161=0,J161="Not Calculated")=TRUE,"Not Calculated",IF((J161-J162)<=0,4,IF(((J161+J163)/(J161-J162))<=1,0,IF(((J161+J163)/(J161-J162))<=1.05,1,IF(((J161+J163)/(J161-J162))<=1.5, 2,IF(((J161+J163)/(J161-J162))<=2,3,4)))))) -> Not Calculated
C166: ="0:" -> 0: | D166: No change from baseline
C167: ="1:" -> 1: | D167: (Baseline + ↑ demand) / (Baseline - ↓ supply) ≤ 1.05
C168: ="2:" -> 2: | D168: (Baseline + ↑ demand) / (Baseline - ↓ supply) ≤ 1.5
C169: ="3:" -> 3: | D169: (Baseline + ↑ demand) / (Baseline - ↓ supply) ≤ 2
C170: ="4:" -> 4: | D170: (Baseline + ↑ demand) / (Baseline - ↓ supply) > 2 | N170: Use Quantititive Value
C171: OR, Estimate the Magnitude Qualitatively: | J171: Use Quantititive Value | N171: No change from baseline (Score = 0)
C172: Qualitative Magnitude Score: | J172: =IF(J171=N170,"N/A",IF(J171=N171,0,IF(J171=N172,1,IF(J171=N173,2,IF(J171=N174,3,IF(J171=N175,4,"N/A")))))) -> N/A | N172: ≤ 5% ↑ demand or ↓ supply (Score = 1)
C173: Duration of Impact: | J173: ≤ 1 week (Score = 2) | N173: ≤ 50% ↑ demand or ↓ supply (Score = 2)
C174: Duration Score: | J174: =IF(J173=$B$973,$A$973,IF(J173=$B$974,$A$974,IF(J173=$B$975,$A$975,IF(J173=$B$976,$A$976,IF(J173=$B$977,$A$977,"Not Calculated"))))) -> 2 | N174: ≤ 100% ↑ demand or ↓ supply (Score = 3)
C175: Data Source / Explanation (Optional): | N175: >100% ↑ demand or ↓ supply (Score = 4)
C178: ED Services Score: | J178: =IF(J172="N/A",IF(OR(J165="Not Calculated",J174="Not Calculated")=TRUE,"Not Calculated",AVERAGE(J165,J174)),AVERAGE(J172,J174)) -> Not Calculated
C181: Hospital Beds
C182: Baseline Hospital Beds: | J182: ='Baseline Health'!G59 -> 0
C183: Hazard-Related Loss of Hospital Beds: | J183: 0
C184: Hazard-Related Increase in Demand for Hospital Beds: | J184: =('Baseline Health'!G6*0.00000492) -> 0
C185: Magnitude Score: | J185: =IF(OR(J182=0,J182="Not Calculated")=TRUE,"Not Calculated",IF(J182-J183=0,4,IF(((J182+J184)/(J182-J183))<=1,0,IF(((J182+J184)/(J182-J183))<=1.05,1,IF(((J182+J184)/(J182-J183))<=1.5, 2,IF(((J182+J184)/(J182-J183))<=2,3,4)))))) -> Not Calculated
C186: ="0:" -> 0: | D186: No change from baseline
C187: ="1:" -> 1: | D187: (Baseline + ↑ demand) / (Baseline - ↓ supply) ≤ 1.05
C188: ="2:" -> 2: | D188: (Baseline + ↑ demand) / (Baseline - ↓ supply) ≤ 1.5
C189: ="3:" -> 3: | D189: (Baseline + ↑ demand) / (Baseline - ↓ supply) ≤ 2
C190: ="4:" -> 4: | D190: (Baseline + ↑ demand) / (Baseline - ↓ supply) > 2 | N190: Use Quantititive Value
C191: OR, Estimate the Magnitude Qualitatively: | J191: Use Quantititive Value | N191: No change from baseline (Score = 0)
C192: Qualitative Magnitude Score: | J192: =IF(J191=N190,"N/A",IF(J191=N191,0,IF(J191=N192,1,IF(J191=N193,2,IF(J191=N194,3,IF(J191=N195,4,"N/A")))))) -> N/A | N192: ≤ 5% ↑ demand or ↓ supply (Score = 1)
C193: Duration of Impact: | J193: ≤ 2 weeks (Score = 3) | N193: ≤ 50% ↑ demand or ↓ supply (Score = 2)
C194: Duration Score: | J194: =IF(J193=$B$973,$A$973,IF(J193=$B$974,$A$974,IF(J193=$B$975,$A$975,IF(J193=$B$976,$A$976,IF(J193=$B$977,$A$977,"Not Calculated"))))) -> 3 | N194: ≤ 100% ↑ demand or ↓ supply (Score = 3)
C195: Data Source / Explanation (Optional): | N195: >100% ↑ demand or ↓ supply (Score = 4)
C196: Hospitals remained open during the Civil Unrest. No decrease in bed availability.
C198: Hospital Beds Score: | J198: =IF(J192="N/A",IF(OR(J185="Not Calculated",J194="Not Calculated")=TRUE,"Not Calculated",AVERAGE(J185,J194)),AVERAGE(J192,J194)) -> Not Calculated
C201: Ancillary Services
C202: Baseline Pharmacists: | J202: ='Baseline Health'!G65 -> 0
C203: Hazard-Related Loss of Pharmacists: | J203: 0
C204: Hazard-Related Increase in Demand for Pharmacists: | J204: 0
C205: Magnitude Score: | J205: =IF(OR(J202=0,J202="Not Calculated")=TRUE,"Not Calculated",IF(J202-J203=0,4,IF(((J202+J204)/(J202-J203))<=1,0,IF(((J202+J204)/(J202-J203))<=1.05,1,IF(((J202+J204)/(J202-J203))<=1.5, 2,IF(((J202+J204)/(J202-J203))<=2,3,4)))))) -> Not Calculated
C206: ="0:" -> 0: | D206: No change from baseline
C207: ="1:" -> 1: | D207: (Baseline + ↑ demand) / (Baseline - ↓ supply) ≤ 1.05
C208: ="2:" -> 2: | D208: (Baseline + ↑ demand) / (Baseline - ↓ supply) ≤ 1.5
C209: ="3:" -> 3: | D209: (Baseline + ↑ demand) / (Baseline - ↓ supply) ≤ 2
C210: ="4:" -> 4: | D210: (Baseline + ↑ demand) / (Baseline - ↓ supply) > 2 | N210: Use Quantititive Value
C211: OR, Estimate the Magnitude Qualitatively: | J211: Use Quantititive Value | N211: No change from baseline (Score = 0)
C212: Qualitative Magnitude Score: | J212: =IF(J211=N210,"N/A",IF(J211=N211,0,IF(J211=N212,1,IF(J211=N213,2,IF(J211=N214,3,IF(J211=N215,4,"N/A")))))) -> N/A | N212: ≤ 5% ↑ demand or ↓ supply (Score = 1)
C213: Duration of Impact: | J213: > 2 weeks (Score = 4) | N213: ≤ 50% ↑ demand or ↓ supply (Score = 2)
C214: Duration Score: | J214: =IF(J213=$B$973,$A$973,IF(J213=$B$974,$A$974,IF(J213=$B$975,$A$975,IF(J213=$B$976,$A$976,IF(J213=$B$977,$A$977,"Not Calculated"))))) -> 4 | N214: ≤ 100% ↑ demand or ↓ supply (Score = 3)
C215: Data Source / Explanation (Optional): | N215: >100% ↑ demand or ↓ supply (Score = 4)
C216: Unaware of any loss of pharmacies during the Civil Unrest.
C218: Ancillary Services Score: | J218: =IF(J212="N/A",IF(OR(J205="Not Calculated",J214="Not Calculated")=TRUE,"Not Calculated",AVERAGE(J205,J214)),AVERAGE(J212,J214)) -> Not Calculated
C221: Trauma Units
C222: Baseline Trauma Center Functioning ORs: | J222: ='Baseline Health'!G71 -> 0
C223: Hazard-Related Loss of Trauma Center Functioning ORs: | J223: 0
C224: Hazard-Related Increase in Demand for Trauma ORs: | J224: =J102 -> 0
D225: (Demand = Increase in Trauma Injuries per Day)
C226: Magnitude Score: | J226: =IF(OR(J222=0,J222="Not Calculated")=TRUE,"Not Calculated",IF(J222-J223=0,4,IF(((J222+J224)/(J222-J223))<=1,0,IF(((J222+J224)/(J222-J223))<=1.05,1,IF(((J222+J224)/(J222-J223))<=1.5, 2,IF(((J222+J224)/(J222-J223))<=2,3,4)))))) -> Not Calculated
C227: ="0:" -> 0: | D227: No change from baseline
C228: ="1:" -> 1: | D228: (Baseline + ↑ demand) / (Baseline - ↓ supply) ≤ 1.05
C229: ="2:" -> 2: | D229: (Baseline + ↑ demand) / (Baseline - ↓ supply) ≤ 1.5
C230: ="3:" -> 3: | D230: (Baseline + ↑ demand) / (Baseline - ↓ supply) ≤ 2
C231: ="4:" -> 4: | D231: (Baseline + ↑ demand) / (Baseline - ↓ supply) > 2 | N231: Use Quantititive Value
C232: OR, Estimate the Magnitude Qualitatively: | J232: Use Quantititive Value | N232: No change from baseline (Score = 0)
C233: Qualitative Magnitude Score: | J233: =IF(J232=N231,"N/A",IF(J232=N232,0,IF(J232=N233,1,IF(J232=N234,2,IF(J232=N235,3,IF(J232=N236,4,"N/A")))))) -> N/A | N233: ≤ 5% ↑ demand or ↓ supply (Score = 1)
C234: Duration of Impact: | J234: ≤ 1 week (Score = 2) | N234: ≤ 50% ↑ demand or ↓ supply (Score = 2)
C235: Duration Score: | J235: =IF(J234=$B$973,$A$973,IF(J234=$B$974,$A$974,IF(J234=$B$975,$A$975,IF(J234=$B$976,$A$976,IF(J234=$B$977,$A$977,"Not Calculated"))))) -> 2 | N235: ≤ 100% ↑ demand or ↓ supply (Score = 3)
C236: Data Source / Explanation (Optional): | N236: >100% ↑ demand or ↓ supply (Score = 4)
C237: During the Ferguson Unrest, hospitals remained open.
C239: Trauma Units Score: | J239: =IF(J233="N/A",IF(OR(J226="Not Calculated",J235="Not Calculated")=TRUE,"Not Calculated",AVERAGE(J226,J235)),AVERAGE(J233,J235)) -> Not Calculated
C242: Mental Health Services Services
C243: Baseline Mental Health Providers: | J243: ='Baseline Health'!G77 -> 0
C244: Hazard-Related Loss of Mental Health Providers: | J244: =J243*0.1 -> 0
C245: Hazard-Related Increase in Demand for Mental Health Providers: | J245: =('Baseline Health'!G6*0.000043)*40/250 -> 0
C246: Magnitude Score: | J246: =IF(OR(J243=0,J243="Not Calculated")=TRUE,"Not Calculated",IF(J243-J244=0,4,(IF(((J243+J245)/(J243-J244))<=1,0,IF(((J243+J245)/(J243-J244))<=1.05,1,IF(((J243+J245)/(J243-J244))<=1.5,2,IF(((J243+J245)/(J243-J244))<=2,3,4))))))) -> Not Calculated
C247: ="0:" -> 0: | D247: No change from baseline
C248: ="1:" -> 1: | D248: (Baseline + ↑ demand) / (Baseline - ↓ supply) ≤ 1.05
C249: ="2:" -> 2: | D249: (Baseline + ↑ demand) / (Baseline - ↓ supply) ≤ 1.5
C250: ="3:" -> 3: | D250: (Baseline + ↑ demand) / (Baseline - ↓ supply) ≤ 2
C251: ="4:" -> 4: | D251: (Baseline + ↑ demand) / (Baseline - ↓ supply) > 2 | N251: Use Quantititive Value
C252: OR, Estimate the Magnitude Qualitatively: | J252: Use Quantititive Value | N252: No change from baseline (Score = 0)
C253: Qualitative Magnitude Score: | J253: =IF(J252=N251,"N/A",IF(J252=N252,0,IF(J252=N253,1,IF(J252=N254,2,IF(J252=N255,3,IF(J252=N256,4,"N/A")))))) -> N/A | N253: ≤ 5% ↑ demand or ↓ supply (Score = 1)
... 562 more rows

Sheet Coastal Storm
G2: Public Health Risk Assessment Tool
G3: Coastal Storm
B5: Coastal Storms, or cyclones, include tropical depressions, tropical storms, and hurricanes. Coastal storms in the Atlantic typically begin as waves of warm air from the Sahara. As the air moves over the ocean, it derives moisture and energy from the warm water. Rapid cooling of the atmosphere as the storm moves creates thunderstorms and liberates enough heat from the ocean to allow a cyclone to develop. In the Northern Hemisphere, a tropical cyclone consists of a closed circulation storm with an average diameter of 10-30 miles around a low-pressure center. Tropical depressions generate sustained wind speeds of less than 39 mph. Tropical storms generate winds that range from 39-73 mph. The Saffir-Simpson Hurricane scale rates hurricanes on a scale of 1-5, with category 1 hurricanes generating winds of 74-95 mph, and category 5 hurricanes generating winds of at least 156 mph (Ciottone, 2006). The majority of hurricanes and tropical storms form in the Atlantic Ocean, Caribbean Sea, and Gulf of Mexico during the official Atlantic hurricane season (June through November) (FEMA, 1997). The high-level sustained winds and heavy precipitation associated with coastal storms can have devastating consequences for coastal regions (Ciottone, 2006).
B7: The following hazard impacts have been estimated using historical data, predictive models, estimations where necessary, and the information entered in the "Baseline Data" worksheets. The information below can be altered as needed to more accurately reflect hazard impacts in your jurisdiction. The impacts should reflect the worst-case reasonable scenario.
B9: Briefly describe the worst-case reasonable scenario of this hazard (the scenario to which the following impacts apply) here:
B10: The proxy scenario used to predict the impacts of a coastal storm is Hurricane Sandy, which made landfall close to Atlantic City in New Jersey on October 29, 2012, at about 8:00 pm local time. The storm had winds of more than 80mph (129km/h) (MCEER, 2012).
G13: Probability
C15: Probability: | E15: The probability of the occurrence of the hazard is zero.
C17: Probability Score: | E17: =IF(E15=$C$966,$A$966,IF(E15=$C$967,$A$967,IF(E15=$C$968,$A$968,IF(E15=$C$969,$A$969,IF(E15=$C$970,$A$970,"Not Calculated"))))) -> 0
E18: =IF(E15=$C$966,$B$966,IF(E15=$C$967,$B$967,IF(E15=$C$968,$B$968,IF(E15=$C$969,$B$969,IF(E15=$C$970,$B$970,"Not Calculated"))))) -> Improbable
G22: Human Impact
C24: Mortality
C25: Baseline Mortality per Day: | J25: ='Baseline Health'!G11 -> 0
C26: Hazard-Related Increase in Mortality per Day: | J26: 0
C27: Magnitude Score: | J27: =IF(OR(J25=0,J25="Not Calculated")=TRUE,"Not Calculated",(IF(((J26+J25)/J25)<=1,0,IF(((J26+J25)/J25)<=1.05,1,IF(((J26+J25)/J25)<=1.5, 2,IF(((J26+J25)/J25)<=2,3,4)))))) -> Not Calculated
C28: ="0:" -> 0: | D28: No change from baseline
C29: ="1:" -> 1: | D29: ≤ 5% increase
C30: ="2:" -> 2: | D30: ≤ 50% increase
C31: ="3:" -> 3: | D31: ≤ 100% increase
C32: ="4:" -> 4: | D32: >100% increase | N32: Use Quantititive Value
C33: OR, Estimate the Magnitude Qualitatively: | J33: Use Quantititive Value | N33: No change from baseline (Score = 0)
C34: Qualitative Magnitude Score: | J34: =IF(J33=N32,"N/A",IF(J33=N33,0,IF(J33=N34,1,IF(J33=N35,2,IF(J33=N36,3,IF(J33=N37,4,"N/A")))))) -> N/A | N34: ≤ 5% increase (Score = 1)
C35: Duration of Impact: | J35: No impact (Score = 0) | N35: ≤ 50% increase (Score = 2)
C36: Duration Score: | J36: =IF(J35=$B$973,$A$973,IF(J35=$B$974,$A$974,IF(J35=$B$975,$A$975,IF(J35=$B$976,$A$976,IF(J35=$B$977,$A$977,"Not Calculated"))))) -> 0 | N36: ≤ 100% increase (Score = 3)
C37: Data Source / Explanation (Optional): | N37: >100% increase (Score = 4)
C40: Mortality Score: | J40: =IF(J34="N/A",IF(OR(J27="Not Calculated",J36="Not Calculated")=TRUE,"Not Calculated",AVERAGE(J27,J36)),AVERAGE(J34,J36)) -> Not Calculated
C43: EMS Transports
C44: Baseline Transports per Day: | J44: ='Baseline Health'!G17 -> 0
C45: Hazard-Related Increase in Transports per Day: | J45: 0
C46: Magnitude Score: | J46: =IF(OR(J44=0,J44="Not Calculated")=TRUE,"Not Calculated",(IF(((J45+J44)/J44)<=1,0,IF(((J45+J44)/J44)<=1.05,1,IF(((J45+J44)/J44)<=1.5, 2,IF(((J45+J44)/J44)<=2,3,4)))))) -> Not Calculated
C47: ="0:" -> 0: | D47: No change from baseline
C48: ="1:" -> 1: | D48: ≤ 5% increase
C49: ="2:" -> 2: | D49: ≤ 50% increase
C50: ="3:" -> 3: | D50: ≤ 100% increase
C51: ="4:" -> 4: | D51: >100% increase | N51: Use Quantititive Value
C52: OR, Estimate the Magnitude Qualitatively: | J52: Use Quantititive Value | N52: No change from baseline (Score = 0)
C53: Qualitative Magnitude Score: | J53: =IF(J52=N51,"N/A",IF(J52=N52,0,IF(J52=N53,1,IF(J52=N54,2,IF(J52=N55,3,IF(J52=N56,4,"N/A")))))) -> N/A | N53: ≤ 5% increase (Score = 1)
C54: Duration of Impact: | J54: No impact (Score = 0) | N54: ≤ 50% increase (Score = 2)
C55: Duration Score: | J55: =IF(J54=$B$973,$A$973,IF(J54=$B$974,$A$974,IF(J54=$B$975,$A$975,IF(J54=$B$976,$A$976,IF(J54=$B$977,$A$977,"Not Calculated"))))) -> 0 | N55: ≤ 100% increase (Score = 3)
C56: Data Source / Explanation (Optional): | N56: >100% increase (Score = 4)
C57: During Hurricane Ike in Franklin County, Ohio, calls for emergency assistance increased by a factor of 2.52 for one day (Schmidlin, 2010).
C59: EMS Transports Score: | J59: =IF(J53="N/A",IF(OR(J46="Not Calculated",J55="Not Calculated")=TRUE,"Not Calculated",AVERAGE(J46,J55)),AVERAGE(J53,J55)) -> Not Calculated
C62: ED Visits
C63: Baseline ED Visits per Day: | J63: ='Baseline Health'!G23 -> 0
C64: Hazard-Related Increase in ED Visits per Day: | J64: 0
C65: Magnitude Score: | J65: =IF(OR(J63=0,J63="Not Calculated")=TRUE,"Not Calculated",(IF(((J64+J63)/J63)<=1,0,IF(((J64+J63)/J63)<=1.05,1,IF(((J64+J63)/J63)<=1.5, 2,IF(((J64+J63)/J63)<=2,3,4)))))) -> Not Calculated
C66: ="0:" -> 0: | D66: No change from baseline
C67: ="1:" -> 1: | D67: ≤ 5% increase
C68: ="2:" -> 2: | D68: ≤ 50% increase
C69: ="3:" -> 3: | D69: ≤ 100% increase
C70: ="4:" -> 4: | D70: >100% increase | N70: Use Quantititive Value
C71: OR, Estimate the Magnitude Qualitatively: | J71: Use Quantititive Value | N71: No change from baseline (Score = 0)
C72: Qualitative Magnitude Score: | J72: =IF(J71=N70,"N/A",IF(J71=N71,0,IF(J71=N72,1,IF(J71=N73,2,IF(J71=N74,3,IF(J71=N75,4,"N/A")))))) -> N/A | N72: ≤ 5% increase (Score = 1)
C73: Duration of Impact: | J73: No impact (Score = 0) | N73: ≤ 50% increase (Score = 2)
C74: Duration Score: | J74: =IF(J73=$B$973,$A$973,IF(J73=$B$974,$A$974,IF(J73=$B$975,$A$975,IF(J73=$B$976,$A$976,IF(J73=$B$977,$A$977,"Not Calculated"))))) -> 0 | N74: ≤ 100% increase (Score = 3)
C75: Data Source / Explanation (Optional): | N75: >100% increase (Score = 4)
C78: ED Visits Score: | J78: =IF(J72="N/A",IF(OR(J65="Not Calculated",J74="Not Calculated")=TRUE,"Not Calculated",AVERAGE(J65,J74)),AVERAGE(J72,J74)) -> Not Calculated
C81: Primary Care Office Visits
C82: Baseline Office Visits per Day: | J82: ='Baseline Health'!G29 -> 0
C83: Hazard-Related Increase in Office Visits per Day: | J83: 0
C84: Magnitude Score: | J84: =IF(OR(J82=0,J82="Not Calculated")=TRUE,"Not Calculated",(IF(((J83+J82)/J82)<=1,0,IF(((J83+J82)/J82)<=1.05,1,IF(((J83+J82)/J82)<=1.5, 2,IF(((J83+J82)/J82)<=2,3,4)))))) -> Not Calculated
C85: ="0:" -> 0: | D85: No change from baseline
C86: ="1:" -> 1: | D86: ≤ 5% increase
C87: ="2:" -> 2: | D87: ≤ 50% increase
C88: ="3:" -> 3: | D88: ≤ 100% increase
C89: ="4:" -> 4: | D89: >100% increase | N89: Use Quantititive Value
C90: OR, Estimate the Magnitude Qualitatively: | J90: Use Quantititive Value | N90: No change from baseline (Score = 0)
C91: Qualitative Magnitude Score: | J91: =IF(J90=N89,"N/A",IF(J90=N90,0,IF(J90=N91,1,IF(J90=N92,2,IF(J90=N93,3,IF(J90=N94,4,"N/A")))))) -> N/A | N91: ≤ 5% increase (Score = 1)
C92: Duration of Impact: | J92: No impact (Score = 0) | N92: ≤ 50% increase (Score = 2)
C93: Duration Score: | J93: =IF(J92=$B$973,$A$973,IF(J92=$B$974,$A$974,IF(J92=$B$975,$A$975,IF(J92=$B$976,$A$976,IF(J92=$B$977,$A$977,"Not Calculated"))))) -> 0 | N93: ≤ 100% increase (Score = 3)
C94: Data Source / Explanation (Optional): | N94: >100% increase (Score = 4)
C97: Primary Care Office Visits Score: | J97: =IF(J91="N/A",IF(OR(J84="Not Calculated",J93="Not Calculated")=TRUE,"Not Calculated",AVERAGE(J84,J93)),AVERAGE(J91,J93)) -> Not Calculated
C100: Trauma Center Injuries
C101: Baseline Trauma Injuries per Day: | J101: ='Baseline Health'!G35 -> 0
C102: Hazard-Related Increase in Trauma Injuries per Day: | J102: 0
C103: Magnitude Score: | J103: =IF(OR(J101=0,J101="Not Calculated")=TRUE,"Not Calculated",(IF(((J102+J101)/J101)<=1,0,IF(((J102+J101)/J101)<=1.05,1,IF(((J102+J101)/J101)<=1.5, 2,IF(((J102+J101)/J101)<=2,3,4)))))) -> Not Calculated
C104: ="0:" -> 0: | D104: No change from baseline
C105: ="1:" -> 1: | D105: ≤ 5% increase
C106: ="2:" -> 2: | D106: ≤ 50% increase
C107: ="3:" -> 3: | D107: ≤ 100% increase
C108: ="4:" -> 4: | D108: >100% increase | N108: Use Quantititive Value
C109: OR, Estimate the Magnitude Qualitatively: | J109: Use Quantititive Value | N109: No change from baseline (Score = 0)
C110: Qualitative Magnitude Score: | J110: =IF(J109=N108,"N/A",IF(J109=N109,0,IF(J109=N110,1,IF(J109=N111,2,IF(J109=N112,3,IF(J109=N113,4,"N/A")))))) -> N/A | N110: ≤ 5% increase (Score = 1)
C111: Duration of Impact: | J111: No impact (Score = 0) | N111: ≤ 50% increase (Score = 2)
C112: Duration Score: | J112: =IF(J111=$B$973,$A$973,IF(J111=$B$974,$A$974,IF(J111=$B$975,$A$975,IF(J111=$B$976,$A$976,IF(J111=$B$977,$A$977,"Not Calculated"))))) -> 0 | N112: ≤ 100% increase (Score = 3)
C113: Data Source / Explanation (Optional): | N113: >100% increase (Score = 4)
C116: Trauma Center Injuries Score: | J116: =IF(J110="N/A",IF(OR(J103="Not Calculated",J112="Not Calculated")=TRUE,"Not Calculated",AVERAGE(J103,J112)),AVERAGE(J110,J112)) -> Not Calculated
C119: Mental Health Impact
C120: Mental Health Impact (Percent of population developing psychopathology and behavioral changes after the incident, including PTST, depression, anxiety, alcohol and substance abuse, domestic violence, and loss of social functions):
C123: Minimal change in population behavior and negligible effects on social functioning.
C125: Magnitude Score: | J125: =IF(C123=B987,A987,IF(C123=B988,A988,IF(C123=B989,A989,IF(C123=B990,A990,IF(C123=B991,A991,"Not Calculated"))))) -> 0
C126: Duration of Impact: | J126: No impact (Score = 0)
C127: Duration Score: | J127: =IF(J126=$B$973,$A$973,IF(J126=$B$974,$A$974,IF(J126=$B$975,$A$975,IF(J126=$B$976,$A$976,IF(J126=$B$977,$A$977,"Not Calculated"))))) -> 0
C128: Data Source / Explanation (Optional):
C131: Mental Health Score: | J131: =IF(OR(J125="Not Calculated",J127="Not Calculated")=TRUE,"Not Calculated",AVERAGE(J125,J127)) -> 0
C133: Human Impact Score: | J133: =IF(OR(J40="Not Calculated",J59="Not Calculated",J78="Not Calculated",J97="Not Calculated",J116="Not Calculated",J131="Not Calculated",)=TRUE,"Not Calculated",AVERAGE(J40,J59,J78,J97,J116,J131)) -> Not Calculated
G137: Healthcare Service Impact
C139: Outpatient Services
C140: Baseline PCPs: | J140: ='Baseline Health'!G45 -> 1
C141: Hazard-Related Loss of PCPs: | J141: 0
C142: Hazard-Related Increase in Demand for PCPs per Day: | J142: =J83/20 -> 0
D143: (PCP Demand = Increase in Office Visits / 20)
C144: Magnitude Score: | J144: =IF(OR(J140=0,J140="Not Calculated")=TRUE,"Not Calculated",IF((J140-J141)<=0,4,IF(((J140+J142)/(J140-J141))<=1,0,IF(((J140+J142)/(J140-J141))<=1.05,1,IF(((J140+J142)/(J140-J141))<=1.5, 2,IF(((J140+J142)/(J140-J141))<=2,3,4)))))) -> 0
C145: ="0:" -> 0: | D145: No change from baseline
C146: ="1:" -> 1: | D146: (Baseline + ↑ demand) / (Baseline - ↓ supply) ≤ 1.05
C147: ="2:" -> 2: | D147: (Baseline + ↑ demand) / (Baseline - ↓ supply) ≤ 1.5
C148: ="3:" -> 3: | D148: (Baseline + ↑ demand) / (Baseline - ↓ supply) ≤ 2
C149: ="4:" -> 4: | D149: (Baseline + ↑ demand) / (Baseline - ↓ supply) > 2 | N149: Use Quantititive Value
C150: OR, Estimate the Magnitude Qualitatively: | J150: No change from baseline (Score = 0) | N150: No change from baseline (Score = 0)
C151: Qualitative Magnitude Score: | J151: =IF(J150=N149,"N/A",IF(J150=N150,0,IF(J150=N151,1,IF(J150=N152,2,IF(J150=N153,3,IF(J150=N154,4,"N/A")))))) -> 0 | N151: ≤ 5% ↑ demand or ↓ supply (Score = 1)
C152: Duration of Impact: | J152: No impact (Score = 0) | N152: ≤ 50% ↑ demand or ↓ supply (Score = 2)
C153: Duration Score: | J153: =IF(J152=$B$973,$A$973,IF(J152=$B$974,$A$974,IF(J152=$B$975,$A$975,IF(J152=$B$976,$A$976,IF(J152=$B$977,$A$977,"Not Calculated"))))) -> 0 | N153: ≤ 100% ↑ demand or ↓ supply (Score = 3)
C154: Data Source / Explanation (Optional): | N154: >100% ↑ demand or ↓ supply (Score = 4)
C155: During Hurricane Sandy, most outpatient offices and amubulatory centers in the Philadelphia region were closed Monday and Tuesday ("Hurricane Sandy closings mount," 2012).
C157: Outpatient Services Score: | J157: =IF(J151="N/A",IF(OR(J144="Not Calculated",J153="Not Calculated")=TRUE,"Not Calculated",AVERAGE(J144,J153)),AVERAGE(J151,J153)) -> 0
C160: ED Services
C161: Baseline ED Beds: | J161: ='Baseline Health'!G51 -> 0
C162: Hazard-Related Loss of ED Beds: | J162: 0
C163: Hazard-Related Increase in Demand for ED Beds per Day: | J163: =(J64)/4.5 -> 0
D164: (ED Bed Demand per Day = Increase in ED Visits / 4.5)
C165: Magnitude Score: | J165: =IF(OR(J161=0,J161="Not Calculated")=TRUE,"Not Calculated",IF((J161-J162)<=0,4,IF(((J161+J163)/(J161-J162))<=1,0,IF(((J161+J163)/(J161-J162))<=1.05,1,IF(((J161+J163)/(J161-J162))<=1.5, 2,IF(((J161+J163)/(J161-J162))<=2,3,4)))))) -> Not Calculated
C166: ="0:" -> 0: | D166: No change from baseline
C167: ="1:" -> 1: | D167: (Baseline + ↑ demand) / (Baseline - ↓ supply) ≤ 1.05
C168: ="2:" -> 2: | D168: (Baseline + ↑ demand) / (Baseline - ↓ supply) ≤ 1.5
C169: ="3:" -> 3: | D169: (Baseline + ↑ demand) / (Baseline - ↓ supply) ≤ 2
C170: ="4:" -> 4: | D170: (Baseline + ↑ demand) / (Baseline - ↓ supply) > 2 | N170: Use Quantititive Value
C171: OR, Estimate the Magnitude Qualitatively: | J171: No change from baseline (Score = 0) | N171: No change from baseline (Score = 0)
C172: Qualitative Magnitude Score: | J172: =IF(J171=N170,"N/A",IF(J171=N171,0,IF(J171=N172,1,IF(J171=N173,2,IF(J171=N174,3,IF(J171=N175,4,"N/A")))))) -> 0 | N172: ≤ 5% ↑ demand or ↓ supply (Score = 1)
C173: Duration of Impact: | J173: No impact (Score = 0) | N173: ≤ 50% ↑ demand or ↓ supply (Score = 2)
C174: Duration Score: | J174: =IF(J173=$B$973,$A$973,IF(J173=$B$974,$A$974,IF(J173=$B$975,$A$975,IF(J173=$B$976,$A$976,IF(J173=$B$977,$A$977,"Not Calculated"))))) -> 0 | N174: ≤ 100% ↑ demand or ↓ supply (Score = 3)
C175: Data Source / Explanation (Optional): | N175: >100% ↑ demand or ↓ supply (Score = 4)
C178: ED Services Score: | J178: =IF(J172="N/A",IF(OR(J165="Not Calculated",J174="Not Calculated")=TRUE,"Not Calculated",AVERAGE(J165,J174)),AVERAGE(J172,J174)) -> 0
C181: Hospital Beds
C182: Baseline Hospital Beds: | J182: ='Baseline Health'!G59 -> 0
C183: Hazard-Related Loss of Hospital Beds: | J183: 0
C184: Hazard-Related Increase in Demand for Hospital Beds: | J184: 0
C185: Magnitude Score: | J185: =IF(OR(J182=0,J182="Not Calculated")=TRUE,"Not Calculated",IF(J182-J183=0,4,IF(((J182+J184)/(J182-J183))<=1,0,IF(((J182+J184)/(J182-J183))<=1.05,1,IF(((J182+J184)/(J182-J183))<=1.5, 2,IF(((J182+J184)/(J182-J183))<=2,3,4)))))) -> Not Calculated
C186: ="0:" -> 0: | D186: No change from baseline
C187: ="1:" -> 1: | D187: (Baseline + ↑ demand) / (Baseline - ↓ supply) ≤ 1.05
C188: ="2:" -> 2: | D188: (Baseline + ↑ demand) / (Baseline - ↓ supply) ≤ 1.5
C189: ="3:" -> 3: | D189: (Baseline + ↑ demand) / (Baseline - ↓ supply) ≤ 2
C190: ="4:" -> 4: | D190: (Baseline + ↑ demand) / (Baseline - ↓ supply) > 2 | N190: Use Quantititive Value
C191: OR, Estimate the Magnitude Qualitatively: | J191: No change from baseline (Score = 0) | N191: No change from baseline (Score = 0)
C192: Qualitative Magnitude Score: | J192: =IF(J191=N190,"N/A",IF(J191=N191,0,IF(J191=N192,1,IF(J191=N193,2,IF(J191=N194,3,IF(J191=N195,4,"N/A")))))) -> 0 | N192: ≤ 5% ↑ demand or ↓ supply (Score = 1)
C193: Duration of Impact: | J193: No impact (Score = 0) | N193: ≤ 50% ↑ demand or ↓ supply (Score = 2)
C194: Duration Score: | J194: =IF(J193=$B$973,$A$973,IF(J193=$B$974,$A$974,IF(J193=$B$975,$A$975,IF(J193=$B$976,$A$976,IF(J193=$B$977,$A$977,"Not Calculated"))))) -> 0 | N194: ≤ 100% ↑ demand or ↓ supply (Score = 3)
C195: Data Source / Explanation (Optional): | N195: >100% ↑ demand or ↓ supply (Score = 4)
C196: Some staff shortages are expected, but hospitals likely will compensate. There may be some increased demand due to the inability to discharge patients during the storm, but this is likely counterbalanced by non-emergent patients being discharged in preparation for the storm.
C198: Hospital Beds Score: | J198: =IF(J192="N/A",IF(OR(J185="Not Calculated",J194="Not Calculated")=TRUE,"Not Calculated",AVERAGE(J185,J194)),AVERAGE(J192,J194)) -> 0
C201: Ancillary Services
C202: Baseline Pharmacists: | J202: ='Baseline Health'!G65 -> 0
C203: Hazard-Related Loss of Pharmacists: | J203: 0
C204: Hazard-Related Increase in Demand for Pharmacists: | J204: 0
C205: Magnitude Score: | J205: =IF(OR(J202=0,J202="Not Calculated")=TRUE,"Not Calculated",IF(J202-J203=0,4,IF(((J202+J204)/(J202-J203))<=1,0,IF(((J202+J204)/(J202-J203))<=1.05,1,IF(((J202+J204)/(J202-J203))<=1.5, 2,IF(((J202+J204)/(J202-J203))<=2,3,4)))))) -> Not Calculated
C206: ="0:" -> 0: | D206: No change from baseline
C207: ="1:" -> 1: | D207: (Baseline + ↑ demand) / (Baseline - ↓ supply) ≤ 1.05
C208: ="2:" -> 2: | D208: (Baseline + ↑ demand) / (Baseline - ↓ supply) ≤ 1.5
C209: ="3:" -> 3: | D209: (Baseline + ↑ demand) / (Baseline - ↓ supply) ≤ 2
C210: ="4:" -> 4: | D210: (Baseline + ↑ demand) / (Baseline - ↓ supply) > 2 | N210: Use Quantititive Value
C211: OR, Estimate the Magnitude Qualitatively: | J211: No change from baseline (Score = 0) | N211: No change from baseline (Score = 0)
C212: Qualitative Magnitude Score: | J212: =IF(J211=N210,"N/A",IF(J211=N211,0,IF(J211=N212,1,IF(J211=N213,2,IF(J211=N214,3,IF(J211=N215,4,"N/A")))))) -> 0 | N212: ≤ 5% ↑ demand or ↓ supply (Score = 1)
C213: Duration of Impact: | J213: No impact (Score = 0) | N213: ≤ 50% ↑ demand or ↓ supply (Score = 2)
C214: Duration Score: | J214: =IF(J213=$B$973,$A$973,IF(J213=$B$974,$A$974,IF(J213=$B$975,$A$975,IF(J213=$B$976,$A$976,IF(J213=$B$977,$A$977,"Not Calculated"))))) -> 0 | N214: ≤ 100% ↑ demand or ↓ supply (Score = 3)
C215: Data Source / Explanation (Optional): | N215: >100% ↑ demand or ↓ supply (Score = 4)
C218: Ancillary Services Score: | J218: =IF(J212="N/A",IF(OR(J205="Not Calculated",J214="Not Calculated")=TRUE,"Not Calculated",AVERAGE(J205,J214)),AVERAGE(J212,J214)) -> 0
C221: Trauma Units
C222: Baseline Trauma Center Functioning ORs: | J222: ='Baseline Health'!G71 -> 0
C223: Hazard-Related Loss of Trauma Center Functioning ORs: | J223: 0
C224: Hazard-Related Increase in Demand for Trauma ORs: | J224: =J102 -> 0
D225: (Demand = Increase in Trauma Injuries per Day)
C226: Magnitude Score: | J226: =IF(OR(J222=0,J222="Not Calculated")=TRUE,"Not Calculated",IF(J222-J223=0,4,IF(((J222+J224)/(J222-J223))<=1,0,IF(((J222+J224)/(J222-J223))<=1.05,1,IF(((J222+J224)/(J222-J223))<=1.5, 2,IF(((J222+J224)/(J222-J223))<=2,3,4)))))) -> Not Calculated
C227: ="0:" -> 0: | D227: No change from baseline
C228: ="1:" -> 1: | D228: (Baseline + ↑ demand) / (Baseline - ↓ supply) ≤ 1.05
C229: ="2:" -> 2: | D229: (Baseline + ↑ demand) / (Baseline - ↓ supply) ≤ 1.5
C230: ="3:" -> 3: | D230: (Baseline + ↑ demand) / (Baseline - ↓ supply) ≤ 2
C231: ="4:" -> 4: | D231: (Baseline + ↑ demand) / (Baseline - ↓ supply) > 2 | N231: Use Quantititive Value
C232: OR, Estimate the Magnitude Qualitatively: | J232: No change from baseline (Score = 0) | N232: No change from baseline (Score = 0)
C233: Qualitative Magnitude Score: | J233: =IF(J232=N231,"N/A",IF(J232=N232,0,IF(J232=N233,1,IF(J232=N234,2,IF(J232=N235,3,IF(J232=N236,4,"N/A")))))) -> 0 | N233: ≤ 5% ↑ demand or ↓ supply (Score = 1)
C234: Duration of Impact: | J234: No impact (Score = 0) | N234: ≤ 50% ↑ demand or ↓ supply (Score = 2)
C235: Duration Score: | J235: =IF(J234=$B$973,$A$973,IF(J234=$B$974,$A$974,IF(J234=$B$975,$A$975,IF(J234=$B$976,$A$976,IF(J234=$B$977,$A$977,"Not Calculated"))))) -> 0 | N235: ≤ 100% ↑ demand or ↓ supply (Score = 3)
C236: Data Source / Explanation (Optional): | N236: >100% ↑ demand or ↓ supply (Score = 4)
C239: Trauma Units Score: | J239: =IF(J233="N/A",IF(OR(J226="Not Calculated",J235="Not Calculated")=TRUE,"Not Calculated",AVERAGE(J226,J235)),AVERAGE(J233,J235)) -> 0
C242: Mental Health Services Services
C243: Baseline Mental Health Providers: | J243: ='Baseline Health'!G77 -> 0
C244: Hazard-Related Loss of Mental Health Providers: | J244: 0
C245: Hazard-Related Increase in Demand for Mental Health Providers: | J245: 0
C246: Magnitude Score: | J246: =IF(OR(J243=0,J243="Not Calculated")=TRUE,"Not Calculated",IF(J243-J244=0,4,(IF(((J243+J245)/(J243-J244))<=1,0,IF(((J243+J245)/(J243-J244))<=1.05,1,IF(((J243+J245)/(J243-J244))<=1.5,2,IF(((J243+J245)/(J243-J244))<=2,3,4))))))) -> Not Calculated
C247: ="0:" -> 0: | D247: No change from baseline
C248: ="1:" -> 1: | D248: (Baseline + ↑ demand) / (Baseline - ↓ supply) ≤ 1.05
C249: ="2:" -> 2: | D249: (Baseline + ↑ demand) / (Baseline - ↓ supply) ≤ 1.5
C250: ="3:" -> 3: | D250: (Baseline + ↑ demand) / (Baseline - ↓ supply) ≤ 2
C251: ="4:" -> 4: | D251: (Baseline + ↑ demand) / (Baseline - ↓ supply) > 2 | N251: Use Quantititive Value
C252: OR, Estimate the Magnitude Qualitatively: | J252: No change from baseline (Score = 0) | N252: No change from baseline (Score = 0)
C253: Qualitative Magnitude Score: | J253: =IF(J252=N251,"N/A",IF(J252=N252,0,IF(J252=N253,1,IF(J252=N254,2,IF(J252=N255,3,IF(J252=N256,4,"N/A")))))) -> 0 | N253: ≤ 5% ↑ demand or ↓ supply (Score = 1)
C254: Duration of Impact: | J254: No impact (Score = 0) | N254: ≤ 50% ↑ demand or ↓ supply (Score = 2)
C255: Duration Score: | J255: =IF(J254=$B$973,$A$973,IF(J254=$B$974,$A$974,IF(J254=$B$975,$A$975,IF(J254=$B$976,$A$976,IF(J254=$B$977,$A$977,"Not Calculated"))))) -> 0 | N255: ≤ 100% ↑ demand or ↓ supply (Score = 3)
C256: Data Source / Explanation (Optional): | N256: >100% ↑ demand or ↓ supply (Score = 4)
C259: Mental Health Services Score: | J259: =IF(J253="N/A",IF(OR(J246="Not Calculated",J255="Not Calculated")=TRUE,"Not Calculated",AVERAGE(J246,J255)),AVERAGE(J253,J255)) -> 0
C261: Healthcare Service Impact Score: | J261: =IF(OR(J157="Not Calculated",J178="Not Calculated",J198="Not Calculated",J218="Not Calculated",J239="Not Calculated",J259="Not Calculated",)=TRUE,"Not Calculated",AVERAGE(J157,J178,J198,J218,J239,J259)) -> 0
G265: Inpatient Healthcare Facility Infrastructure Impact
... 551 more rows

Sheet Conventional Explosive
G2: Public Health Risk Assessment Tool
G3: Conventional Explosive
B5: Conventional explosives, such as trinitrotoluene (TNT) or other nitrate compounds, detonate very rapidly and release large amounts of energy capable of causing blast injuries as well as severe structural damage. Powerful explosions have the potential to inflict many different types of traumatic injuries on humans, but such injuries can vary depending on the type and amount of explosive agent, the location of the victims (inside or outside), and whether the blast occurs on air or water (Ciottone, 2006). Terrorists have used conventional explosives to damage and destroy financial, political, social, and religious institutions. Attacks often occur in public places such as busy city streets or public transportation.
B7: The following hazard impacts have been estimated using historical data, predictive models, estimations where necessary, and the information entered in the "Baseline Data" worksheets. The information below can be altered as needed to more accurately reflect hazard impacts in your jurisdiction. The impacts should reflect the worst-case reasonable scenario.
B9: Briefly describe the worst-case reasonable scenario of this hazard (the scenario to which the following impacts apply) here:
B10: The scenario used to predict the impacts of a conventional explosive incident is the Oklahoma City bombing. On April 19, 1995, a Ryder truck containing more than 4,800 pounds of ammonium nitrate fertilizer, nitromethane, and diesel fuel mixture detonated in front of the north side of the nine-story Alfred P. Murrah Federal Building in Oklahoma City. The blast destroyed or damaged 324 buildings within a sixteen-block radius, destroyed or burned 86 cars, and shattered glass in 258 nearby buildings. To estimate the impacts of a worst-case reasonable scenario in this region, the truck bomb is assumed to be detonated outside of the building with the largest daytime population in the region. The morbidity and mortality rates from the Alfred P. Murrah Federal Building are applied to the occupancy of that building.
G13: Probability
C15: Probability: | E15: The hazard is likely to occur at least once in the system lifecycle (100 years).
C17: Probability Score: | E17: =IF(E15=$C$966,$A$966,IF(E15=$C$967,$A$967,IF(E15=$C$968,$A$968,IF(E15=$C$969,$A$969,IF(E15=$C$970,$A$970,"Not Calculated"))))) -> 2
E18: =IF(E15=$C$966,$B$966,IF(E15=$C$967,$B$967,IF(E15=$C$968,$B$968,IF(E15=$C$969,$B$969,IF(E15=$C$970,$B$970,"Not Calculated"))))) -> Occasional
G22: Human Impact
C24: Mortality
C25: Baseline Mortality per Day: | J25: ='Baseline Health'!G11 -> 0
C26: Hazard-Related Increase in Mortality per Day: | J26: ='Community Characteristics'!$H$111*0.46 -> 0
C27: Magnitude Score: | J27: =IF(OR(J25=0,J25="Not Calculated")=TRUE,"Not Calculated",(IF(((J26+J25)/J25)<=1,0,IF(((J26+J25)/J25)<=1.05,1,IF(((J26+J25)/J25)<=1.5, 2,IF(((J26+J25)/J25)<=2,3,4)))))) -> Not Calculated
C28: ="0:" -> 0: | D28: No change from baseline
C29: ="1:" -> 1: | D29: ≤ 5% increase
C30: ="2:" -> 2: | D30: ≤ 50% increase
C31: ="3:" -> 3: | D31: ≤ 100% increase
C32: ="4:" -> 4: | D32: >100% increase | N32: Use Quantititive Value
C33: OR, Estimate the Magnitude Qualitatively: | J33: Use Quantititive Value | N33: No change from baseline (Score = 0)
C34: Qualitative Magnitude Score: | J34: =IF(J33=N32,"N/A",IF(J33=N33,0,IF(J33=N34,1,IF(J33=N35,2,IF(J33=N36,3,IF(J33=N37,4,"N/A")))))) -> N/A | N34: ≤ 5% increase (Score = 1)
C35: Duration of Impact: | J35: ≤ 1 day (Score = 1) | N35: ≤ 50% increase (Score = 2)
C36: Duration Score: | J36: =IF(J35=$B$973,$A$973,IF(J35=$B$974,$A$974,IF(J35=$B$975,$A$975,IF(J35=$B$976,$A$976,IF(J35=$B$977,$A$977,"Not Calculated"))))) -> 1 | N36: ≤ 100% increase (Score = 3)
C37: Data Source / Explanation (Optional): | N37: >100% increase (Score = 4)
C38: The fatality rate inside the Murrah Building was 46% (North et al., 1999).
C40: Mortality Score: | J40: =IF(J34="N/A",IF(OR(J27="Not Calculated",J36="Not Calculated")=TRUE,"Not Calculated",AVERAGE(J27,J36)),AVERAGE(J34,J36)) -> Not Calculated
C43: EMS Transports
C44: Baseline Transports per Day: | J44: ='Baseline Health'!G17 -> 0
C45: Hazard-Related Increase in Transports per Day: | J45: ='Community Characteristics'!$H$111*0.38 -> 0
C46: Magnitude Score: | J46: =IF(OR(J44=0,J44="Not Calculated")=TRUE,"Not Calculated",(IF(((J45+J44)/J44)<=1,0,IF(((J45+J44)/J44)<=1.05,1,IF(((J45+J44)/J44)<=1.5, 2,IF(((J45+J44)/J44)<=2,3,4)))))) -> Not Calculated
C47: ="0:" -> 0: | D47: No change from baseline
C48: ="1:" -> 1: | D48: ≤ 5% increase
C49: ="2:" -> 2: | D49: ≤ 50% increase
C50: ="3:" -> 3: | D50: ≤ 100% increase
C51: ="4:" -> 4: | D51: >100% increase | N51: Use Quantititive Value
C52: OR, Estimate the Magnitude Qualitatively: | J52: Use Quantititive Value | N52: No change from baseline (Score = 0)
C53: Qualitative Magnitude Score: | J53: =IF(J52=N51,"N/A",IF(J52=N52,0,IF(J52=N53,1,IF(J52=N54,2,IF(J52=N55,3,IF(J52=N56,4,"N/A")))))) -> N/A | N53: ≤ 5% increase (Score = 1)
C54: Duration of Impact: | J54: ≤ 1 day (Score = 1) | N54: ≤ 50% increase (Score = 2)
C55: Duration Score: | J55: =IF(J54=$B$973,$A$973,IF(J54=$B$974,$A$974,IF(J54=$B$975,$A$975,IF(J54=$B$976,$A$976,IF(J54=$B$977,$A$977,"Not Calculated"))))) -> 1 | N55: ≤ 100% increase (Score = 3)
C56: Data Source / Explanation (Optional): | N56: >100% increase (Score = 4)
C57: Within the first hour of the explosion, 139 patients (38% of the building's occupancy) were transported to area hospitals (Maningas, Robison, & Mallonee, 1997). Most victims arrived at local emergency departments by private vehicle; only the most severely injured were transported by ambulance (Teague, 2004).
C59: EMS Transports Score: | J59: =IF(J53="N/A",IF(OR(J46="Not Calculated",J55="Not Calculated")=TRUE,"Not Calculated",AVERAGE(J46,J55)),AVERAGE(J53,J55)) -> Not Calculated
C62: ED Visits
C63: Baseline ED Visits per Day: | J63: ='Baseline Health'!G23 -> 0
C64: Hazard-Related Increase in ED Visits per Day: | J64: ='Community Characteristics'!$H$111*1.51 -> 0
C65: Magnitude Score: | J65: =IF(OR(J63=0,J63="Not Calculated")=TRUE,"Not Calculated",(IF(((J64+J63)/J63)<=1,0,IF(((J64+J63)/J63)<=1.05,1,IF(((J64+J63)/J63)<=1.5, 2,IF(((J64+J63)/J63)<=2,3,4)))))) -> Not Calculated
C66: ="0:" -> 0: | D66: No change from baseline
C67: ="1:" -> 1: | D67: ≤ 5% increase
C68: ="2:" -> 2: | D68: ≤ 50% increase
C69: ="3:" -> 3: | D69: ≤ 100% increase
C70: ="4:" -> 4: | D70: >100% increase | N70: Use Quantititive Value
C71: OR, Estimate the Magnitude Qualitatively: | J71: Use Quantititive Value | N71: No change from baseline (Score = 0)
C72: Qualitative Magnitude Score: | J72: =IF(J71=N70,"N/A",IF(J71=N71,0,IF(J71=N72,1,IF(J71=N73,2,IF(J71=N74,3,IF(J71=N75,4,"N/A")))))) -> N/A | N72: ≤ 5% increase (Score = 1)
C73: Duration of Impact: | J73: ≤ 1 day (Score = 1) | N73: ≤ 50% increase (Score = 2)
C74: Duration Score: | J74: =IF(J73=$B$973,$A$973,IF(J73=$B$974,$A$974,IF(J73=$B$975,$A$975,IF(J73=$B$976,$A$976,IF(J73=$B$977,$A$977,"Not Calculated"))))) -> 1 | N74: ≤ 100% increase (Score = 3)
C75: Data Source / Explanation (Optional): | N75: >100% increase (Score = 4)
C76: After the Oklahoma City bombing, 18 hospitals in the metropoitan area treated 511 adults and 38 children (151% of the building's occupancy) (McLain, 2001).
C78: ED Visits Score: | J78: =IF(J72="N/A",IF(OR(J65="Not Calculated",J74="Not Calculated")=TRUE,"Not Calculated",AVERAGE(J65,J74)),AVERAGE(J72,J74)) -> Not Calculated
C81: Primary Care Office Visits
C82: Baseline Office Visits per Day: | J82: ='Baseline Health'!G29 -> 0
C83: Hazard-Related Increase in Office Visits per Day: | J83: ='Community Characteristics'!$H$111*0.64 -> 0
C84: Magnitude Score: | J84: =IF(OR(J82=0,J82="Not Calculated")=TRUE,"Not Calculated",(IF(((J83+J82)/J82)<=1,0,IF(((J83+J82)/J82)<=1.05,1,IF(((J83+J82)/J82)<=1.5, 2,IF(((J83+J82)/J82)<=2,3,4)))))) -> Not Calculated
C85: ="0:" -> 0: | D85: No change from baseline
C86: ="1:" -> 1: | D86: ≤ 5% increase
C87: ="2:" -> 2: | D87: ≤ 50% increase
C88: ="3:" -> 3: | D88: ≤ 100% increase
C89: ="4:" -> 4: | D89: >100% increase | N89: Use Quantititive Value
C90: OR, Estimate the Magnitude Qualitatively: | J90: Use Quantititive Value | N90: No change from baseline (Score = 0)
C91: Qualitative Magnitude Score: | J91: =IF(J90=N89,"N/A",IF(J90=N90,0,IF(J90=N91,1,IF(J90=N92,2,IF(J90=N93,3,IF(J90=N94,4,"N/A")))))) -> N/A | N91: ≤ 5% increase (Score = 1)
C92: Duration of Impact: | J92: ≤ 1 day (Score = 1) | N92: ≤ 50% increase (Score = 2)
C93: Duration Score: | J93: =IF(J92=$B$973,$A$973,IF(J92=$B$974,$A$974,IF(J92=$B$975,$A$975,IF(J92=$B$976,$A$976,IF(J92=$B$977,$A$977,"Not Calculated"))))) -> 1 | N93: ≤ 100% increase (Score = 3)
C94: Data Source / Explanation (Optional): | N94: >100% increase (Score = 4)
C95: After the Oklahoma City bombing, 233 persons were treated in physicians’ offices or clinics (64% of the building's occupancy) (McLain, 2001).
C97: Primary Care Office Visits Score: | J97: =IF(J91="N/A",IF(OR(J84="Not Calculated",J93="Not Calculated")=TRUE,"Not Calculated",AVERAGE(J84,J93)),AVERAGE(J91,J93)) -> Not Calculated
C100: Trauma Center Injuries
C101: Baseline Trauma Injuries per Day: | J101: ='Baseline Health'!G35 -> 0
C102: Hazard-Related Increase in Trauma Injuries per Day: | J102: ='Community Characteristics'!$H$111*0.23 -> 0
C103: Magnitude Score: | J103: =IF(OR(J101=0,J101="Not Calculated")=TRUE,"Not Calculated",(IF(((J102+J101)/J101)<=1,0,IF(((J102+J101)/J101)<=1.05,1,IF(((J102+J101)/J101)<=1.5, 2,IF(((J102+J101)/J101)<=2,3,4)))))) -> Not Calculated
C104: ="0:" -> 0: | D104: No change from baseline
C105: ="1:" -> 1: | D105: ≤ 5% increase
C106: ="2:" -> 2: | D106: ≤ 50% increase
C107: ="3:" -> 3: | D107: ≤ 100% increase
C108: ="4:" -> 4: | D108: >100% increase | N108: Use Quantititive Value
C109: OR, Estimate the Magnitude Qualitatively: | J109: Use Quantititive Value | N109: No change from baseline (Score = 0)
C110: Qualitative Magnitude Score: | J110: =IF(J109=N108,"N/A",IF(J109=N109,0,IF(J109=N110,1,IF(J109=N111,2,IF(J109=N112,3,IF(J109=N113,4,"N/A")))))) -> N/A | N110: ≤ 5% increase (Score = 1)
C111: Duration of Impact: | J111: ≤ 1 day (Score = 1) | N111: ≤ 50% increase (Score = 2)
C112: Duration Score: | J112: =IF(J111=$B$973,$A$973,IF(J111=$B$974,$A$974,IF(J111=$B$975,$A$975,IF(J111=$B$976,$A$976,IF(J111=$B$977,$A$977,"Not Calculated"))))) -> 1 | N112: ≤ 100% increase (Score = 3)
C113: Data Source / Explanation (Optional): | N113: >100% increase (Score = 4)
C114: After the Oklahoma City bombing, 83 people (23% of the building's occupants) had serious injuries requiring operative care (Rivara, Nathens, Jurkovich, & Maier, 2006).
C116: Trauma Center Injuries Score: | J116: =IF(J110="N/A",IF(OR(J103="Not Calculated",J112="Not Calculated")=TRUE,"Not Calculated",AVERAGE(J103,J112)),AVERAGE(J110,J112)) -> Not Calculated
C119: Mental Health Impact
C120: Mental Health Impact (Percent of population developing psychopathology and behavioral changes after the incident, including PTST, depression, anxiety, alcohol and substance abuse, domestic violence, and loss of social functions):
C123: Population displays distress with 25% - 49% psychopathology.
C125: Magnitude Score: | J125: =IF(C123=B987,A987,IF(C123=B988,A988,IF(C123=B989,A989,IF(C123=B990,A990,IF(C123=B991,A991,"Not Calculated"))))) -> 3
C126: Duration of Impact: | J126: > 2 weeks (Score = 4)
C127: Duration Score: | J127: =IF(J126=$B$973,$A$973,IF(J126=$B$974,$A$974,IF(J126=$B$975,$A$975,IF(J126=$B$976,$A$976,IF(J126=$B$977,$A$977,"Not Calculated"))))) -> 4
C128: Data Source / Explanation (Optional):
C129: 34% of survivors had PTSD within 4-8months after Oklahoma City Bombing (North et al., 1999). A total of 9,106 individuals receieved one-on-one counseling or group therapy, and 190,000 individuals received some kind of mental health services (McLain, 2001).
C131: Mental Health Score: | J131: =IF(OR(J125="Not Calculated",J127="Not Calculated")=TRUE,"Not Calculated",AVERAGE(J125,J127)) -> 3.5
C133: Human Impact Score: | J133: =IF(OR(J40="Not Calculated",J59="Not Calculated",J78="Not Calculated",J97="Not Calculated",J116="Not Calculated",J131="Not Calculated",)=TRUE,"Not Calculated",AVERAGE(J40,J59,J78,J97,J116,J131)) -> Not Calculated
G137: Healthcare Service Impact
C139: Outpatient Services
C140: Baseline PCPs: | J140: ='Baseline Health'!G45 -> 1
C141: Hazard-Related Loss of PCPs: | J141: 0
C142: Hazard-Related Increase in Demand for PCPs per Day: | J142: =J83/20 -> 0
D143: (PCP Demand = Increase in Office Visits / 20)
C144: Magnitude Score: | J144: =IF(OR(J140=0,J140="Not Calculated")=TRUE,"Not Calculated",IF((J140-J141)<=0,4,IF(((J140+J142)/(J140-J141))<=1,0,IF(((J140+J142)/(J140-J141))<=1.05,1,IF(((J140+J142)/(J140-J141))<=1.5, 2,IF(((J140+J142)/(J140-J141))<=2,3,4)))))) -> 0
C145: ="0:" -> 0: | D145: No change from baseline
C146: ="1:" -> 1: | D146: (Baseline + ↑ demand) / (Baseline - ↓ supply) ≤ 1.05
C147: ="2:" -> 2: | D147: (Baseline + ↑ demand) / (Baseline - ↓ supply) ≤ 1.5
C148: ="3:" -> 3: | D148: (Baseline + ↑ demand) / (Baseline - ↓ supply) ≤ 2
C149: ="4:" -> 4: | D149: (Baseline + ↑ demand) / (Baseline - ↓ supply) > 2 | N149: Use Quantititive Value
C150: OR, Estimate the Magnitude Qualitatively: | J150: Use Quantititive Value | N150: No change from baseline (Score = 0)
C151: Qualitative Magnitude Score: | J151: =IF(J150=N149,"N/A",IF(J150=N150,0,IF(J150=N151,1,IF(J150=N152,2,IF(J150=N153,3,IF(J150=N154,4,"N/A")))))) -> N/A | N151: ≤ 5% ↑ demand or ↓ supply (Score = 1)
C152: Duration of Impact: | J152: ≤ 1 week (Score = 2) | N152: ≤ 50% ↑ demand or ↓ supply (Score = 2)
C153: Duration Score: | J153: =IF(J152=$B$973,$A$973,IF(J152=$B$974,$A$974,IF(J152=$B$975,$A$975,IF(J152=$B$976,$A$976,IF(J152=$B$977,$A$977,"Not Calculated"))))) -> 2 | N153: ≤ 100% ↑ demand or ↓ supply (Score = 3)
C154: Data Source / Explanation (Optional): | N154: >100% ↑ demand or ↓ supply (Score = 4)
C157: Outpatient Services Score: | J157: =IF(J151="N/A",IF(OR(J144="Not Calculated",J153="Not Calculated")=TRUE,"Not Calculated",AVERAGE(J144,J153)),AVERAGE(J151,J153)) -> 1
C160: ED Services
C161: Baseline ED Beds: | J161: ='Baseline Health'!G51 -> 0
C162: Hazard-Related Loss of ED Beds: | J162: 0
C163: Hazard-Related Increase in Demand for ED Beds per Day: | J163: =(J64)/4.5 -> 0
D164: (ED Bed Demand per Day = Increase in ED Visits / 4.5)
C165: Magnitude Score: | J165: =IF(OR(J161=0,J161="Not Calculated")=TRUE,"Not Calculated",IF((J161-J162)<=0,4,IF(((J161+J163)/(J161-J162))<=1,0,IF(((J161+J163)/(J161-J162))<=1.05,1,IF(((J161+J163)/(J161-J162))<=1.5, 2,IF(((J161+J163)/(J161-J162))<=2,3,4)))))) -> Not Calculated
C166: ="0:" -> 0: | D166: No change from baseline
C167: ="1:" -> 1: | D167: (Baseline + ↑ demand) / (Baseline - ↓ supply) ≤ 1.05
C168: ="2:" -> 2: | D168: (Baseline + ↑ demand) / (Baseline - ↓ supply) ≤ 1.5
C169: ="3:" -> 3: | D169: (Baseline + ↑ demand) / (Baseline - ↓ supply) ≤ 2
C170: ="4:" -> 4: | D170: (Baseline + ↑ demand) / (Baseline - ↓ supply) > 2 | N170: Use Quantititive Value
C171: OR, Estimate the Magnitude Qualitatively: | J171: Use Quantititive Value | N171: No change from baseline (Score = 0)
C172: Qualitative Magnitude Score: | J172: =IF(J171=N170,"N/A",IF(J171=N171,0,IF(J171=N172,1,IF(J171=N173,2,IF(J171=N174,3,IF(J171=N175,4,"N/A")))))) -> N/A | N172: ≤ 5% ↑ demand or ↓ supply (Score = 1)
C173: Duration of Impact: | J173: ≤ 1 day (Score = 1) | N173: ≤ 50% ↑ demand or ↓ supply (Score = 2)
C174: Duration Score: | J174: =IF(J173=$B$973,$A$973,IF(J173=$B$974,$A$974,IF(J173=$B$975,$A$975,IF(J173=$B$976,$A$976,IF(J173=$B$977,$A$977,"Not Calculated"))))) -> 1 | N174: ≤ 100% ↑ demand or ↓ supply (Score = 3)
C175: Data Source / Explanation (Optional): | N175: >100% ↑ demand or ↓ supply (Score = 4)
C178: ED Services Score: | J178: =IF(J172="N/A",IF(OR(J165="Not Calculated",J174="Not Calculated")=TRUE,"Not Calculated",AVERAGE(J165,J174)),AVERAGE(J172,J174)) -> Not Calculated
C181: Hospital Beds
C182: Baseline Hospital Beds: | J182: ='Baseline Health'!G59 -> 0
C183: Hazard-Related Loss of Hospital Beds: | J183: 0
C184: Hazard-Related Increase in Demand for Hospital Beds: | J184: ='Community Characteristics'!$H$111*0.25 -> 0
C185: Magnitude Score: | J185: =IF(OR(J182=0,J182="Not Calculated")=TRUE,"Not Calculated",IF(J182-J183=0,4,IF(((J182+J184)/(J182-J183))<=1,0,IF(((J182+J184)/(J182-J183))<=1.05,1,IF(((J182+J184)/(J182-J183))<=1.5, 2,IF(((J182+J184)/(J182-J183))<=2,3,4)))))) -> Not Calculated
C186: ="0:" -> 0: | D186: No change from baseline
C187: ="1:" -> 1: | D187: (Baseline + ↑ demand) / (Baseline - ↓ supply) ≤ 1.05
C188: ="2:" -> 2: | D188: (Baseline + ↑ demand) / (Baseline - ↓ supply) ≤ 1.5
C189: ="3:" -> 3: | D189: (Baseline + ↑ demand) / (Baseline - ↓ supply) ≤ 2
C190: ="4:" -> 4: | D190: (Baseline + ↑ demand) / (Baseline - ↓ supply) > 2 | N190: Use Quantititive Value
C191: OR, Estimate the Magnitude Qualitatively: | J191: Use Quantititive Value | N191: No change from baseline (Score = 0)
C192: Qualitative Magnitude Score: | J192: =IF(J191=N190,"N/A",IF(J191=N191,0,IF(J191=N192,1,IF(J191=N193,2,IF(J191=N194,3,IF(J191=N195,4,"N/A")))))) -> N/A | N192: ≤ 5% ↑ demand or ↓ supply (Score = 1)
C193: Duration of Impact: | J193: > 2 weeks (Score = 4) | N193: ≤ 50% ↑ demand or ↓ supply (Score = 2)
C194: Duration Score: | J194: =IF(J193=$B$973,$A$973,IF(J193=$B$974,$A$974,IF(J193=$B$975,$A$975,IF(J193=$B$976,$A$976,IF(J193=$B$977,$A$977,"Not Calculated"))))) -> 4 | N194: ≤ 100% ↑ demand or ↓ supply (Score = 3)
C195: Data Source / Explanation (Optional): | N195: >100% ↑ demand or ↓ supply (Score = 4)
C196: After the Oklahoma City bombing, 90 patients (25% of the building's occupants) were admitted to hospitals (Maningas, Robison, & Mallonee, 1997). The last patient was discharged from the hospital five months after the bombing (McLain, 2001).
C198: Hospital Beds Score: | J198: =IF(J192="N/A",IF(OR(J185="Not Calculated",J194="Not Calculated")=TRUE,"Not Calculated",AVERAGE(J185,J194)),AVERAGE(J192,J194)) -> Not Calculated
C201: Ancillary Services
C202: Baseline Pharmacists: | J202: ='Baseline Health'!G65 -> 0
C203: Hazard-Related Loss of Pharmacists: | J203: 0
C204: Hazard-Related Increase in Demand for Pharmacists: | J204: 0
C205: Magnitude Score: | J205: =IF(OR(J202=0,J202="Not Calculated")=TRUE,"Not Calculated",IF(J202-J203=0,4,IF(((J202+J204)/(J202-J203))<=1,0,IF(((J202+J204)/(J202-J203))<=1.05,1,IF(((J202+J204)/(J202-J203))<=1.5, 2,IF(((J202+J204)/(J202-J203))<=2,3,4)))))) -> Not Calculated
C206: ="0:" -> 0: | D206: No change from baseline
C207: ="1:" -> 1: | D207: (Baseline + ↑ demand) / (Baseline - ↓ supply) ≤ 1.05
C208: ="2:" -> 2: | D208: (Baseline + ↑ demand) / (Baseline - ↓ supply) ≤ 1.5
C209: ="3:" -> 3: | D209: (Baseline + ↑ demand) / (Baseline - ↓ supply) ≤ 2
C210: ="4:" -> 4: | D210: (Baseline + ↑ demand) / (Baseline - ↓ supply) > 2 | N210: Use Quantititive Value
C211: OR, Estimate the Magnitude Qualitatively: | J211: Use Quantititive Value | N211: No change from baseline (Score = 0)
C212: Qualitative Magnitude Score: | J212: =IF(J211=N210,"N/A",IF(J211=N211,0,IF(J211=N212,1,IF(J211=N213,2,IF(J211=N214,3,IF(J211=N215,4,"N/A")))))) -> N/A | N212: ≤ 5% ↑ demand or ↓ supply (Score = 1)
C213: Duration of Impact: | J213: No impact (Score = 0) | N213: ≤ 50% ↑ demand or ↓ supply (Score = 2)
C214: Duration Score: | J214: =IF(J213=$B$973,$A$973,IF(J213=$B$974,$A$974,IF(J213=$B$975,$A$975,IF(J213=$B$976,$A$976,IF(J213=$B$977,$A$977,"Not Calculated"))))) -> 0 | N214: ≤ 100% ↑ demand or ↓ supply (Score = 3)
C215: Data Source / Explanation (Optional): | N215: >100% ↑ demand or ↓ supply (Score = 4)
C218: Ancillary Services Score: | J218: =IF(J212="N/A",IF(OR(J205="Not Calculated",J214="Not Calculated")=TRUE,"Not Calculated",AVERAGE(J205,J214)),AVERAGE(J212,J214)) -> Not Calculated
C221: Trauma Units
C222: Baseline Trauma Center Functioning ORs: | J222: ='Baseline Health'!G71 -> 0
C223: Hazard-Related Loss of Trauma Center Functioning ORs: | J223: 0
C224: Hazard-Related Increase in Demand for Trauma ORs: | J224: =J102 -> 0
D225: (Demand = Increase in Trauma Injuries per Day)
C226: Magnitude Score: | J226: =IF(OR(J222=0,J222="Not Calculated")=TRUE,"Not Calculated",IF(J222-J223=0,4,IF(((J222+J224)/(J222-J223))<=1,0,IF(((J222+J224)/(J222-J223))<=1.05,1,IF(((J222+J224)/(J222-J223))<=1.5, 2,IF(((J222+J224)/(J222-J223))<=2,3,4)))))) -> Not Calculated
C227: ="0:" -> 0: | D227: No change from baseline
C228: ="1:" -> 1: | D228: (Baseline + ↑ demand) / (Baseline - ↓ supply) ≤ 1.05
C229: ="2:" -> 2: | D229: (Baseline + ↑ demand) / (Baseline - ↓ supply) ≤ 1.5
C230: ="3:" -> 3: | D230: (Baseline + ↑ demand) / (Baseline - ↓ supply) ≤ 2
C231: ="4:" -> 4: | D231: (Baseline + ↑ demand) / (Baseline - ↓ supply) > 2 | N231: Use Quantititive Value
C232: OR, Estimate the Magnitude Qualitatively: | J232: Use Quantititive Value | N232: No change from baseline (Score = 0)
C233: Qualitative Magnitude Score: | J233: =IF(J232=N231,"N/A",IF(J232=N232,0,IF(J232=N233,1,IF(J232=N234,2,IF(J232=N235,3,IF(J232=N236,4,"N/A")))))) -> N/A | N233: ≤ 5% ↑ demand or ↓ supply (Score = 1)
C234: Duration of Impact: | J234: ≤ 1 day (Score = 1) | N234: ≤ 50% ↑ demand or ↓ supply (Score = 2)
C235: Duration Score: | J235: =IF(J234=$B$973,$A$973,IF(J234=$B$974,$A$974,IF(J234=$B$975,$A$975,IF(J234=$B$976,$A$976,IF(J234=$B$977,$A$977,"Not Calculated"))))) -> 1 | N235: ≤ 100% ↑ demand or ↓ supply (Score = 3)
C236: Data Source / Explanation (Optional): | N236: >100% ↑ demand or ↓ supply (Score = 4)
C239: Trauma Units Score: | J239: =IF(J233="N/A",IF(OR(J226="Not Calculated",J235="Not Calculated")=TRUE,"Not Calculated",AVERAGE(J226,J235)),AVERAGE(J233,J235)) -> Not Calculated
C242: Mental Health Services Services
C243: Baseline Mental Health Providers: | J243: ='Baseline Health'!G77 -> 0
C244: Hazard-Related Loss of Mental Health Providers: | J244: 0
C245: Hazard-Related Increase in Demand for Mental Health Providers: | J245: =('Community Characteristics'!$H$111*500)*40/250 -> 0
C246: Magnitude Score: | J246: =IF(OR(J243=0,J243="Not Calculated")=TRUE,"Not Calculated",IF(J243-J244=0,4,(IF(((J243+J245)/(J243-J244))<=1,0,IF(((J243+J245)/(J243-J244))<=1.05,1,IF(((J243+J245)/(J243-J244))<=1.5,2,IF(((J243+J245)/(J243-J244))<=2,3,4))))))) -> Not Calculated
C247: ="0:" -> 0: | D247: No change from baseline
C248: ="1:" -> 1: | D248: (Baseline + ↑ demand) / (Baseline - ↓ supply) ≤ 1.05
C249: ="2:" -> 2: | D249: (Baseline + ↑ demand) / (Baseline - ↓ supply) ≤ 1.5
C250: ="3:" -> 3: | D250: (Baseline + ↑ demand) / (Baseline - ↓ supply) ≤ 2
C251: ="4:" -> 4: | D251: (Baseline + ↑ demand) / (Baseline - ↓ supply) > 2 | N251: Use Quantititive Value
C252: OR, Estimate the Magnitude Qualitatively: | J252: Use Quantititive Value | N252: No change from baseline (Score = 0)
C253: Qualitative Magnitude Score: | J253: =IF(J252=N251,"N/A",IF(J252=N252,0,IF(J252=N253,1,IF(J252=N254,2,IF(J252=N255,3,IF(J252=N256,4,"N/A")))))) -> N/A | N253: ≤ 5% ↑ demand or ↓ supply (Score = 1)
C254: Duration of Impact: | J254: > 2 weeks (Score = 4) | N254: ≤ 50% ↑ demand or ↓ supply (Score = 2)
C255: Duration Score: | J255: =IF(J254=$B$973,$A$973,IF(J254=$B$974,$A$974,IF(J254=$B$975,$A$975,IF(J254=$B$976,$A$976,IF(J254=$B$977,$A$977,"Not Calculated"))))) -> 4 | N255: ≤ 100% ↑ demand or ↓ supply (Score = 3)
... 558 more rows

Sheet Cyber Terrorism
G2: Public Health Risk Assessment Tool
G3: Cyber Terrorism
B5: Cyber-attacks involve the use of technology to disable operational systems, including those with information, communication, and security functions. By remotely infiltrating a network, hackers can install viruses or other malware to infect computers, resulting in system malfunction. Additionally, hackers can redirect or change operational functions, including safety procedures. In terms of public health and health care, cyber-attacks have the potential to disrupt care delivery through a cascading effect of disabling emergency communication systems, electronic medical records, and computer supply systems.
B7: The following hazard impacts have been estimated using historical data, predictive models, estimations where necessary, and the information entered in the "Baseline Data" worksheets. The information below can be altered as needed to more accurately reflect hazard impacts in your jurisdiction. The impacts should reflect the worst-case reasonable scenario.
B9: Briefly describe the worst-case reasonable scenario of this hazard (the scenario to which the following impacts apply) here:
B10: The scenario used to predict the impacts of a cyber terrorism incident is the January 2005 botnet attack at Seattle's Northwest Hospital. Christopher Maxwell created a botnet that increased computer traffic as it scanned the system and interrupted normal hospital computer communications. Among other things, doors to the operating rooms did not open, pagers did not work, and computers in the intensive care unit shut down (Gage, 2007).
G13: Probability
C15: Probability: | E15: The hazard is not likely to occur in the system lifecycle (100 years), but it is possible.
C17: Probability Score: | E17: =IF(E15=$C$966,$A$966,IF(E15=$C$967,$A$967,IF(E15=$C$968,$A$968,IF(E15=$C$969,$A$969,IF(E15=$C$970,$A$970,"Not Calculated"))))) -> 1
E18: =IF(E15=$C$966,$B$966,IF(E15=$C$967,$B$967,IF(E15=$C$968,$B$968,IF(E15=$C$969,$B$969,IF(E15=$C$970,$B$970,"Not Calculated"))))) -> Remote
G22: Human Impact
C24: Mortality
C25: Baseline Mortality per Day: | J25: ='Baseline Health'!G11 -> 0
C26: Hazard-Related Increase in Mortality per Day: | J26: 0
C27: Magnitude Score: | J27: =IF(OR(J25=0,J25="Not Calculated")=TRUE,"Not Calculated",(IF(((J26+J25)/J25)<=1,0,IF(((J26+J25)/J25)<=1.05,1,IF(((J26+J25)/J25)<=1.5, 2,IF(((J26+J25)/J25)<=2,3,4)))))) -> Not Calculated
C28: ="0:" -> 0: | D28: No change from baseline
C29: ="1:" -> 1: | D29: ≤ 5% increase
C30: ="2:" -> 2: | D30: ≤ 50% increase
C31: ="3:" -> 3: | D31: ≤ 100% increase
C32: ="4:" -> 4: | D32: >100% increase | N32: Use Quantititive Value
C33: OR, Estimate the Magnitude Qualitatively: | J33: Use Quantititive Value | N33: No change from baseline (Score = 0)
C34: Qualitative Magnitude Score: | J34: =IF(J33=N32,"N/A",IF(J33=N33,0,IF(J33=N34,1,IF(J33=N35,2,IF(J33=N36,3,IF(J33=N37,4,"N/A")))))) -> N/A | N34: ≤ 5% increase (Score = 1)
C35: Duration of Impact: | J35: No impact (Score = 0) | N35: ≤ 50% increase (Score = 2)
C36: Duration Score: | J36: =IF(J35=$B$973,$A$973,IF(J35=$B$974,$A$974,IF(J35=$B$975,$A$975,IF(J35=$B$976,$A$976,IF(J35=$B$977,$A$977,"Not Calculated"))))) -> 0 | N36: ≤ 100% increase (Score = 3)
C37: Data Source / Explanation (Optional): | N37: >100% increase (Score = 4)
C40: Mortality Score: | J40: =IF(J34="N/A",IF(OR(J27="Not Calculated",J36="Not Calculated")=TRUE,"Not Calculated",AVERAGE(J27,J36)),AVERAGE(J34,J36)) -> Not Calculated
C43: EMS Transports
C44: Baseline Transports per Day: | J44: ='Baseline Health'!G17 -> 0
C45: Hazard-Related Increase in Transports per Day: | J45: 0
C46: Magnitude Score: | J46: =IF(OR(J44=0,J44="Not Calculated")=TRUE,"Not Calculated",(IF(((J45+J44)/J44)<=1,0,IF(((J45+J44)/J44)<=1.05,1,IF(((J45+J44)/J44)<=1.5, 2,IF(((J45+J44)/J44)<=2,3,4)))))) -> Not Calculated
C47: ="0:" -> 0: | D47: No change from baseline
C48: ="1:" -> 1: | D48: ≤ 5% increase
C49: ="2:" -> 2: | D49: ≤ 50% increase
C50: ="3:" -> 3: | D50: ≤ 100% increase
C51: ="4:" -> 4: | D51: >100% increase | N51: Use Quantititive Value
C52: OR, Estimate the Magnitude Qualitatively: | J52: Use Quantititive Value | N52: No change from baseline (Score = 0)
C53: Qualitative Magnitude Score: | J53: =IF(J52=N51,"N/A",IF(J52=N52,0,IF(J52=N53,1,IF(J52=N54,2,IF(J52=N55,3,IF(J52=N56,4,"N/A")))))) -> N/A | N53: ≤ 5% increase (Score = 1)
C54: Duration of Impact: | J54: No impact (Score = 0) | N54: ≤ 50% increase (Score = 2)
C55: Duration Score: | J55: =IF(J54=$B$973,$A$973,IF(J54=$B$974,$A$974,IF(J54=$B$975,$A$975,IF(J54=$B$976,$A$976,IF(J54=$B$977,$A$977,"Not Calculated"))))) -> 0 | N55: ≤ 100% increase (Score = 3)
C56: Data Source / Explanation (Optional): | N56: >100% increase (Score = 4)
C59: EMS Transports Score: | J59: =IF(J53="N/A",IF(OR(J46="Not Calculated",J55="Not Calculated")=TRUE,"Not Calculated",AVERAGE(J46,J55)),AVERAGE(J53,J55)) -> Not Calculated
C62: ED Visits
C63: Baseline ED Visits per Day: | J63: ='Baseline Health'!G23 -> 0
C64: Hazard-Related Increase in ED Visits per Day: | J64: 0
C65: Magnitude Score: | J65: =IF(OR(J63=0,J63="Not Calculated")=TRUE,"Not Calculated",(IF(((J64+J63)/J63)<=1,0,IF(((J64+J63)/J63)<=1.05,1,IF(((J64+J63)/J63)<=1.5, 2,IF(((J64+J63)/J63)<=2,3,4)))))) -> Not Calculated
C66: ="0:" -> 0: | D66: No change from baseline
C67: ="1:" -> 1: | D67: ≤ 5% increase
C68: ="2:" -> 2: | D68: ≤ 50% increase
C69: ="3:" -> 3: | D69: ≤ 100% increase
C70: ="4:" -> 4: | D70: >100% increase | N70: Use Quantititive Value
C71: OR, Estimate the Magnitude Qualitatively: | J71: Use Quantititive Value | N71: No change from baseline (Score = 0)
C72: Qualitative Magnitude Score: | J72: =IF(J71=N70,"N/A",IF(J71=N71,0,IF(J71=N72,1,IF(J71=N73,2,IF(J71=N74,3,IF(J71=N75,4,"N/A")))))) -> N/A | N72: ≤ 5% increase (Score = 1)
C73: Duration of Impact: | J73: No impact (Score = 0) | N73: ≤ 50% increase (Score = 2)
C74: Duration Score: | J74: =IF(J73=$B$973,$A$973,IF(J73=$B$974,$A$974,IF(J73=$B$975,$A$975,IF(J73=$B$976,$A$976,IF(J73=$B$977,$A$977,"Not Calculated"))))) -> 0 | N74: ≤ 100% increase (Score = 3)
C75: Data Source / Explanation (Optional): | N75: >100% increase (Score = 4)
C78: ED Visits Score: | J78: =IF(J72="N/A",IF(OR(J65="Not Calculated",J74="Not Calculated")=TRUE,"Not Calculated",AVERAGE(J65,J74)),AVERAGE(J72,J74)) -> Not Calculated
C81: Primary Care Office Visits
C82: Baseline Office Visits per Day: | J82: ='Baseline Health'!G29 -> 0
C83: Hazard-Related Increase in Office Visits per Day: | J83: 0
C84: Magnitude Score: | J84: =IF(OR(J82=0,J82="Not Calculated")=TRUE,"Not Calculated",(IF(((J83+J82)/J82)<=1,0,IF(((J83+J82)/J82)<=1.05,1,IF(((J83+J82)/J82)<=1.5, 2,IF(((J83+J82)/J82)<=2,3,4)))))) -> Not Calculated
C85: ="0:" -> 0: | D85: No change from baseline
C86: ="1:" -> 1: | D86: ≤ 5% increase
C87: ="2:" -> 2: | D87: ≤ 50% increase
C88: ="3:" -> 3: | D88: ≤ 100% increase
C89: ="4:" -> 4: | D89: >100% increase | N89: Use Quantititive Value
C90: OR, Estimate the Magnitude Qualitatively: | J90: Use Quantititive Value | N90: No change from baseline (Score = 0)
C91: Qualitative Magnitude Score: | J91: =IF(J90=N89,"N/A",IF(J90=N90,0,IF(J90=N91,1,IF(J90=N92,2,IF(J90=N93,3,IF(J90=N94,4,"N/A")))))) -> N/A | N91: ≤ 5% increase (Score = 1)
C92: Duration of Impact: | J92: No impact (Score = 0) | N92: ≤ 50% increase (Score = 2)
C93: Duration Score: | J93: =IF(J92=$B$973,$A$973,IF(J92=$B$974,$A$974,IF(J92=$B$975,$A$975,IF(J92=$B$976,$A$976,IF(J92=$B$977,$A$977,"Not Calculated"))))) -> 0 | N93: ≤ 100% increase (Score = 3)
C94: Data Source / Explanation (Optional): | N94: >100% increase (Score = 4)
C97: Primary Care Office Visits Score: | J97: =IF(J91="N/A",IF(OR(J84="Not Calculated",J93="Not Calculated")=TRUE,"Not Calculated",AVERAGE(J84,J93)),AVERAGE(J91,J93)) -> Not Calculated
C100: Trauma Center Injuries
C101: Baseline Trauma Injuries per Day: | J101: ='Baseline Health'!G35 -> 0
C102: Hazard-Related Increase in Trauma Injuries per Day: | J102: 0
C103: Magnitude Score: | J103: =IF(OR(J101=0,J101="Not Calculated")=TRUE,"Not Calculated",(IF(((J102+J101)/J101)<=1,0,IF(((J102+J101)/J101)<=1.05,1,IF(((J102+J101)/J101)<=1.5, 2,IF(((J102+J101)/J101)<=2,3,4)))))) -> Not Calculated
C104: ="0:" -> 0: | D104: No change from baseline
C105: ="1:" -> 1: | D105: ≤ 5% increase
C106: ="2:" -> 2: | D106: ≤ 50% increase
C107: ="3:" -> 3: | D107: ≤ 100% increase
C108: ="4:" -> 4: | D108: >100% increase | N108: Use Quantititive Value
C109: OR, Estimate the Magnitude Qualitatively: | J109: Use Quantititive Value | N109: No change from baseline (Score = 0)
C110: Qualitative Magnitude Score: | J110: =IF(J109=N108,"N/A",IF(J109=N109,0,IF(J109=N110,1,IF(J109=N111,2,IF(J109=N112,3,IF(J109=N113,4,"N/A")))))) -> N/A | N110: ≤ 5% increase (Score = 1)
C111: Duration of Impact: | J111: No impact (Score = 0) | N111: ≤ 50% increase (Score = 2)
C112: Duration Score: | J112: =IF(J111=$B$973,$A$973,IF(J111=$B$974,$A$974,IF(J111=$B$975,$A$975,IF(J111=$B$976,$A$976,IF(J111=$B$977,$A$977,"Not Calculated"))))) -> 0 | N112: ≤ 100% increase (Score = 3)
C113: Data Source / Explanation (Optional): | N113: >100% increase (Score = 4)
C116: Trauma Center Injuries Score: | J116: =IF(J110="N/A",IF(OR(J103="Not Calculated",J112="Not Calculated")=TRUE,"Not Calculated",AVERAGE(J103,J112)),AVERAGE(J110,J112)) -> Not Calculated
C119: Mental Health Impact
C120: Mental Health Impact (Percent of population developing psychopathology and behavioral changes after the incident, including PTST, depression, anxiety, alcohol and substance abuse, domestic violence, and loss of social functions):
C123: Population displays distress with <25% psychopathology.
C125: Magnitude Score: | J125: =IF(C123=B987,A987,IF(C123=B988,A988,IF(C123=B989,A989,IF(C123=B990,A990,IF(C123=B991,A991,"Not Calculated"))))) -> 2
C126: Duration of Impact: | J126: > 2 weeks (Score = 4)
C127: Duration Score: | J127: =IF(J126=$B$973,$A$973,IF(J126=$B$974,$A$974,IF(J126=$B$975,$A$975,IF(J126=$B$976,$A$976,IF(J126=$B$977,$A$977,"Not Calculated"))))) -> 4
C128: Data Source / Explanation (Optional):
C129: Concerns about privacy, security, and an impending physical attack are likely to be related to a mental health impact.
C131: Mental Health Score: | J131: =IF(OR(J125="Not Calculated",J127="Not Calculated")=TRUE,"Not Calculated",AVERAGE(J125,J127)) -> 3
C133: Human Impact Score: | J133: =IF(OR(J40="Not Calculated",J59="Not Calculated",J78="Not Calculated",J97="Not Calculated",J116="Not Calculated",J131="Not Calculated",)=TRUE,"Not Calculated",AVERAGE(J40,J59,J78,J97,J116,J131)) -> Not Calculated
G137: Healthcare Service Impact
C139: Outpatient Services
C140: Baseline PCPs: | J140: ='Baseline Health'!G45 -> 1
C141: Hazard-Related Loss of PCPs: | J141: 0
C142: Hazard-Related Increase in Demand for PCPs per Day: | J142: =J83/20 -> 0
D143: (PCP Demand = Increase in Office Visits / 20)
C144: Magnitude Score: | J144: =IF(OR(J140=0,J140="Not Calculated")=TRUE,"Not Calculated",IF((J140-J141)<=0,4,IF(((J140+J142)/(J140-J141))<=1,0,IF(((J140+J142)/(J140-J141))<=1.05,1,IF(((J140+J142)/(J140-J141))<=1.5, 2,IF(((J140+J142)/(J140-J141))<=2,3,4)))))) -> 0
C145: ="0:" -> 0: | D145: No change from baseline
C146: ="1:" -> 1: | D146: (Baseline + ↑ demand) / (Baseline - ↓ supply) ≤ 1.05
C147: ="2:" -> 2: | D147: (Baseline + ↑ demand) / (Baseline - ↓ supply) ≤ 1.5
C148: ="3:" -> 3: | D148: (Baseline + ↑ demand) / (Baseline - ↓ supply) ≤ 2
C149: ="4:" -> 4: | D149: (Baseline + ↑ demand) / (Baseline - ↓ supply) > 2 | N149: Use Quantititive Value
C150: OR, Estimate the Magnitude Qualitatively: | J150: Use Quantititive Value | N150: No change from baseline (Score = 0)
C151: Qualitative Magnitude Score: | J151: =IF(J150=N149,"N/A",IF(J150=N150,0,IF(J150=N151,1,IF(J150=N152,2,IF(J150=N153,3,IF(J150=N154,4,"N/A")))))) -> N/A | N151: ≤ 5% ↑ demand or ↓ supply (Score = 1)
C152: Duration of Impact: | J152: No impact (Score = 0) | N152: ≤ 50% ↑ demand or ↓ supply (Score = 2)
C153: Duration Score: | J153: =IF(J152=$B$973,$A$973,IF(J152=$B$974,$A$974,IF(J152=$B$975,$A$975,IF(J152=$B$976,$A$976,IF(J152=$B$977,$A$977,"Not Calculated"))))) -> 0 | N153: ≤ 100% ↑ demand or ↓ supply (Score = 3)
C154: Data Source / Explanation (Optional): | N154: >100% ↑ demand or ↓ supply (Score = 4)
C157: Outpatient Services Score: | J157: =IF(J151="N/A",IF(OR(J144="Not Calculated",J153="Not Calculated")=TRUE,"Not Calculated",AVERAGE(J144,J153)),AVERAGE(J151,J153)) -> 0
C160: ED Services
C161: Baseline ED Beds: | J161: ='Baseline Health'!G51 -> 0
C162: Hazard-Related Loss of ED Beds: | J162: =J161*0.2 -> 0
C163: Hazard-Related Increase in Demand for ED Beds per Day: | J163: =(J64)/4.5 -> 0
D164: (ED Bed Demand per Day = Increase in ED Visits / 4.5)
C165: Magnitude Score: | J165: =IF(OR(J161=0,J161="Not Calculated")=TRUE,"Not Calculated",IF((J161-J162)<=0,4,IF(((J161+J163)/(J161-J162))<=1,0,IF(((J161+J163)/(J161-J162))<=1.05,1,IF(((J161+J163)/(J161-J162))<=1.5, 2,IF(((J161+J163)/(J161-J162))<=2,3,4)))))) -> Not Calculated
C166: ="0:" -> 0: | D166: No change from baseline
C167: ="1:" -> 1: | D167: (Baseline + ↑ demand) / (Baseline - ↓ supply) ≤ 1.05
C168: ="2:" -> 2: | D168: (Baseline + ↑ demand) / (Baseline - ↓ supply) ≤ 1.5
C169: ="3:" -> 3: | D169: (Baseline + ↑ demand) / (Baseline - ↓ supply) ≤ 2
C170: ="4:" -> 4: | D170: (Baseline + ↑ demand) / (Baseline - ↓ supply) > 2 | N170: Use Quantititive Value
C171: OR, Estimate the Magnitude Qualitatively: | J171: Use Quantititive Value | N171: No change from baseline (Score = 0)
C172: Qualitative Magnitude Score: | J172: =IF(J171=N170,"N/A",IF(J171=N171,0,IF(J171=N172,1,IF(J171=N173,2,IF(J171=N174,3,IF(J171=N175,4,"N/A")))))) -> N/A | N172: ≤ 5% ↑ demand or ↓ supply (Score = 1)
C173: Duration of Impact: | J173: > 2 weeks (Score = 4) | N173: ≤ 50% ↑ demand or ↓ supply (Score = 2)
C174: Duration Score: | J174: =IF(J173=$B$973,$A$973,IF(J173=$B$974,$A$974,IF(J173=$B$975,$A$975,IF(J173=$B$976,$A$976,IF(J173=$B$977,$A$977,"Not Calculated"))))) -> 4 | N174: ≤ 100% ↑ demand or ↓ supply (Score = 3)
C175: Data Source / Explanation (Optional): | N175: >100% ↑ demand or ↓ supply (Score = 4)
C176: After a Seattle hospital botnet attack, the aftermath lasted for weeks. As computers stopped working, extra workers were brought in to help carry out tasks by hand. Lab results, for instance, were run from the lab to the hospital floor to the patient's bedside. To save time, elective procedures were postponed (Gage, 2007). The number of staffed beds is expected to decline due to the additional demands on staff.
C178: ED Services Score: | J178: =IF(J172="N/A",IF(OR(J165="Not Calculated",J174="Not Calculated")=TRUE,"Not Calculated",AVERAGE(J165,J174)),AVERAGE(J172,J174)) -> Not Calculated
C181: Hospital Beds
C182: Baseline Hospital Beds: | J182: ='Baseline Health'!G59 -> 0
C183: Hazard-Related Loss of Hospital Beds: | J183: 0
C184: Hazard-Related Increase in Demand for Hospital Beds: | J184: =J182*0.2 -> 0
C185: Magnitude Score: | J185: =IF(OR(J182=0,J182="Not Calculated")=TRUE,"Not Calculated",IF(J182-J183=0,4,IF(((J182+J184)/(J182-J183))<=1,0,IF(((J182+J184)/(J182-J183))<=1.05,1,IF(((J182+J184)/(J182-J183))<=1.5, 2,IF(((J182+J184)/(J182-J183))<=2,3,4)))))) -> Not Calculated
C186: ="0:" -> 0: | D186: No change from baseline
C187: ="1:" -> 1: | D187: (Baseline + ↑ demand) / (Baseline - ↓ supply) ≤ 1.05
C188: ="2:" -> 2: | D188: (Baseline + ↑ demand) / (Baseline - ↓ supply) ≤ 1.5
C189: ="3:" -> 3: | D189: (Baseline + ↑ demand) / (Baseline - ↓ supply) ≤ 2
C190: ="4:" -> 4: | D190: (Baseline + ↑ demand) / (Baseline - ↓ supply) > 2 | N190: Use Quantititive Value
C191: OR, Estimate the Magnitude Qualitatively: | J191: Use Quantititive Value | N191: No change from baseline (Score = 0)
C192: Qualitative Magnitude Score: | J192: =IF(J191=N190,"N/A",IF(J191=N191,0,IF(J191=N192,1,IF(J191=N193,2,IF(J191=N194,3,IF(J191=N195,4,"N/A")))))) -> N/A | N192: ≤ 5% ↑ demand or ↓ supply (Score = 1)
C193: Duration of Impact: | J193: > 2 weeks (Score = 4) | N193: ≤ 50% ↑ demand or ↓ supply (Score = 2)
C194: Duration Score: | J194: =IF(J193=$B$973,$A$973,IF(J193=$B$974,$A$974,IF(J193=$B$975,$A$975,IF(J193=$B$976,$A$976,IF(J193=$B$977,$A$977,"Not Calculated"))))) -> 4 | N194: ≤ 100% ↑ demand or ↓ supply (Score = 3)
C195: Data Source / Explanation (Optional): | N195: >100% ↑ demand or ↓ supply (Score = 4)
C196: After a Seattle hospital botnet attack, the aftermath lasted for weeks. As computers stopped working, extra workers were brought in to help carry out tasks by hand. Lab results, for instance, were run from the lab to the hospital floor to the patient's bedside. To save time, elective procedures were postponed (Gage, 2007). The number of staffed beds is expected to decline due to the additional demands on staff.
C198: Hospital Beds Score: | J198: =IF(J192="N/A",IF(OR(J185="Not Calculated",J194="Not Calculated")=TRUE,"Not Calculated",AVERAGE(J185,J194)),AVERAGE(J192,J194)) -> Not Calculated
C201: Ancillary Services
C202: Baseline Pharmacists: | J202: ='Baseline Health'!G65 -> 0
C203: Hazard-Related Loss of Pharmacists: | J203: 0
C204: Hazard-Related Increase in Demand for Pharmacists: | J204: =J202*0.2 -> 0
C205: Magnitude Score: | J205: =IF(OR(J202=0,J202="Not Calculated")=TRUE,"Not Calculated",IF(J202-J203=0,4,IF(((J202+J204)/(J202-J203))<=1,0,IF(((J202+J204)/(J202-J203))<=1.05,1,IF(((J202+J204)/(J202-J203))<=1.5, 2,IF(((J202+J204)/(J202-J203))<=2,3,4)))))) -> Not Calculated
C206: ="0:" -> 0: | D206: No change from baseline
C207: ="1:" -> 1: | D207: (Baseline + ↑ demand) / (Baseline - ↓ supply) ≤ 1.05
C208: ="2:" -> 2: | D208: (Baseline + ↑ demand) / (Baseline - ↓ supply) ≤ 1.5
C209: ="3:" -> 3: | D209: (Baseline + ↑ demand) / (Baseline - ↓ supply) ≤ 2
C210: ="4:" -> 4: | D210: (Baseline + ↑ demand) / (Baseline - ↓ supply) > 2 | N210: Use Quantititive Value
C211: OR, Estimate the Magnitude Qualitatively: | J211: Use Quantititive Value | N211: No change from baseline (Score = 0)
C212: Qualitative Magnitude Score: | J212: =IF(J211=N210,"N/A",IF(J211=N211,0,IF(J211=N212,1,IF(J211=N213,2,IF(J211=N214,3,IF(J211=N215,4,"N/A")))))) -> N/A | N212: ≤ 5% ↑ demand or ↓ supply (Score = 1)
C213: Duration of Impact: | J213: > 2 weeks (Score = 4) | N213: ≤ 50% ↑ demand or ↓ supply (Score = 2)
C214: Duration Score: | J214: =IF(J213=$B$973,$A$973,IF(J213=$B$974,$A$974,IF(J213=$B$975,$A$975,IF(J213=$B$976,$A$976,IF(J213=$B$977,$A$977,"Not Calculated"))))) -> 4 | N214: ≤ 100% ↑ demand or ↓ supply (Score = 3)
C215: Data Source / Explanation (Optional): | N215: >100% ↑ demand or ↓ supply (Score = 4)
C216: After a Seattle hospital botnet attack, the aftermath lasted for weeks. As computers stopped working, extra workers were brought in to help carry out tasks by hand. Lab results, for instance, were run from the lab to the hospital floor to the patient's bedside. To save time, elective procedures were postponed (Gage, 2007). The number of pharmacists needed is expected to increase due to the additional demands on staff.
C218: Ancillary Services Score: | J218: =IF(J212="N/A",IF(OR(J205="Not Calculated",J214="Not Calculated")=TRUE,"Not Calculated",AVERAGE(J205,J214)),AVERAGE(J212,J214)) -> Not Calculated
C221: Trauma Units
C222: Baseline Trauma Center Functioning ORs: | J222: ='Baseline Health'!G71 -> 0
C223: Hazard-Related Loss of Trauma Center Functioning ORs: | J223: 0
C224: Hazard-Related Increase in Demand for Trauma ORs: | J224: =J102 -> 0
D225: (Demand = Increase in Trauma Injuries per Day)
C226: Magnitude Score: | J226: =IF(OR(J222=0,J222="Not Calculated")=TRUE,"Not Calculated",IF(J222-J223=0,4,IF(((J222+J224)/(J222-J223))<=1,0,IF(((J222+J224)/(J222-J223))<=1.05,1,IF(((J222+J224)/(J222-J223))<=1.5, 2,IF(((J222+J224)/(J222-J223))<=2,3,4)))))) -> Not Calculated
C227: ="0:" -> 0: | D227: No change from baseline
C228: ="1:" -> 1: | D228: (Baseline + ↑ demand) / (Baseline - ↓ supply) ≤ 1.05
C229: ="2:" -> 2: | D229: (Baseline + ↑ demand) / (Baseline - ↓ supply) ≤ 1.5
C230: ="3:" -> 3: | D230: (Baseline + ↑ demand) / (Baseline - ↓ supply) ≤ 2
C231: ="4:" -> 4: | D231: (Baseline + ↑ demand) / (Baseline - ↓ supply) > 2 | N231: Use Quantititive Value
C232: OR, Estimate the Magnitude Qualitatively: | J232: Use Quantititive Value | N232: No change from baseline (Score = 0)
C233: Qualitative Magnitude Score: | J233: =IF(J232=N231,"N/A",IF(J232=N232,0,IF(J232=N233,1,IF(J232=N234,2,IF(J232=N235,3,IF(J232=N236,4,"N/A")))))) -> N/A | N233: ≤ 5% ↑ demand or ↓ supply (Score = 1)
C234: Duration of Impact: | J234: No impact (Score = 0) | N234: ≤ 50% ↑ demand or ↓ supply (Score = 2)
C235: Duration Score: | J235: =IF(J234=$B$973,$A$973,IF(J234=$B$974,$A$974,IF(J234=$B$975,$A$975,IF(J234=$B$976,$A$976,IF(J234=$B$977,$A$977,"Not Calculated"))))) -> 0 | N235: ≤ 100% ↑ demand or ↓ supply (Score = 3)
C236: Data Source / Explanation (Optional): | N236: >100% ↑ demand or ↓ supply (Score = 4)
C239: Trauma Units Score: | J239: =IF(J233="N/A",IF(OR(J226="Not Calculated",J235="Not Calculated")=TRUE,"Not Calculated",AVERAGE(J226,J235)),AVERAGE(J233,J235)) -> Not Calculated
C242: Mental Health Services Services
C243: Baseline Mental Health Providers: | J243: ='Baseline Health'!G77 -> 0
C244: Hazard-Related Loss of Mental Health Providers: | J244: 0
C245: Hazard-Related Increase in Demand for Mental Health Providers: | J245: =J243*0.1 -> 0
C246: Magnitude Score: | J246: =IF(OR(J243=0,J243="Not Calculated")=TRUE,"Not Calculated",IF(J243-J244=0,4,(IF(((J243+J245)/(J243-J244))<=1,0,IF(((J243+J245)/(J243-J244))<=1.05,1,IF(((J243+J245)/(J243-J244))<=1.5,2,IF(((J243+J245)/(J243-J244))<=2,3,4))))))) -> Not Calculated
C247: ="0:" -> 0: | D247: No change from baseline
C248: ="1:" -> 1: | D248: (Baseline + ↑ demand) / (Baseline - ↓ supply) ≤ 1.05
C249: ="2:" -> 2: | D249: (Baseline + ↑ demand) / (Baseline - ↓ supply) ≤ 1.5
C250: ="3:" -> 3: | D250: (Baseline + ↑ demand) / (Baseline - ↓ supply) ≤ 2
C251: ="4:" -> 4: | D251: (Baseline + ↑ demand) / (Baseline - ↓ supply) > 2 | N251: Use Quantititive Value
C252: OR, Estimate the Magnitude Qualitatively: | J252: Use Quantititive Value | N252: No change from baseline (Score = 0)
C253: Qualitative Magnitude Score: | J253: =IF(J252=N251,"N/A",IF(J252=N252,0,IF(J252=N253,1,IF(J252=N254,2,IF(J252=N255,3,IF(J252=N256,4,"N/A")))))) -> N/A | N253: ≤ 5% ↑ demand or ↓ supply (Score = 1)
C254: Duration of Impact: | J254: > 2 weeks (Score = 4) | N254: ≤ 50% ↑ demand or ↓ supply (Score = 2)
C255: Duration Score: | J255: =IF(J254=$B$973,$A$973,IF(J254=$B$974,$A$974,IF(J254=$B$975,$A$975,IF(J254=$B$976,$A$976,IF(J254=$B$977,$A$977,"Not Calculated"))))) -> 4 | N255: ≤ 100% ↑ demand or ↓ supply (Score = 3)
C256: Data Source / Explanation (Optional): | N256: >100% ↑ demand or ↓ supply (Score = 4)
C257: Additional mental health providers are expected to be required due to the mental health impact of the attack.
C259: Mental Health Services Score: | J259: =IF(J253="N/A",IF(OR(J246="Not Calculated",J255="Not Calculated")=TRUE,"Not Calculated",AVERAGE(J246,J255)),AVERAGE(J253,J255)) -> Not Calculated
... 544 more rows

Sheet Drought
G2: Public Health Risk Assessment Tool
G3: Drought
B5: Drought is a natural climatic condition which occurs in virtually all climates, the consequence of a natural reduction in the amount of precipitation experienced over a long period of time, usually a season or more in length. High temperatures, prolonged winds, and low relative humidity can exacerbate the severity of drought. This hazard is of particular concern in Pennsylvania due to the presence of farms as well as water-dependent industries and recreation areas across the Commonwealth. A prolonged drought could severely impact these sectors of the local economy, as well as residents who depend on wells for drinking water and other personal uses. (Baker, 2010).
B7: The following hazard impacts have been estimated using historical data, predictive models, estimations where necessary, and the information entered in the "Baseline Data" worksheets. The information below can be altered as needed to more accurately reflect hazard impacts in your jurisdiction. The impacts should reflect the worst-case reasonable scenario.
B9: Briefly describe the worst-case reasonable scenario of this hazard (the scenario to which the following impacts apply) here:
B10: The scenario used to predict the impacts of drought ocurred in 1963 and was the wost drought event on record in Pennsylvania. Precipitation statewide averaged below normal for 10 of 12 months. Drought emergency status led to widespread water use restrictions, and reservoirs dipped to record low levels. Corn, hay, and other agricultural products shriveled in parched field, causing economic losses. Governor William Scranton sought drought aid for Pennsylvania in the face of mounting agricultural losses, and the event became a presidentially declared disaster in September 1963 (Baker, 2010).
G13: Probability
C15: Probability: | E15: The hazard is likely to occur several times in the system lifecycle (100 years).
C17: Probability Score: | E17: =IF(E15=$C$966,$A$966,IF(E15=$C$967,$A$967,IF(E15=$C$968,$A$968,IF(E15=$C$969,$A$969,IF(E15=$C$970,$A$970,"Not Calculated"))))) -> 3
E18: =IF(E15=$C$966,$B$966,IF(E15=$C$967,$B$967,IF(E15=$C$968,$B$968,IF(E15=$C$969,$B$969,IF(E15=$C$970,$B$970,"Not Calculated"))))) -> Probable
G22: Human Impact
C24: Mortality
C25: Baseline Mortality per Day: | J25: ='Baseline Health'!G11 -> 0
C26: Hazard-Related Increase in Mortality per Day: | J26: 0
C27: Magnitude Score: | J27: =IF(OR(J25=0,J25="Not Calculated")=TRUE,"Not Calculated",(IF(((J26+J25)/J25)<=1,0,IF(((J26+J25)/J25)<=1.05,1,IF(((J26+J25)/J25)<=1.5, 2,IF(((J26+J25)/J25)<=2,3,4)))))) -> Not Calculated
C28: ="0:" -> 0: | D28: No change from baseline
C29: ="1:" -> 1: | D29: ≤ 5% increase
C30: ="2:" -> 2: | D30: ≤ 50% increase
C31: ="3:" -> 3: | D31: ≤ 100% increase
C32: ="4:" -> 4: | D32: >100% increase | N32: Use Quantititive Value
C33: OR, Estimate the Magnitude Qualitatively: | J33: Use Quantititive Value | N33: No change from baseline (Score = 0)
C34: Qualitative Magnitude Score: | J34: =IF(J33=N32,"N/A",IF(J33=N33,0,IF(J33=N34,1,IF(J33=N35,2,IF(J33=N36,3,IF(J33=N37,4,"N/A")))))) -> N/A | N34: ≤ 5% increase (Score = 1)
C35: Duration of Impact: | J35: No impact (Score = 0) | N35: ≤ 50% increase (Score = 2)
C36: Duration Score: | J36: =IF(J35=$B$973,$A$973,IF(J35=$B$974,$A$974,IF(J35=$B$975,$A$975,IF(J35=$B$976,$A$976,IF(J35=$B$977,$A$977,"Not Calculated"))))) -> 0 | N36: ≤ 100% increase (Score = 3)
C37: Data Source / Explanation (Optional): | N37: >100% increase (Score = 4)
C40: Mortality Score: | J40: =IF(J34="N/A",IF(OR(J27="Not Calculated",J36="Not Calculated")=TRUE,"Not Calculated",AVERAGE(J27,J36)),AVERAGE(J34,J36)) -> Not Calculated
C43: EMS Transports
C44: Baseline Transports per Day: | J44: ='Baseline Health'!G17 -> 0
C45: Hazard-Related Increase in Transports per Day: | J45: 0
C46: Magnitude Score: | J46: =IF(OR(J44=0,J44="Not Calculated")=TRUE,"Not Calculated",(IF(((J45+J44)/J44)<=1,0,IF(((J45+J44)/J44)<=1.05,1,IF(((J45+J44)/J44)<=1.5, 2,IF(((J45+J44)/J44)<=2,3,4)))))) -> Not Calculated
C47: ="0:" -> 0: | D47: No change from baseline
C48: ="1:" -> 1: | D48: ≤ 5% increase
C49: ="2:" -> 2: | D49: ≤ 50% increase
C50: ="3:" -> 3: | D50: ≤ 100% increase
C51: ="4:" -> 4: | D51: >100% increase | N51: Use Quantititive Value
C52: OR, Estimate the Magnitude Qualitatively: | J52: Use Quantititive Value | N52: No change from baseline (Score = 0)
C53: Qualitative Magnitude Score: | J53: =IF(J52=N51,"N/A",IF(J52=N52,0,IF(J52=N53,1,IF(J52=N54,2,IF(J52=N55,3,IF(J52=N56,4,"N/A")))))) -> N/A | N53: ≤ 5% increase (Score = 1)
C54: Duration of Impact: | J54: No impact (Score = 0) | N54: ≤ 50% increase (Score = 2)
C55: Duration Score: | J55: =IF(J54=$B$973,$A$973,IF(J54=$B$974,$A$974,IF(J54=$B$975,$A$975,IF(J54=$B$976,$A$976,IF(J54=$B$977,$A$977,"Not Calculated"))))) -> 0 | N55: ≤ 100% increase (Score = 3)
C56: Data Source / Explanation (Optional): | N56: >100% increase (Score = 4)
C59: EMS Transports Score: | J59: =IF(J53="N/A",IF(OR(J46="Not Calculated",J55="Not Calculated")=TRUE,"Not Calculated",AVERAGE(J46,J55)),AVERAGE(J53,J55)) -> Not Calculated
C62: ED Visits
C63: Baseline ED Visits per Day: | J63: ='Baseline Health'!G23 -> 0
C64: Hazard-Related Increase in ED Visits per Day: | J64: 0
C65: Magnitude Score: | J65: =IF(OR(J63=0,J63="Not Calculated")=TRUE,"Not Calculated",(IF(((J64+J63)/J63)<=1,0,IF(((J64+J63)/J63)<=1.05,1,IF(((J64+J63)/J63)<=1.5, 2,IF(((J64+J63)/J63)<=2,3,4)))))) -> Not Calculated
C66: ="0:" -> 0: | D66: No change from baseline
C67: ="1:" -> 1: | D67: ≤ 5% increase
C68: ="2:" -> 2: | D68: ≤ 50% increase
C69: ="3:" -> 3: | D69: ≤ 100% increase
C70: ="4:" -> 4: | D70: >100% increase | N70: Use Quantititive Value
C71: OR, Estimate the Magnitude Qualitatively: | J71: Use Quantititive Value | N71: No change from baseline (Score = 0)
C72: Qualitative Magnitude Score: | J72: =IF(J71=N70,"N/A",IF(J71=N71,0,IF(J71=N72,1,IF(J71=N73,2,IF(J71=N74,3,IF(J71=N75,4,"N/A")))))) -> N/A | N72: ≤ 5% increase (Score = 1)
C73: Duration of Impact: | J73: No impact (Score = 0) | N73: ≤ 50% increase (Score = 2)
C74: Duration Score: | J74: =IF(J73=$B$973,$A$973,IF(J73=$B$974,$A$974,IF(J73=$B$975,$A$975,IF(J73=$B$976,$A$976,IF(J73=$B$977,$A$977,"Not Calculated"))))) -> 0 | N74: ≤ 100% increase (Score = 3)
C75: Data Source / Explanation (Optional): | N75: >100% increase (Score = 4)
C78: ED Visits Score: | J78: =IF(J72="N/A",IF(OR(J65="Not Calculated",J74="Not Calculated")=TRUE,"Not Calculated",AVERAGE(J65,J74)),AVERAGE(J72,J74)) -> Not Calculated
C81: Primary Care Office Visits
C82: Baseline Office Visits per Day: | J82: ='Baseline Health'!G29 -> 0
C83: Hazard-Related Increase in Office Visits per Day: | J83: =J82*0.01 -> 0
C84: Magnitude Score: | J84: =IF(OR(J82=0,J82="Not Calculated")=TRUE,"Not Calculated",(IF(((J83+J82)/J82)<=1,0,IF(((J83+J82)/J82)<=1.05,1,IF(((J83+J82)/J82)<=1.5, 2,IF(((J83+J82)/J82)<=2,3,4)))))) -> Not Calculated
C85: ="0:" -> 0: | D85: No change from baseline
C86: ="1:" -> 1: | D86: ≤ 5% increase
C87: ="2:" -> 2: | D87: ≤ 50% increase
C88: ="3:" -> 3: | D88: ≤ 100% increase
C89: ="4:" -> 4: | D89: >100% increase | N89: Use Quantititive Value
C90: OR, Estimate the Magnitude Qualitatively: | J90: Use Quantititive Value | N90: No change from baseline (Score = 0)
C91: Qualitative Magnitude Score: | J91: =IF(J90=N89,"N/A",IF(J90=N90,0,IF(J90=N91,1,IF(J90=N92,2,IF(J90=N93,3,IF(J90=N94,4,"N/A")))))) -> N/A | N91: ≤ 5% increase (Score = 1)
C92: Duration of Impact: | J92: > 2 weeks (Score = 4) | N92: ≤ 50% increase (Score = 2)
C93: Duration Score: | J93: =IF(J92=$B$973,$A$973,IF(J92=$B$974,$A$974,IF(J92=$B$975,$A$975,IF(J92=$B$976,$A$976,IF(J92=$B$977,$A$977,"Not Calculated"))))) -> 4 | N93: ≤ 100% increase (Score = 3)
C94: Data Source / Explanation (Optional): | N94: >100% increase (Score = 4)
C95: Higher water temperatures usually accompanying drought and resultant low flow conditions can affect the susceptibility and spread of disease (bacterial, fungal, parasitic) in fish and shellfish (Centers for Disease Control and Prevention et al., 2010). Other drought-related factors affect air quality, including the presence of airborne toxins originating from freshwater blooms of cyanobacteria. These aerosolized toxins have been associated with lung irritation, which can lead to adverse health effects in certain populations. The dry, dusty conditions associated with drought also can lead to infectious disease, such as coccidioidomycosis (valley fever). People who engage in water-related recreational activities during drought may be at increased risk for waterborne disease caused by bacteria, protozoa, and other contaminants (e.g., chemicals and heavy metals) (Centers for Disease Control and Prevention et al., 2010).
C97: Primary Care Office Visits Score: | J97: =IF(J91="N/A",IF(OR(J84="Not Calculated",J93="Not Calculated")=TRUE,"Not Calculated",AVERAGE(J84,J93)),AVERAGE(J91,J93)) -> Not Calculated
C100: Trauma Center Injuries
C101: Baseline Trauma Injuries per Day: | J101: ='Baseline Health'!G35 -> 0
C102: Hazard-Related Increase in Trauma Injuries per Day: | J102: 0
C103: Magnitude Score: | J103: =IF(OR(J101=0,J101="Not Calculated")=TRUE,"Not Calculated",(IF(((J102+J101)/J101)<=1,0,IF(((J102+J101)/J101)<=1.05,1,IF(((J102+J101)/J101)<=1.5, 2,IF(((J102+J101)/J101)<=2,3,4)))))) -> Not Calculated
C104: ="0:" -> 0: | D104: No change from baseline
C105: ="1:" -> 1: | D105: ≤ 5% increase
C106: ="2:" -> 2: | D106: ≤ 50% increase
C107: ="3:" -> 3: | D107: ≤ 100% increase
C108: ="4:" -> 4: | D108: >100% increase | N108: Use Quantititive Value
C109: OR, Estimate the Magnitude Qualitatively: | J109: Use Quantititive Value | N109: No change from baseline (Score = 0)
C110: Qualitative Magnitude Score: | J110: =IF(J109=N108,"N/A",IF(J109=N109,0,IF(J109=N110,1,IF(J109=N111,2,IF(J109=N112,3,IF(J109=N113,4,"N/A")))))) -> N/A | N110: ≤ 5% increase (Score = 1)
C111: Duration of Impact: | J111: No impact (Score = 0) | N111: ≤ 50% increase (Score = 2)
C112: Duration Score: | J112: =IF(J111=$B$973,$A$973,IF(J111=$B$974,$A$974,IF(J111=$B$975,$A$975,IF(J111=$B$976,$A$976,IF(J111=$B$977,$A$977,"Not Calculated"))))) -> 0 | N112: ≤ 100% increase (Score = 3)
C113: Data Source / Explanation (Optional): | N113: >100% increase (Score = 4)
C116: Trauma Center Injuries Score: | J116: =IF(J110="N/A",IF(OR(J103="Not Calculated",J112="Not Calculated")=TRUE,"Not Calculated",AVERAGE(J103,J112)),AVERAGE(J110,J112)) -> Not Calculated
C119: Mental Health Impact
C120: Mental Health Impact (Percent of population developing psychopathology and behavioral changes after the incident, including PTST, depression, anxiety, alcohol and substance abuse, domestic violence, and loss of social functions):
C123: Population displays distress with <25% psychopathology.
C125: Magnitude Score: | J125: =IF(C123=B987,A987,IF(C123=B988,A988,IF(C123=B989,A989,IF(C123=B990,A990,IF(C123=B991,A991,"Not Calculated"))))) -> 2
C126: Duration of Impact: | J126: > 2 weeks (Score = 4)
C127: Duration Score: | J127: =IF(J126=$B$973,$A$973,IF(J126=$B$974,$A$974,IF(J126=$B$975,$A$975,IF(J126=$B$976,$A$976,IF(J126=$B$977,$A$977,"Not Calculated"))))) -> 4
C128: Data Source / Explanation (Optional):
C129: The financial implications of drought have been shown to have an adverse effect on persons who rely on rainfall and water for their economic survival, including farmers and other agriculture-related professionals, ranchers, landscapers, horticulturalists, nursery and garden supply owners and employees, and recreational facility operators. Financial-related stress and worry can cause depression, anxiety, and a host of other mental and behavioral health conditions and disorders. During the 1980s, male farmers and ranchers in the states of Wisconsin, Minnesota, North Dakota, South Dakota, and Montana demonstrated rates of suicide that were twice the national rate. It is believed that drought was a major contributor to this outcome (Centers for Disease Control and Prevention et al., 2010).
C131: Mental Health Score: | J131: =IF(OR(J125="Not Calculated",J127="Not Calculated")=TRUE,"Not Calculated",AVERAGE(J125,J127)) -> 3
C133: Human Impact Score: | J133: =IF(OR(J40="Not Calculated",J59="Not Calculated",J78="Not Calculated",J97="Not Calculated",J116="Not Calculated",J131="Not Calculated",)=TRUE,"Not Calculated",AVERAGE(J40,J59,J78,J97,J116,J131)) -> Not Calculated
G137: Healthcare Service Impact
C139: Outpatient Services
C140: Baseline PCPs: | J140: ='Baseline Health'!G45 -> 1
C141: Hazard-Related Loss of PCPs: | J141: 0
C142: Hazard-Related Increase in Demand for PCPs per Day: | J142: =J83/20 -> 0
D143: (PCP Demand = Increase in Office Visits / 20)
C144: Magnitude Score: | J144: =IF(OR(J140=0,J140="Not Calculated")=TRUE,"Not Calculated",IF((J140-J141)<=0,4,IF(((J140+J142)/(J140-J141))<=1,0,IF(((J140+J142)/(J140-J141))<=1.05,1,IF(((J140+J142)/(J140-J141))<=1.5, 2,IF(((J140+J142)/(J140-J141))<=2,3,4)))))) -> 0
C145: ="0:" -> 0: | D145: No change from baseline
C146: ="1:" -> 1: | D146: (Baseline + ↑ demand) / (Baseline - ↓ supply) ≤ 1.05
C147: ="2:" -> 2: | D147: (Baseline + ↑ demand) / (Baseline - ↓ supply) ≤ 1.5
C148: ="3:" -> 3: | D148: (Baseline + ↑ demand) / (Baseline - ↓ supply) ≤ 2
C149: ="4:" -> 4: | D149: (Baseline + ↑ demand) / (Baseline - ↓ supply) > 2 | N149: Use Quantititive Value
C150: OR, Estimate the Magnitude Qualitatively: | J150: Use Quantititive Value | N150: No change from baseline (Score = 0)
C151: Qualitative Magnitude Score: | J151: =IF(J150=N149,"N/A",IF(J150=N150,0,IF(J150=N151,1,IF(J150=N152,2,IF(J150=N153,3,IF(J150=N154,4,"N/A")))))) -> N/A | N151: ≤ 5% ↑ demand or ↓ supply (Score = 1)
C152: Duration of Impact: | J152: > 2 weeks (Score = 4) | N152: ≤ 50% ↑ demand or ↓ supply (Score = 2)
C153: Duration Score: | J153: =IF(J152=$B$973,$A$973,IF(J152=$B$974,$A$974,IF(J152=$B$975,$A$975,IF(J152=$B$976,$A$976,IF(J152=$B$977,$A$977,"Not Calculated"))))) -> 4 | N153: ≤ 100% ↑ demand or ↓ supply (Score = 3)
C154: Data Source / Explanation (Optional): | N154: >100% ↑ demand or ↓ supply (Score = 4)
C157: Outpatient Services Score: | J157: =IF(J151="N/A",IF(OR(J144="Not Calculated",J153="Not Calculated")=TRUE,"Not Calculated",AVERAGE(J144,J153)),AVERAGE(J151,J153)) -> 2
C160: ED Services
C161: Baseline ED Beds: | J161: ='Baseline Health'!G51 -> 0
C162: Hazard-Related Loss of ED Beds: | J162: 0
C163: Hazard-Related Increase in Demand for ED Beds per Day: | J163: =(J64)/4.5 -> 0
D164: (ED Bed Demand per Day = Increase in ED Visits / 4.5)
C165: Magnitude Score: | J165: =IF(OR(J161=0,J161="Not Calculated")=TRUE,"Not Calculated",IF((J161-J162)<=0,4,IF(((J161+J163)/(J161-J162))<=1,0,IF(((J161+J163)/(J161-J162))<=1.05,1,IF(((J161+J163)/(J161-J162))<=1.5, 2,IF(((J161+J163)/(J161-J162))<=2,3,4)))))) -> Not Calculated
C166: ="0:" -> 0: | D166: No change from baseline
C167: ="1:" -> 1: | D167: (Baseline + ↑ demand) / (Baseline - ↓ supply) ≤ 1.05
C168: ="2:" -> 2: | D168: (Baseline + ↑ demand) / (Baseline - ↓ supply) ≤ 1.5
C169: ="3:" -> 3: | D169: (Baseline + ↑ demand) / (Baseline - ↓ supply) ≤ 2
C170: ="4:" -> 4: | D170: (Baseline + ↑ demand) / (Baseline - ↓ supply) > 2 | N170: Use Quantititive Value
C171: OR, Estimate the Magnitude Qualitatively: | J171: Use Quantititive Value | N171: No change from baseline (Score = 0)
C172: Qualitative Magnitude Score: | J172: =IF(J171=N170,"N/A",IF(J171=N171,0,IF(J171=N172,1,IF(J171=N173,2,IF(J171=N174,3,IF(J171=N175,4,"N/A")))))) -> N/A | N172: ≤ 5% ↑ demand or ↓ supply (Score = 1)
C173: Duration of Impact: | J173: No impact (Score = 0) | N173: ≤ 50% ↑ demand or ↓ supply (Score = 2)
C174: Duration Score: | J174: =IF(J173=$B$973,$A$973,IF(J173=$B$974,$A$974,IF(J173=$B$975,$A$975,IF(J173=$B$976,$A$976,IF(J173=$B$977,$A$977,"Not Calculated"))))) -> 0 | N174: ≤ 100% ↑ demand or ↓ supply (Score = 3)
C175: Data Source / Explanation (Optional): | N175: >100% ↑ demand or ↓ supply (Score = 4)
C178: ED Services Score: | J178: =IF(J172="N/A",IF(OR(J165="Not Calculated",J174="Not Calculated")=TRUE,"Not Calculated",AVERAGE(J165,J174)),AVERAGE(J172,J174)) -> Not Calculated
C181: Hospital Beds
C182: Baseline Hospital Beds: | J182: ='Baseline Health'!G59 -> 0
C183: Hazard-Related Loss of Hospital Beds: | J183: 0
C184: Hazard-Related Increase in Demand for Hospital Beds: | J184: 0
C185: Magnitude Score: | J185: =IF(OR(J182=0,J182="Not Calculated")=TRUE,"Not Calculated",IF(J182-J183=0,4,IF(((J182+J184)/(J182-J183))<=1,0,IF(((J182+J184)/(J182-J183))<=1.05,1,IF(((J182+J184)/(J182-J183))<=1.5, 2,IF(((J182+J184)/(J182-J183))<=2,3,4)))))) -> Not Calculated
C186: ="0:" -> 0: | D186: No change from baseline
C187: ="1:" -> 1: | D187: (Baseline + ↑ demand) / (Baseline - ↓ supply) ≤ 1.05
C188: ="2:" -> 2: | D188: (Baseline + ↑ demand) / (Baseline - ↓ supply) ≤ 1.5
C189: ="3:" -> 3: | D189: (Baseline + ↑ demand) / (Baseline - ↓ supply) ≤ 2
C190: ="4:" -> 4: | D190: (Baseline + ↑ demand) / (Baseline - ↓ supply) > 2 | N190: Use Quantititive Value
C191: OR, Estimate the Magnitude Qualitatively: | J191: Use Quantititive Value | N191: No change from baseline (Score = 0)
C192: Qualitative Magnitude Score: | J192: =IF(J191=N190,"N/A",IF(J191=N191,0,IF(J191=N192,1,IF(J191=N193,2,IF(J191=N194,3,IF(J191=N195,4,"N/A")))))) -> N/A | N192: ≤ 5% ↑ demand or ↓ supply (Score = 1)
C193: Duration of Impact: | J193: No impact (Score = 0) | N193: ≤ 50% ↑ demand or ↓ supply (Score = 2)
C194: Duration Score: | J194: =IF(J193=$B$973,$A$973,IF(J193=$B$974,$A$974,IF(J193=$B$975,$A$975,IF(J193=$B$976,$A$976,IF(J193=$B$977,$A$977,"Not Calculated"))))) -> 0 | N194: ≤ 100% ↑ demand or ↓ supply (Score = 3)
C195: Data Source / Explanation (Optional): | N195: >100% ↑ demand or ↓ supply (Score = 4)
C198: Hospital Beds Score: | J198: =IF(J192="N/A",IF(OR(J185="Not Calculated",J194="Not Calculated")=TRUE,"Not Calculated",AVERAGE(J185,J194)),AVERAGE(J192,J194)) -> Not Calculated
C201: Ancillary Services
C202: Baseline Pharmacists: | J202: ='Baseline Health'!G65 -> 0
C203: Hazard-Related Loss of Pharmacists: | J203: 0
C204: Hazard-Related Increase in Demand for Pharmacists: | J204: 0
C205: Magnitude Score: | J205: =IF(OR(J202=0,J202="Not Calculated")=TRUE,"Not Calculated",IF(J202-J203=0,4,IF(((J202+J204)/(J202-J203))<=1,0,IF(((J202+J204)/(J202-J203))<=1.05,1,IF(((J202+J204)/(J202-J203))<=1.5, 2,IF(((J202+J204)/(J202-J203))<=2,3,4)))))) -> Not Calculated
C206: ="0:" -> 0: | D206: No change from baseline
C207: ="1:" -> 1: | D207: (Baseline + ↑ demand) / (Baseline - ↓ supply) ≤ 1.05
C208: ="2:" -> 2: | D208: (Baseline + ↑ demand) / (Baseline - ↓ supply) ≤ 1.5
C209: ="3:" -> 3: | D209: (Baseline + ↑ demand) / (Baseline - ↓ supply) ≤ 2
C210: ="4:" -> 4: | D210: (Baseline + ↑ demand) / (Baseline - ↓ supply) > 2 | N210: Use Quantititive Value
C211: OR, Estimate the Magnitude Qualitatively: | J211: Use Quantititive Value | N211: No change from baseline (Score = 0)
C212: Qualitative Magnitude Score: | J212: =IF(J211=N210,"N/A",IF(J211=N211,0,IF(J211=N212,1,IF(J211=N213,2,IF(J211=N214,3,IF(J211=N215,4,"N/A")))))) -> N/A | N212: ≤ 5% ↑ demand or ↓ supply (Score = 1)
C213: Duration of Impact: | J213: No impact (Score = 0) | N213: ≤ 50% ↑ demand or ↓ supply (Score = 2)
C214: Duration Score: | J214: =IF(J213=$B$973,$A$973,IF(J213=$B$974,$A$974,IF(J213=$B$975,$A$975,IF(J213=$B$976,$A$976,IF(J213=$B$977,$A$977,"Not Calculated"))))) -> 0 | N214: ≤ 100% ↑ demand or ↓ supply (Score = 3)
C215: Data Source / Explanation (Optional): | N215: >100% ↑ demand or ↓ supply (Score = 4)
C218: Ancillary Services Score: | J218: =IF(J212="N/A",IF(OR(J205="Not Calculated",J214="Not Calculated")=TRUE,"Not Calculated",AVERAGE(J205,J214)),AVERAGE(J212,J214)) -> Not Calculated
C221: Trauma Units
C222: Baseline Trauma Center Functioning ORs: | J222: ='Baseline Health'!G71 -> 0
C223: Hazard-Related Loss of Trauma Center Functioning ORs: | J223: 0
C224: Hazard-Related Increase in Demand for Trauma ORs: | J224: =J102 -> 0
D225: (Demand = Increase in Trauma Injuries per Day)
C226: Magnitude Score: | J226: =IF(OR(J222=0,J222="Not Calculated")=TRUE,"Not Calculated",IF(J222-J223=0,4,IF(((J222+J224)/(J222-J223))<=1,0,IF(((J222+J224)/(J222-J223))<=1.05,1,IF(((J222+J224)/(J222-J223))<=1.5, 2,IF(((J222+J224)/(J222-J223))<=2,3,4)))))) -> Not Calculated
C227: ="0:" -> 0: | D227: No change from baseline
C228: ="1:" -> 1: | D228: (Baseline + ↑ demand) / (Baseline - ↓ supply) ≤ 1.05
C229: ="2:" -> 2: | D229: (Baseline + ↑ demand) / (Baseline - ↓ supply) ≤ 1.5
C230: ="3:" -> 3: | D230: (Baseline + ↑ demand) / (Baseline - ↓ supply) ≤ 2
C231: ="4:" -> 4: | D231: (Baseline + ↑ demand) / (Baseline - ↓ supply) > 2 | N231: Use Quantititive Value
C232: OR, Estimate the Magnitude Qualitatively: | J232: Use Quantititive Value | N232: No change from baseline (Score = 0)
C233: Qualitative Magnitude Score: | J233: =IF(J232=N231,"N/A",IF(J232=N232,0,IF(J232=N233,1,IF(J232=N234,2,IF(J232=N235,3,IF(J232=N236,4,"N/A")))))) -> N/A | N233: ≤ 5% ↑ demand or ↓ supply (Score = 1)
C234: Duration of Impact: | J234: No impact (Score = 0) | N234: ≤ 50% ↑ demand or ↓ supply (Score = 2)
C235: Duration Score: | J235: =IF(J234=$B$973,$A$973,IF(J234=$B$974,$A$974,IF(J234=$B$975,$A$975,IF(J234=$B$976,$A$976,IF(J234=$B$977,$A$977,"Not Calculated"))))) -> 0 | N235: ≤ 100% ↑ demand or ↓ supply (Score = 3)
C236: Data Source / Explanation (Optional): | N236: >100% ↑ demand or ↓ supply (Score = 4)
C239: Trauma Units Score: | J239: =IF(J233="N/A",IF(OR(J226="Not Calculated",J235="Not Calculated")=TRUE,"Not Calculated",AVERAGE(J226,J235)),AVERAGE(J233,J235)) -> Not Calculated
C242: Mental Health Services Services
C243: Baseline Mental Health Providers: | J243: ='Baseline Health'!G77 -> 0
C244: Hazard-Related Loss of Mental Health Providers: | J244: 0
C245: Hazard-Related Increase in Demand for Mental Health Providers: | J245: =J243*0.01 -> 0
C246: Magnitude Score: | J246: =IF(OR(J243=0,J243="Not Calculated")=TRUE,"Not Calculated",IF(J243-J244=0,4,(IF(((J243+J245)/(J243-J244))<=1,0,IF(((J243+J245)/(J243-J244))<=1.05,1,IF(((J243+J245)/(J243-J244))<=1.5,2,IF(((J243+J245)/(J243-J244))<=2,3,4))))))) -> Not Calculated
C247: ="0:" -> 0: | D247: No change from baseline
C248: ="1:" -> 1: | D248: (Baseline + ↑ demand) / (Baseline - ↓ supply) ≤ 1.05
C249: ="2:" -> 2: | D249: (Baseline + ↑ demand) / (Baseline - ↓ supply) ≤ 1.5
C250: ="3:" -> 3: | D250: (Baseline + ↑ demand) / (Baseline - ↓ supply) ≤ 2
C251: ="4:" -> 4: | D251: (Baseline + ↑ demand) / (Baseline - ↓ supply) > 2 | N251: Use Quantititive Value
C252: OR, Estimate the Magnitude Qualitatively: | J252: Use Quantititive Value | N252: No change from baseline (Score = 0)
C253: Qualitative Magnitude Score: | J253: =IF(J252=N251,"N/A",IF(J252=N252,0,IF(J252=N253,1,IF(J252=N254,2,IF(J252=N255,3,IF(J252=N256,4,"N/A")))))) -> N/A | N253: ≤ 5% ↑ demand or ↓ supply (Score = 1)
C254: Duration of Impact: | J254: > 2 weeks (Score = 4) | N254: ≤ 50% ↑ demand or ↓ supply (Score = 2)
C255: Duration Score: | J255: =IF(J254=$B$973,$A$973,IF(J254=$B$974,$A$974,IF(J254=$B$975,$A$975,IF(J254=$B$976,$A$976,IF(J254=$B$977,$A$977,"Not Calculated"))))) -> 4 | N255: ≤ 100% ↑ demand or ↓ supply (Score = 3)
C256: Data Source / Explanation (Optional): | N256: >100% ↑ demand or ↓ supply (Score = 4)
C257: The demand for mental health services is expected to increase due to the adverse psychological consequences of drought.
C259: Mental Health Services Score: | J259: =IF(J253="N/A",IF(OR(J246="Not Calculated",J255="Not Calculated")=TRUE,"Not Calculated",AVERAGE(J246,J255)),AVERAGE(J253,J255)) -> Not Calculated
C261: Healthcare Service Impact Score: | J261: =IF(OR(J157="Not Calculated",J178="Not Calculated",J198="Not Calculated",J218="Not Calculated",J239="Not Calculated",J259="Not Calculated",)=TRUE,"Not Calculated",AVERAGE(J157,J178,J198,J218,J239,J259)) -> Not Calculated
G265: Inpatient Healthcare Facility Infrastructure Impact
... 546 more rows

Sheet Earthquake
G2: Public Health Risk Assessment Tool
G3: Earthquake
B5: An earthquake is the motion or trembling of the ground produced by sudden displacement of rock usually within the upper 10-20 miles of the Earth's crust. Earthquakes result from crustal strain, volcanism, landslides, or the collapse of underground caverns. Earthquakes can affect hundreds of thousands of square miles, cause damage to property measured in the tens of billions of dollars, result in loss of life and injury to hundreds of thousands of persons, and disrupt the social and economic functioning of the affected area. Most property damage and earthquake-related deaths are caused by the failure and collapse of structures due to ground shaking which is dependent upon amplitude and duration of the earthquake. (FEMA, 1997).
B7: The following hazard impacts have been estimated using historical data, predictive models, estimations where necessary, and the information entered in the "Baseline Data" worksheets. The information below can be altered as needed to more accurately reflect hazard impacts in your jurisdiction. The impacts should reflect the worst-case reasonable scenario.
B9: Briefly describe the worst-case reasonable scenario of this hazard (the scenario to which the following impacts apply) here:
B10: The scenario used to predict the impacts of an earthquate is a 7.6 magnitude earthquake in the New Madrid Seismic Zone (NMSZ) which is comprised of eight states: Alabama, Arkansas, Illinois, Indiana, Kentucky, Mississippi, Missouri and Tennessee. The State of Missouri will incur substantial damage and loss. Well over 80,000 buildings are damaged leaving more than 120,000 people displaced and causing over 15,000 casualties. Total direct economic losses in Missouri reach nearly $40 billion.
G13: Probability
C15: Probability: | E15: The hazard is likely to occur at least once in the system lifecycle (100 years).
C17: Probability Score: | E17: =IF(E15=$C$966,$A$966,IF(E15=$C$967,$A$967,IF(E15=$C$968,$A$968,IF(E15=$C$969,$A$969,IF(E15=$C$970,$A$970,"Not Calculated"))))) -> 2
E18: =IF(E15=$C$966,$B$966,IF(E15=$C$967,$B$967,IF(E15=$C$968,$B$968,IF(E15=$C$969,$B$969,IF(E15=$C$970,$B$970,"Not Calculated"))))) -> Occasional
G22: Human Impact
C24: Mortality
C25: Baseline Mortality per Day: | J25: ='Baseline Health'!G11 -> 0
C26: Hazard-Related Increase in Mortality per Day: | J26: 10 | L26: Per county decision made (hazard epicenter maps); Reference for decision making (CUSEC)
C27: Magnitude Score: | J27: =IF(OR(J25=0,J25="Not Calculated")=TRUE,"Not Calculated",(IF(((J26+J25)/J25)<=1,0,IF(((J26+J25)/J25)<=1.05,1,IF(((J26+J25)/J25)<=1.5, 2,IF(((J26+J25)/J25)<=2,3,4)))))) -> Not Calculated
C28: ="0:" -> 0: | D28: No change from baseline
C29: ="1:" -> 1: | D29: ≤ 5% increase
C30: ="2:" -> 2: | D30: ≤ 50% increase
C31: ="3:" -> 3: | D31: ≤ 100% increase
C32: ="4:" -> 4: | D32: >100% increase | N32: Use Quantititive Value
C33: OR, Estimate the Magnitude Qualitatively: | J33: Use Quantititive Value | N33: No change from baseline (Score = 0)
C34: Qualitative Magnitude Score: | J34: =IF(J33=N32,"N/A",IF(J33=N33,0,IF(J33=N34,1,IF(J33=N35,2,IF(J33=N36,3,IF(J33=N37,4,"N/A")))))) -> N/A | N34: ≤ 5% increase (Score = 1)
C35: Duration of Impact: | J35: No impact (Score = 0) | N35: ≤ 50% increase (Score = 2)
C36: Duration Score: | J36: =IF(J35=$B$973,$A$973,IF(J35=$B$974,$A$974,IF(J35=$B$975,$A$975,IF(J35=$B$976,$A$976,IF(J35=$B$977,$A$977,"Not Calculated"))))) -> 0 | N36: ≤ 100% increase (Score = 3)
C37: Data Source / Explanation (Optional): | N37: >100% increase (Score = 4)
C38: A 1991 Missouri State Emergency Management Agency (SEMA) and FEMA report estimates damages from a 7.6 magnitude NMSZ earthquake to the Bootheel counties of Mississippi, New Madrid and Pemiscot would be 0.2-2% of their population killed, 1-10% of their population seriously injured, 10% of their buildings collapsed and 30% of their buildings receiving severe structural damage. For Scott, Stoddard and Dunklin counties the percentage estimates are 0.1-1% killed, 0.5-5% seriously injured, 5% of structures collapsed and 20% with severe structural damage. For Butler, Bollinger, Cape Girardeau, Perry, St. Louis (including the city), Lincoln, Pike, Marion and Lewis Counties the estimates are 0.02- 0.2% killed, 0.1-1% seriously injured, 1% building collapses and 10% with severe structural damage. https://dnr.mo.gov/land-geology/hazards/earthquakes/science/facts-new-madrid-seismic-zone
C40: Mortality Score: | J40: =IF(J34="N/A",IF(OR(J27="Not Calculated",J36="Not Calculated")=TRUE,"Not Calculated",AVERAGE(J27,J36)),AVERAGE(J34,J36)) -> Not Calculated
C43: EMS Transports
C44: Baseline Transports per Day: | J44: ='Baseline Health'!G17 -> 0
C45: Hazard-Related Increase in Transports per Day: | J45: 50
C46: Magnitude Score: | J46: =IF(OR(J44=0,J44="Not Calculated")=TRUE,"Not Calculated",(IF(((J45+J44)/J44)<=1,0,IF(((J45+J44)/J44)<=1.05,1,IF(((J45+J44)/J44)<=1.5, 2,IF(((J45+J44)/J44)<=2,3,4)))))) -> Not Calculated
C47: ="0:" -> 0: | D47: No change from baseline
C48: ="1:" -> 1: | D48: ≤ 5% increase
C49: ="2:" -> 2: | D49: ≤ 50% increase
C50: ="3:" -> 3: | D50: ≤ 100% increase
C51: ="4:" -> 4: | D51: >100% increase | N51: Use Quantititive Value
C52: OR, Estimate the Magnitude Qualitatively: | J52: Use Quantititive Value | N52: No change from baseline (Score = 0)
C53: Qualitative Magnitude Score: | J53: =IF(J52=N51,"N/A",IF(J52=N52,0,IF(J52=N53,1,IF(J52=N54,2,IF(J52=N55,3,IF(J52=N56,4,"N/A")))))) -> N/A | N53: ≤ 5% increase (Score = 1)
C54: Duration of Impact: | J54: ≤ 1 day (Score = 1) | N54: ≤ 50% increase (Score = 2)
C55: Duration Score: | J55: =IF(J54=$B$973,$A$973,IF(J54=$B$974,$A$974,IF(J54=$B$975,$A$975,IF(J54=$B$976,$A$976,IF(J54=$B$977,$A$977,"Not Calculated"))))) -> 1 | N55: ≤ 100% increase (Score = 3)
C56: Data Source / Explanation (Optional): | N56: >100% increase (Score = 4)
C59: EMS Transports Score: | J59: =IF(J53="N/A",IF(OR(J46="Not Calculated",J55="Not Calculated")=TRUE,"Not Calculated",AVERAGE(J46,J55)),AVERAGE(J53,J55)) -> Not Calculated
C62: ED Visits
C63: Baseline ED Visits per Day: | J63: ='Baseline Health'!G23 -> 0
C64: Hazard-Related Increase in ED Visits per Day: | J64: 1
C65: Magnitude Score: | J65: =IF(OR(J63=0,J63="Not Calculated")=TRUE,"Not Calculated",(IF(((J64+J63)/J63)<=1,0,IF(((J64+J63)/J63)<=1.05,1,IF(((J64+J63)/J63)<=1.5, 2,IF(((J64+J63)/J63)<=2,3,4)))))) -> Not Calculated
C66: ="0:" -> 0: | D66: No change from baseline
C67: ="1:" -> 1: | D67: ≤ 5% increase
C68: ="2:" -> 2: | D68: ≤ 50% increase
C69: ="3:" -> 3: | D69: ≤ 100% increase
C70: ="4:" -> 4: | D70: >100% increase | N70: Use Quantititive Value
C71: OR, Estimate the Magnitude Qualitatively: | J71: Use Quantititive Value | N71: No change from baseline (Score = 0)
C72: Qualitative Magnitude Score: | J72: =IF(J71=N70,"N/A",IF(J71=N71,0,IF(J71=N72,1,IF(J71=N73,2,IF(J71=N74,3,IF(J71=N75,4,"N/A")))))) -> N/A | N72: ≤ 5% increase (Score = 1)
C73: Duration of Impact: | J73: ≤ 1 day (Score = 1) | N73: ≤ 50% increase (Score = 2)
C74: Duration Score: | J74: =IF(J73=$B$973,$A$973,IF(J73=$B$974,$A$974,IF(J73=$B$975,$A$975,IF(J73=$B$976,$A$976,IF(J73=$B$977,$A$977,"Not Calculated"))))) -> 1 | N74: ≤ 100% increase (Score = 3)
C75: Data Source / Explanation (Optional): | N75: >100% increase (Score = 4)
C78: ED Visits Score: | J78: =IF(J72="N/A",IF(OR(J65="Not Calculated",J74="Not Calculated")=TRUE,"Not Calculated",AVERAGE(J65,J74)),AVERAGE(J72,J74)) -> Not Calculated
C81: Primary Care Office Visits
C82: Baseline Office Visits per Day: | J82: ='Baseline Health'!G29 -> 0
C83: Hazard-Related Increase in Office Visits per Day: | J83: 0
C84: Magnitude Score: | J84: =IF(OR(J82=0,J82="Not Calculated")=TRUE,"Not Calculated",(IF(((J83+J82)/J82)<=1,0,IF(((J83+J82)/J82)<=1.05,1,IF(((J83+J82)/J82)<=1.5, 2,IF(((J83+J82)/J82)<=2,3,4)))))) -> Not Calculated
C85: ="0:" -> 0: | D85: No change from baseline
C86: ="1:" -> 1: | D86: ≤ 5% increase
C87: ="2:" -> 2: | D87: ≤ 50% increase
C88: ="3:" -> 3: | D88: ≤ 100% increase
C89: ="4:" -> 4: | D89: >100% increase | N89: Use Quantititive Value
C90: OR, Estimate the Magnitude Qualitatively: | J90: Use Quantititive Value | N90: No change from baseline (Score = 0)
C91: Qualitative Magnitude Score: | J91: =IF(J90=N89,"N/A",IF(J90=N90,0,IF(J90=N91,1,IF(J90=N92,2,IF(J90=N93,3,IF(J90=N94,4,"N/A")))))) -> N/A | N91: ≤ 5% increase (Score = 1)
C92: Duration of Impact: | J92: No impact (Score = 0) | N92: ≤ 50% increase (Score = 2)
C93: Duration Score: | J93: =IF(J92=$B$973,$A$973,IF(J92=$B$974,$A$974,IF(J92=$B$975,$A$975,IF(J92=$B$976,$A$976,IF(J92=$B$977,$A$977,"Not Calculated"))))) -> 0 | N93: ≤ 100% increase (Score = 3)
C94: Data Source / Explanation (Optional): | N94: >100% increase (Score = 4)
C97: Primary Care Office Visits Score: | J97: =IF(J91="N/A",IF(OR(J84="Not Calculated",J93="Not Calculated")=TRUE,"Not Calculated",AVERAGE(J84,J93)),AVERAGE(J91,J93)) -> Not Calculated
C100: Trauma Center Injuries
C101: Baseline Trauma Injuries per Day: | J101: ='Baseline Health'!G35 -> 0
C102: Hazard-Related Increase in Trauma Injuries per Day: | J102: 0
C103: Magnitude Score: | J103: =IF(OR(J101=0,J101="Not Calculated")=TRUE,"Not Calculated",(IF(((J102+J101)/J101)<=1,0,IF(((J102+J101)/J101)<=1.05,1,IF(((J102+J101)/J101)<=1.5, 2,IF(((J102+J101)/J101)<=2,3,4)))))) -> Not Calculated
C104: ="0:" -> 0: | D104: No change from baseline
C105: ="1:" -> 1: | D105: ≤ 5% increase
C106: ="2:" -> 2: | D106: ≤ 50% increase
C107: ="3:" -> 3: | D107: ≤ 100% increase
C108: ="4:" -> 4: | D108: >100% increase | N108: Use Quantititive Value
C109: OR, Estimate the Magnitude Qualitatively: | J109: Use Quantititive Value | N109: No change from baseline (Score = 0)
C110: Qualitative Magnitude Score: | J110: =IF(J109=N108,"N/A",IF(J109=N109,0,IF(J109=N110,1,IF(J109=N111,2,IF(J109=N112,3,IF(J109=N113,4,"N/A")))))) -> N/A | N110: ≤ 5% increase (Score = 1)
C111: Duration of Impact: | J111: No impact (Score = 0) | N111: ≤ 50% increase (Score = 2)
C112: Duration Score: | J112: =IF(J111=$B$973,$A$973,IF(J111=$B$974,$A$974,IF(J111=$B$975,$A$975,IF(J111=$B$976,$A$976,IF(J111=$B$977,$A$977,"Not Calculated"))))) -> 0 | N112: ≤ 100% increase (Score = 3)
C113: Data Source / Explanation (Optional): | N113: >100% increase (Score = 4)
C116: Trauma Center Injuries Score: | J116: =IF(J110="N/A",IF(OR(J103="Not Calculated",J112="Not Calculated")=TRUE,"Not Calculated",AVERAGE(J103,J112)),AVERAGE(J110,J112)) -> Not Calculated
C119: Mental Health Impact
C120: Mental Health Impact (Percent of population developing psychopathology and behavioral changes after the incident, including PTST, depression, anxiety, alcohol and substance abuse, domestic violence, and loss of social functions):
C123: Minimal change in population behavior and negligible effects on social functioning.
C125: Magnitude Score: | J125: =IF(C123=B987,A987,IF(C123=B988,A988,IF(C123=B989,A989,IF(C123=B990,A990,IF(C123=B991,A991,"Not Calculated"))))) -> 0
C126: Duration of Impact: | J126: No impact (Score = 0)
C127: Duration Score: | J127: =IF(J126=$B$973,$A$973,IF(J126=$B$974,$A$974,IF(J126=$B$975,$A$975,IF(J126=$B$976,$A$976,IF(J126=$B$977,$A$977,"Not Calculated"))))) -> 0
C128: Data Source / Explanation (Optional):
C131: Mental Health Score: | J131: =IF(OR(J125="Not Calculated",J127="Not Calculated")=TRUE,"Not Calculated",AVERAGE(J125,J127)) -> 0
C133: Human Impact Score: | J133: =IF(OR(J40="Not Calculated",J59="Not Calculated",J78="Not Calculated",J97="Not Calculated",J116="Not Calculated",J131="Not Calculated",)=TRUE,"Not Calculated",AVERAGE(J40,J59,J78,J97,J116,J131)) -> Not Calculated
G137: Healthcare Service Impact
C139: Outpatient Services
C140: Baseline PCPs: | J140: ='Baseline Health'!G45 -> 1
C141: Hazard-Related Loss of PCPs: | J141: 0
C142: Hazard-Related Increase in Demand for PCPs per Day: | J142: =J83/20 -> 0
D143: (PCP Demand = Increase in Office Visits / 20)
C144: Magnitude Score: | J144: =IF(OR(J140=0,J140="Not Calculated")=TRUE,"Not Calculated",IF((J140-J141)<=0,4,IF(((J140+J142)/(J140-J141))<=1,0,IF(((J140+J142)/(J140-J141))<=1.05,1,IF(((J140+J142)/(J140-J141))<=1.5, 2,IF(((J140+J142)/(J140-J141))<=2,3,4)))))) -> 0
C145: ="0:" -> 0: | D145: No change from baseline
C146: ="1:" -> 1: | D146: (Baseline + ↑ demand) / (Baseline - ↓ supply) ≤ 1.05
C147: ="2:" -> 2: | D147: (Baseline + ↑ demand) / (Baseline - ↓ supply) ≤ 1.5
C148: ="3:" -> 3: | D148: (Baseline + ↑ demand) / (Baseline - ↓ supply) ≤ 2
C149: ="4:" -> 4: | D149: (Baseline + ↑ demand) / (Baseline - ↓ supply) > 2 | N149: Use Quantititive Value
C150: OR, Estimate the Magnitude Qualitatively: | J150: Use Quantititive Value | N150: No change from baseline (Score = 0)
C151: Qualitative Magnitude Score: | J151: =IF(J150=N149,"N/A",IF(J150=N150,0,IF(J150=N151,1,IF(J150=N152,2,IF(J150=N153,3,IF(J150=N154,4,"N/A")))))) -> N/A | N151: ≤ 5% ↑ demand or ↓ supply (Score = 1)
C152: Duration of Impact: | J152: No impact (Score = 0) | N152: ≤ 50% ↑ demand or ↓ supply (Score = 2)
C153: Duration Score: | J153: =IF(J152=$B$973,$A$973,IF(J152=$B$974,$A$974,IF(J152=$B$975,$A$975,IF(J152=$B$976,$A$976,IF(J152=$B$977,$A$977,"Not Calculated"))))) -> 0 | N153: ≤ 100% ↑ demand or ↓ supply (Score = 3)
C154: Data Source / Explanation (Optional): | N154: >100% ↑ demand or ↓ supply (Score = 4)
C157: Outpatient Services Score: | J157: =IF(J151="N/A",IF(OR(J144="Not Calculated",J153="Not Calculated")=TRUE,"Not Calculated",AVERAGE(J144,J153)),AVERAGE(J151,J153)) -> 0
C160: ED Services
C161: Baseline ED Beds: | J161: ='Baseline Health'!G51 -> 0
C162: Hazard-Related Loss of ED Beds: | J162: 0
C163: Hazard-Related Increase in Demand for ED Beds per Day: | J163: =(J64)/4.5 -> 0.2222222222
D164: (ED Bed Demand per Day = Increase in ED Visits / 4.5)
C165: Magnitude Score: | J165: =IF(OR(J161=0,J161="Not Calculated")=TRUE,"Not Calculated",IF((J161-J162)<=0,4,IF(((J161+J163)/(J161-J162))<=1,0,IF(((J161+J163)/(J161-J162))<=1.05,1,IF(((J161+J163)/(J161-J162))<=1.5, 2,IF(((J161+J163)/(J161-J162))<=2,3,4)))))) -> Not Calculated
C166: ="0:" -> 0: | D166: No change from baseline
C167: ="1:" -> 1: | D167: (Baseline + ↑ demand) / (Baseline - ↓ supply) ≤ 1.05
C168: ="2:" -> 2: | D168: (Baseline + ↑ demand) / (Baseline - ↓ supply) ≤ 1.5
C169: ="3:" -> 3: | D169: (Baseline + ↑ demand) / (Baseline - ↓ supply) ≤ 2
C170: ="4:" -> 4: | D170: (Baseline + ↑ demand) / (Baseline - ↓ supply) > 2 | N170: Use Quantititive Value
C171: OR, Estimate the Magnitude Qualitatively: | J171: Use Quantititive Value | N171: No change from baseline (Score = 0)
C172: Qualitative Magnitude Score: | J172: =IF(J171=N170,"N/A",IF(J171=N171,0,IF(J171=N172,1,IF(J171=N173,2,IF(J171=N174,3,IF(J171=N175,4,"N/A")))))) -> N/A | N172: ≤ 5% ↑ demand or ↓ supply (Score = 1)
C173: Duration of Impact: | J173: ≤ 1 day (Score = 1) | N173: ≤ 50% ↑ demand or ↓ supply (Score = 2)
C174: Duration Score: | J174: =IF(J173=$B$973,$A$973,IF(J173=$B$974,$A$974,IF(J173=$B$975,$A$975,IF(J173=$B$976,$A$976,IF(J173=$B$977,$A$977,"Not Calculated"))))) -> 1 | N174: ≤ 100% ↑ demand or ↓ supply (Score = 3)
C175: Data Source / Explanation (Optional): | N175: >100% ↑ demand or ↓ supply (Score = 4)
C178: ED Services Score: | J178: =IF(J172="N/A",IF(OR(J165="Not Calculated",J174="Not Calculated")=TRUE,"Not Calculated",AVERAGE(J165,J174)),AVERAGE(J172,J174)) -> Not Calculated
C181: Hospital Beds
C182: Baseline Hospital Beds: | J182: ='Baseline Health'!G59 -> 0
C183: Hazard-Related Loss of Hospital Beds: | J183: 0
C184: Hazard-Related Increase in Demand for Hospital Beds: | J184: 0
C185: Magnitude Score: | J185: =IF(OR(J182=0,J182="Not Calculated")=TRUE,"Not Calculated",IF(J182-J183=0,4,IF(((J182+J184)/(J182-J183))<=1,0,IF(((J182+J184)/(J182-J183))<=1.05,1,IF(((J182+J184)/(J182-J183))<=1.5, 2,IF(((J182+J184)/(J182-J183))<=2,3,4)))))) -> Not Calculated
C186: ="0:" -> 0: | D186: No change from baseline
C187: ="1:" -> 1: | D187: (Baseline + ↑ demand) / (Baseline - ↓ supply) ≤ 1.05
C188: ="2:" -> 2: | D188: (Baseline + ↑ demand) / (Baseline - ↓ supply) ≤ 1.5
C189: ="3:" -> 3: | D189: (Baseline + ↑ demand) / (Baseline - ↓ supply) ≤ 2
C190: ="4:" -> 4: | D190: (Baseline + ↑ demand) / (Baseline - ↓ supply) > 2 | N190: Use Quantititive Value
C191: OR, Estimate the Magnitude Qualitatively: | J191: Use Quantititive Value | N191: No change from baseline (Score = 0)
C192: Qualitative Magnitude Score: | J192: =IF(J191=N190,"N/A",IF(J191=N191,0,IF(J191=N192,1,IF(J191=N193,2,IF(J191=N194,3,IF(J191=N195,4,"N/A")))))) -> N/A | N192: ≤ 5% ↑ demand or ↓ supply (Score = 1)
C193: Duration of Impact: | J193: No impact (Score = 0) | N193: ≤ 50% ↑ demand or ↓ supply (Score = 2)
C194: Duration Score: | J194: =IF(J193=$B$973,$A$973,IF(J193=$B$974,$A$974,IF(J193=$B$975,$A$975,IF(J193=$B$976,$A$976,IF(J193=$B$977,$A$977,"Not Calculated"))))) -> 0 | N194: ≤ 100% ↑ demand or ↓ supply (Score = 3)
C195: Data Source / Explanation (Optional): | N195: >100% ↑ demand or ↓ supply (Score = 4)
C198: Hospital Beds Score: | J198: =IF(J192="N/A",IF(OR(J185="Not Calculated",J194="Not Calculated")=TRUE,"Not Calculated",AVERAGE(J185,J194)),AVERAGE(J192,J194)) -> Not Calculated
C201: Ancillary Services
C202: Baseline Pharmacists: | J202: ='Baseline Health'!G65 -> 0
C203: Hazard-Related Loss of Pharmacists: | J203: 0
C204: Hazard-Related Increase in Demand for Pharmacists: | J204: 0
C205: Magnitude Score: | J205: =IF(OR(J202=0,J202="Not Calculated")=TRUE,"Not Calculated",IF(J202-J203=0,4,IF(((J202+J204)/(J202-J203))<=1,0,IF(((J202+J204)/(J202-J203))<=1.05,1,IF(((J202+J204)/(J202-J203))<=1.5, 2,IF(((J202+J204)/(J202-J203))<=2,3,4)))))) -> Not Calculated
C206: ="0:" -> 0: | D206: No change from baseline
C207: ="1:" -> 1: | D207: (Baseline + ↑ demand) / (Baseline - ↓ supply) ≤ 1.05
C208: ="2:" -> 2: | D208: (Baseline + ↑ demand) / (Baseline - ↓ supply) ≤ 1.5
C209: ="3:" -> 3: | D209: (Baseline + ↑ demand) / (Baseline - ↓ supply) ≤ 2
C210: ="4:" -> 4: | D210: (Baseline + ↑ demand) / (Baseline - ↓ supply) > 2 | N210: Use Quantititive Value
C211: OR, Estimate the Magnitude Qualitatively: | J211: Use Quantititive Value | N211: No change from baseline (Score = 0)
C212: Qualitative Magnitude Score: | J212: =IF(J211=N210,"N/A",IF(J211=N211,0,IF(J211=N212,1,IF(J211=N213,2,IF(J211=N214,3,IF(J211=N215,4,"N/A")))))) -> N/A | N212: ≤ 5% ↑ demand or ↓ supply (Score = 1)
C213: Duration of Impact: | J213: No impact (Score = 0) | N213: ≤ 50% ↑ demand or ↓ supply (Score = 2)
C214: Duration Score: | J214: =IF(J213=$B$973,$A$973,IF(J213=$B$974,$A$974,IF(J213=$B$975,$A$975,IF(J213=$B$976,$A$976,IF(J213=$B$977,$A$977,"Not Calculated"))))) -> 0 | N214: ≤ 100% ↑ demand or ↓ supply (Score = 3)
C215: Data Source / Explanation (Optional): | N215: >100% ↑ demand or ↓ supply (Score = 4)
C218: Ancillary Services Score: | J218: =IF(J212="N/A",IF(OR(J205="Not Calculated",J214="Not Calculated")=TRUE,"Not Calculated",AVERAGE(J205,J214)),AVERAGE(J212,J214)) -> Not Calculated
C221: Trauma Units
C222: Baseline Trauma Center Functioning ORs: | J222: ='Baseline Health'!G71 -> 0
C223: Hazard-Related Loss of Trauma Center Functioning ORs: | J223: 0
C224: Hazard-Related Increase in Demand for Trauma ORs: | J224: =J102 -> 0
D225: (Demand = Increase in Trauma Injuries per Day)
C226: Magnitude Score: | J226: =IF(OR(J222=0,J222="Not Calculated")=TRUE,"Not Calculated",IF(J222-J223=0,4,IF(((J222+J224)/(J222-J223))<=1,0,IF(((J222+J224)/(J222-J223))<=1.05,1,IF(((J222+J224)/(J222-J223))<=1.5, 2,IF(((J222+J224)/(J222-J223))<=2,3,4)))))) -> Not Calculated
C227: ="0:" -> 0: | D227: No change from baseline
C228: ="1:" -> 1: | D228: (Baseline + ↑ demand) / (Baseline - ↓ supply) ≤ 1.05
C229: ="2:" -> 2: | D229: (Baseline + ↑ demand) / (Baseline - ↓ supply) ≤ 1.5
C230: ="3:" -> 3: | D230: (Baseline + ↑ demand) / (Baseline - ↓ supply) ≤ 2
C231: ="4:" -> 4: | D231: (Baseline + ↑ demand) / (Baseline - ↓ supply) > 2 | N231: Use Quantititive Value
C232: OR, Estimate the Magnitude Qualitatively: | J232: Use Quantititive Value | N232: No change from baseline (Score = 0)
C233: Qualitative Magnitude Score: | J233: =IF(J232=N231,"N/A",IF(J232=N232,0,IF(J232=N233,1,IF(J232=N234,2,IF(J232=N235,3,IF(J232=N236,4,"N/A")))))) -> N/A | N233: ≤ 5% ↑ demand or ↓ supply (Score = 1)
C234: Duration of Impact: | J234: No impact (Score = 0) | N234: ≤ 50% ↑ demand or ↓ supply (Score = 2)
C235: Duration Score: | J235: =IF(J234=$B$973,$A$973,IF(J234=$B$974,$A$974,IF(J234=$B$975,$A$975,IF(J234=$B$976,$A$976,IF(J234=$B$977,$A$977,"Not Calculated"))))) -> 0 | N235: ≤ 100% ↑ demand or ↓ supply (Score = 3)
C236: Data Source / Explanation (Optional): | N236: >100% ↑ demand or ↓ supply (Score = 4)
C239: Trauma Units Score: | J239: =IF(J233="N/A",IF(OR(J226="Not Calculated",J235="Not Calculated")=TRUE,"Not Calculated",AVERAGE(J226,J235)),AVERAGE(J233,J235)) -> Not Calculated
C242: Mental Health Services Services
C243: Baseline Mental Health Providers: | J243: ='Baseline Health'!G77 -> 0
C244: Hazard-Related Loss of Mental Health Providers: | J244: 0
C245: Hazard-Related Increase in Demand for Mental Health Providers: | J245: 0
C246: Magnitude Score: | J246: =IF(OR(J243=0,J243="Not Calculated")=TRUE,"Not Calculated",IF(J243-J244=0,4,(IF(((J243+J245)/(J243-J244))<=1,0,IF(((J243+J245)/(J243-J244))<=1.05,1,IF(((J243+J245)/(J243-J244))<=1.5,2,IF(((J243+J245)/(J243-J244))<=2,3,4))))))) -> Not Calculated
C247: ="0:" -> 0: | D247: No change from baseline
C248: ="1:" -> 1: | D248: (Baseline + ↑ demand) / (Baseline - ↓ supply) ≤ 1.05
C249: ="2:" -> 2: | D249: (Baseline + ↑ demand) / (Baseline - ↓ supply) ≤ 1.5
C250: ="3:" -> 3: | D250: (Baseline + ↑ demand) / (Baseline - ↓ supply) ≤ 2
C251: ="4:" -> 4: | D251: (Baseline + ↑ demand) / (Baseline - ↓ supply) > 2 | N251: Use Quantititive Value
C252: OR, Estimate the Magnitude Qualitatively: | J252: Use Quantititive Value | N252: No change from baseline (Score = 0)
C253: Qualitative Magnitude Score: | J253: =IF(J252=N251,"N/A",IF(J252=N252,0,IF(J252=N253,1,IF(J252=N254,2,IF(J252=N255,3,IF(J252=N256,4,"N/A")))))) -> N/A | N253: ≤ 5% ↑ demand or ↓ supply (Score = 1)
C254: Duration of Impact: | J254: No impact (Score = 0) | N254: ≤ 50% ↑ demand or ↓ supply (Score = 2)
C255: Duration Score: | J255: =IF(J254=$B$973,$A$973,IF(J254=$B$974,$A$974,IF(J254=$B$975,$A$975,IF(J254=$B$976,$A$976,IF(J254=$B$977,$A$977,"Not Calculated"))))) -> 0 | N255: ≤ 100% ↑ demand or ↓ supply (Score = 3)
C256: Data Source / Explanation (Optional): | N256: >100% ↑ demand or ↓ supply (Score = 4)
C259: Mental Health Services Score: | J259: =IF(J253="N/A",IF(OR(J246="Not Calculated",J255="Not Calculated")=TRUE,"Not Calculated",AVERAGE(J246,J255)),AVERAGE(J253,J255)) -> Not Calculated
C261: Healthcare Service Impact Score: | J261: =IF(OR(J157="Not Calculated",J178="Not Calculated",J198="Not Calculated",J218="Not Calculated",J239="Not Calculated",J259="Not Calculated",)=TRUE,"Not Calculated",AVERAGE(J157,J178,J198,J218,J239,J259)) -> Not Calculated
G265: Inpatient Healthcare Facility Infrastructure Impact
C267: Hospital Personnel
C268: Baseline Hospital-Employed RNs per Shift: | J268: ='Baseline Health'!G88 -> 0
... 543 more rows

Sheet Flood
G2: Public Health Risk Assessment Tool
G3: Flood
B5: Floods are the most common natural disaster, accounting for approximately 40% of natural disasters worldwide. They cause greater mortality than any other natural disaster. Floods may be caused by an abundance of rainfall, melting snow, dam or levee failure, the sudden release of water from an ice or debris jam, or the expanding development of wetlands, which reduces absorption of rainfall. Areas at greatest risk are those located in low-lying areas, nearby water, or downstream from a dam (Ciottone, 2006).
B7: The following hazard impacts have been estimated using historical data, predictive models, estimations where necessary, and the information entered in the "Baseline Data" worksheets. The information below can be altered as needed to more accurately reflect hazard impacts in your jurisdiction. The impacts should reflect the worst-case reasonable scenario.
B9: Briefly describe the worst-case reasonable scenario of this hazard (the scenario to which the following impacts apply) here:
B10: The scenario used to predict the impacts of flooding is the Dec. 26-29, 2015 flooding incident. A total of 15 fatalities resulted from drowning swept away in cars and electrocution; 7 of the 15 deaths occurred in Pulaski County, Missouri.
G13: Probability
C15: Probability: | E15: The hazard is likely to occur several times in the system lifecycle (100 years).
C17: Probability Score: | E17: =IF(E15=$C$966,$A$966,IF(E15=$C$967,$A$967,IF(E15=$C$968,$A$968,IF(E15=$C$969,$A$969,IF(E15=$C$970,$A$970,"Not Calculated"))))) -> 3
E18: =IF(E15=$C$966,$B$966,IF(E15=$C$967,$B$967,IF(E15=$C$968,$B$968,IF(E15=$C$969,$B$969,IF(E15=$C$970,$B$970,"Not Calculated"))))) -> Probable
G22: Human Impact
C24: Mortality
C25: Baseline Mortality per Day: | J25: ='Baseline Health'!G11 -> 0
C26: Hazard-Related Increase in Mortality per Day: | J26: 7
C27: Magnitude Score: | J27: =IF(OR(J25=0,J25="Not Calculated")=TRUE,"Not Calculated",(IF(((J26+J25)/J25)<=1,0,IF(((J26+J25)/J25)<=1.05,1,IF(((J26+J25)/J25)<=1.5, 2,IF(((J26+J25)/J25)<=2,3,4)))))) -> Not Calculated
C28: ="0:" -> 0: | D28: No change from baseline
C29: ="1:" -> 1: | D29: ≤ 5% increase
C30: ="2:" -> 2: | D30: ≤ 50% increase
C31: ="3:" -> 3: | D31: ≤ 100% increase
C32: ="4:" -> 4: | D32: >100% increase | N32: Use Quantititive Value
C33: OR, Estimate the Magnitude Qualitatively: | J33: Use Quantititive Value | N33: No change from baseline (Score = 0)
C34: Qualitative Magnitude Score: | J34: =IF(J33=N32,"N/A",IF(J33=N33,0,IF(J33=N34,1,IF(J33=N35,2,IF(J33=N36,3,IF(J33=N37,4,"N/A")))))) -> N/A | N34: ≤ 5% increase (Score = 1)
C35: Duration of Impact: | J35: ≤ 1 day (Score = 1) | N35: ≤ 50% increase (Score = 2)
